Department,Entity, Transaction Date, Expense Type, Expense Area, Supplier Name,Transaction number, Amount, Invoice Description
DFID,DFID,04/09/2017,Hotels - Accommodation only ,Conflict  Humanitarian  Security & Stabilisation Division ,Corporate Travel Provider ,202410-109,733.66,
DFID,DFID,04/09/2017,Air fares ,Conflict  Humanitarian  Security & Stabilisation Division ,Corporate Travel Provider ,202410-109,908.87,
DFID,DFID,04/09/2017,Air fares ,Conflict  Humanitarian  Security & Stabilisation Division ,Corporate Travel Provider ,100049-133 ,947.77,
DFID,DFID,04/09/2017,Air fares ,Conflict  Humanitarian  Security & Stabilisation Division ,Corporate Travel Provider ,100049-134 ,835.17,
DFID,DFID,04/09/2017,Hotels - Accommodation only ,Conflict  Humanitarian  Security & Stabilisation Division ,Corporate Travel Provider ,100049-134 ,561.57,
DFID,DFID,04/09/2017,Air fares ,Conflict  Humanitarian  Security & Stabilisation Division ,Corporate Travel Provider ,100049-134 ,923.47,
DFID,DFID,04/09/2017,Hotels - Accommodation only ,Conflict  Humanitarian  Security & Stabilisation Division ,Corporate Travel Provider ,100049-134 ,584.91,
DFID,DFID,04/09/2017,Air fares ,Conflict  Humanitarian  Security & Stabilisation Division ,Corporate Travel Provider ,100049-134 ,712.47,
DFID,DFID,04/09/2017,Air fares ,Asia  Caribbean and Overseas Territories ,Corporate Travel Provider ,100084-101 ,"3,326.97",
DFID,DFID,04/09/2017,Air fares ,Asia  Caribbean and Overseas Territories ,Corporate Travel Provider ,100084-101 ,685.77,
DFID,DFID,04/09/2017,Air fares ,Asia  Caribbean and Overseas Territories ,Corporate Travel Provider ,100084-101 ,614.80,
DFID,DFID,04/09/2017,Air fares ,Asia  Caribbean and Overseas Territories ,Corporate Travel Provider ,100084-101 ,614.80,
DFID,DFID,04/09/2017,Air fares ,Asia  Caribbean and Overseas Territories ,Corporate Travel Provider ,100084-101 ,560.90,
DFID,DFID,04/09/2017,Air fares ,Asia  Caribbean and Overseas Territories ,Corporate Travel Provider ,100084-101 ,"1,034.67",
DFID,DFID,04/09/2017,Air fares ,Asia  Caribbean and Overseas Territories ,Corporate Travel Provider ,100084-101 ,"3,326.97",
DFID,DFID,04/09/2017,Air fares ,Asia  Caribbean and Overseas Territories ,Corporate Travel Provider ,100084-101 ,560.90,
DFID,DFID,04/09/2017,Air fares ,Asia  Caribbean and Overseas Territories ,Corporate Travel Provider ,100084-101 ,681.07,
DFID,DFID,04/09/2017,Air fares ,Conflict  Humanitarian  Security & Stabilisation Division ,Corporate Travel Provider ,100049-102 ,660.27,
DFID,DFID,04/09/2017,Hotels - Accommodation only ,Research and Evidence Division ,Corporate Travel Provider ,100088-101 ,680.00,
DFID,DFID,04/09/2017,Hotels - Accommodation only ,Policy Division ,Corporate Travel Provider ,100098-101 ,"1,409.88",
DFID,DFID,04/09/2017,Hotels - Accommodation only ,Policy Division ,Corporate Travel Provider ,100098-101 ,"1,099.54",
DFID,DFID,04/09/2017,Air fares ,Policy Division ,Corporate Travel Provider ,100098-101 ,611.07,
DFID,DFID,04/09/2017,Air fares ,Policy Division ,Corporate Travel Provider ,100098-101 ,620.99,
DFID,DFID,04/09/2017,Air fares ,International Relations Division ,Corporate Travel Provider ,100111-101 ,675.07,
DFID,DFID,04/09/2017,Air fares ,International Relations Division ,Corporate Travel Provider ,100120-102 ,688.07,
DFID,DFID,04/09/2017,Air fares ,Internal Audit ,Corporate Travel Provider ,100121-101 ,580.77,
DFID,DFID,04/09/2017,Air fares ,Internal Audit ,Corporate Travel Provider ,100121-101 ,580.77,
DFID,DFID,04/09/2017,Air fares ,Internal Audit ,Corporate Travel Provider ,100121-101 ,546.77,
DFID,DFID,04/09/2017,Air fares ,Internal Audit ,Corporate Travel Provider ,100121-101 ,"2,555.51",
DFID,DFID,04/09/2017,Air fares ,Internal Audit ,Corporate Travel Provider ,100121-101 ,580.77,
DFID,DFID,04/09/2017,Air fares ,Internal Audit ,Corporate Travel Provider ,100121-101 ,762.87,
DFID,DFID,04/09/2017,Air fares ,Internal Audit ,Corporate Travel Provider ,100121-101 ,762.87,
DFID,DFID,04/09/2017,Air fares ,Internal Audit ,Corporate Travel Provider ,100121-101 ,780.79,
DFID,DFID,04/09/2017,Air fares ,Internal Audit ,Corporate Travel Provider ,100121-101 ,593.28,
DFID,DFID,04/09/2017,Air fares ,Internal Audit ,Corporate Travel Provider ,100121-101 ,704.57,
DFID,DFID,04/09/2017,Air fares ,Internal Audit ,Corporate Travel Provider ,100121-101 ,621.46,
DFID,DFID,04/09/2017,Air fares ,Internal Audit ,Corporate Travel Provider ,100121-101 ,621.46,
DFID,DFID,04/09/2017,Air fares ,Internal Audit ,Corporate Travel Provider ,100121-101 ,"1,735.10",
DFID,DFID,04/09/2017,Air fares ,Internal Audit ,Corporate Travel Provider ,100121-101 ,626.77,
DFID,DFID,04/09/2017,Air fares ,Internal Audit ,Corporate Travel Provider ,100121-101 ,780.79,
DFID,DFID,04/09/2017,Air fares ,Internal Audit ,Corporate Travel Provider ,100121-101 ,780.79,
DFID,DFID,04/09/2017,Air fares ,Internal Audit ,Corporate Travel Provider ,100121-101 ,"1,524.53",
DFID,DFID,04/09/2017,Computer Consumables ,Internal Audit ,MA Ltd,100121-101 ,"1,032.00",
DFID,DFID,04/09/2017,Air fares ,Middle East and North Africa Division ,Corporate Travel Provider ,100146-101 ,809.77,
DFID,DFID,04/09/2017,Air fares ,Middle East and North Africa Division ,Corporate Travel Provider ,100146-101 ,681.17,
DFID,DFID,04/09/2017,Air fares ,Middle East and North Africa Division ,Corporate Travel Provider ,100146-101 ,681.17,
DFID,DFID,04/09/2017,Air fares ,Middle East and North Africa Division ,Corporate Travel Provider ,100146-101 ,533.57,
DFID,DFID,04/09/2017,Air fares ,Middle East and North Africa Division ,Corporate Travel Provider ,100146-101 ,"1,212.97",
DFID,DFID,04/09/2017,Air fares ,Middle East and North Africa Division ,Corporate Travel Provider ,100146-101 ,790.50,
DFID,DFID,04/09/2017,Air fares ,Middle East and North Africa Division ,Corporate Travel Provider ,100146-101 ,747.97,
DFID,DFID,04/09/2017,Air fares ,Middle East and North Africa Division ,Corporate Travel Provider ,100146-101 ,557.77,
DFID,DFID,04/09/2017,Air fares ,Middle East and North Africa Division ,Corporate Travel Provider ,100146-101 ,567.17,
DFID,DFID,04/09/2017,Air fares ,Middle East and North Africa Division ,Corporate Travel Provider ,100146-101 ,782.40,
DFID,DFID,04/09/2017,Air fares ,West and Southern Africa ,Supplier Name withheld ,100152-114 ,"1,220.17",
DFID,DFID,04/09/2017,Air fares ,West and Southern Africa ,Supplier Name withheld ,100152-114 ,"2,393.00",
DFID,DFID,04/09/2017,Air fares ,West and Southern Africa ,Supplier Name withheld ,100152-114 ,"2,001.77",
DFID,DFID,04/09/2017,Air fares ,West and Southern Africa ,Supplier Name withheld ,100152-114 ,"2,320.57",
DFID,DFID,04/09/2017,Air fares ,Communications Division ,Corporate Travel Provider ,100177-101 ,644.17,
DFID,DFID,04/09/2017,Air fares ,Economic Development Division ,Corporate Travel Provider ,100124-101 ,862.90,
DFID,DFID,04/09/2017,Air fares ,Economic Development Division ,Corporate Travel Provider ,100124-101 ,"1,142.07",
DFID,DFID,04/09/2017,Air fares ,Economic Development Division ,Corporate Travel Provider ,100124-101 ,"1,118.67",
DFID,DFID,04/09/2017,Air fares ,Economic Development Division ,Corporate Travel Provider ,100124-101 ,"1,118.67",
DFID,DFID,04/09/2017,Air fares ,Policy Division ,Corporate Travel Provider ,100191-101 ,582.57,
DFID,DFID,04/09/2017,Air fares ,Policy Division ,Corporate Travel Provider ,100191-101 ,573.17,
DFID,DFID,04/09/2017,Air fares ,Communications Division ,Corporate Travel Provider ,100197-101 ,"1,021.97",
DFID,DFID,04/09/2017,Air fares ,Communications Division ,Corporate Travel Provider ,100197-101 ,"1,021.97",
DFID,DFID,04/09/2017,Air fares ,Top Management Group ,Corporate Travel Provider ,100232-102 ,"2,987.10",
DFID,DFID,04/09/2017,Air fares ,Top Management Group ,Corporate Travel Provider ,100232-102 ,"2,987.10",
DFID,DFID,04/09/2017,Air fares ,Top Management Group ,Corporate Travel Provider ,100232-102 ,"2,987.10",
DFID,DFID,04/09/2017,Air fares ,Top Management Group ,Corporate Travel Provider ,100232-102 ,"5,252.37",
DFID,DFID,04/09/2017,Air fares ,Top Management Group ,Corporate Travel Provider ,100232-102 ,"3,624.37",
DFID,DFID,04/09/2017,Air fares ,Top Management Group ,Corporate Travel Provider ,100232-105 ,623.97,
DFID,DFID,04/09/2017,Other passenger transport ,Top Management Group ,Corporate Travel Provider ,100232-105 ,536.08,
DFID,DFID,04/09/2017,Air fares ,Top Management Group ,Corporate Travel Provider ,100232-105 ,"3,252.27",
DFID,DFID,04/09/2017,Air fares ,Top Management Group ,Corporate Travel Provider ,100232-105 ,503.80,
DFID,DFID,04/09/2017,Air fares ,Top Management Group ,Corporate Travel Provider ,100232-106 ,"2,368.27",
DFID,DFID,04/09/2017,Air fares ,Top Management Group ,Corporate Travel Provider ,100232-106 ,920.60,
DFID,DFID,04/09/2017,Air fares ,Top Management Group ,Corporate Travel Provider ,100232-106 ,"1,840.95",
DFID,DFID,04/09/2017,Air fares ,Top Management Group ,Corporate Travel Provider ,100232-106 ,"1,029.90",
DFID,DFID,04/09/2017,Air fares ,Top Management Group ,Corporate Travel Provider ,100232-106 ,"1,523.10",
DFID,DFID,04/09/2017,Air fares ,Central Department Division ,Corporate Travel Provider ,100259-101 ,"1,272.09",
DFID,DFID,04/09/2017,Air fares ,Central Department Division ,Corporate Travel Provider ,100259-101 ,541.08,
DFID,DFID,04/09/2017,Hotels - Accommodation only ,Group Operations ,Corporate Travel Provider ,100264-101 ,505.00,
DFID,DFID,04/09/2017,Hotels - Accommodation only ,Group Operations ,Corporate Travel Provider ,100264-101 ,566.00,
DFID,DFID,04/09/2017,Air fares ,Policy Division ,Corporate Travel Provider ,100277-101 ,835.47,
DFID,DFID,04/09/2017,Air fares ,Asia  Caribbean and Overseas Territories ,Corporate Travel Provider ,101601-110 ,"1,199.49",
DFID,DFID,04/09/2017,Hotels - Accommodation only ,Asia  Caribbean and Overseas Territories ,Corporate Travel Provider ,101601-110 ,603.18,
DFID,DFID,04/09/2017,Hotels - Accommodation only ,Asia  Caribbean and Overseas Territories ,Corporate Travel Provider ,101601-110 ,"3,214.80",
DFID,DFID,04/09/2017,Air fares ,Asia  Caribbean and Overseas Territories ,Corporate Travel Provider ,101601-110 ,"1,279.28",
DFID,DFID,04/09/2017,Air fares ,Asia  Caribbean and Overseas Territories ,Corporate Travel Provider ,101601-110 ,538.60,
DFID,DFID,04/09/2017,Air fares ,Asia  Caribbean and Overseas Territories ,Corporate Travel Provider ,101601-110 ,755.38,
DFID,DFID,12/09/2017,Air fares ,Asia  Caribbean and Overseas Territories ,Foreign & Commonwealth Office ,101601-110 ,"7,563.00",
DFID,DFID,07/09/2017,Mobile telephones & accessories ,Asia  Caribbean and Overseas Territories ,Foreign & Commonwealth Office ,101601-110 ,699.97,
DFID,DFID,15/09/2017,Repairs  Maint  Alter - Property & Constrct. Services ,Asia  Caribbean and Overseas Territories ,Foreign & Commonwealth Office ,101601-110 ,"5,961.53",
DFID,DFID,12/09/2017,Air fares ,Asia  Caribbean and Overseas Territories ,Foreign & Commonwealth Office ,101601-110 ,"7,694.00",
DFID,DFID,15/09/2017,Air fares ,Asia  Caribbean and Overseas Territories ,Foreign & Commonwealth Office ,101601-110 ,"33,485.55",Secure air transport support costs for Kabul for 2017
DFID,DFID,15/09/2017,Contract Catering Services ,Asia  Caribbean and Overseas Territories ,Foreign & Commonwealth Office ,101601-110 ,"1,535.36",
DFID,DFID,04/09/2017,Air fares ,Asia  Caribbean and Overseas Territories ,Corporate Travel Provider ,101601-110 ,555.27,
DFID,DFID,04/09/2017,Air fares ,Asia  Caribbean and Overseas Territories ,Corporate Travel Provider ,101601-110 ,"1,139.28",
DFID,DFID,04/09/2017,Air fares ,Asia  Caribbean and Overseas Territories ,Corporate Travel Provider ,101601-110 ,544.92,
DFID,DFID,04/09/2017,Hotels - Accommodation only ,Asia  Caribbean and Overseas Territories ,Corporate Travel Provider ,101601-110 ,509.00,
DFID,DFID,04/09/2017,Hotels - Accommodation only ,Asia  Caribbean and Overseas Territories ,Corporate Travel Provider ,101601-110 ,"1,391.00",
DFID,DFID,04/09/2017,Hotels - Accommodation only ,Asia  Caribbean and Overseas Territories ,Corporate Travel Provider ,101601-110 ,640.58,
DFID,DFID,04/09/2017,Air fares ,Asia  Caribbean and Overseas Territories ,Corporate Travel Provider ,101601-110 ,"1,243.10",
DFID,DFID,04/09/2017,Air fares ,Asia  Caribbean and Overseas Territories ,Corporate Travel Provider ,100011-110 ,"2,702.75",
DFID,DFID,04/09/2017,Air fares ,East and Central Africa ,Corporate Travel Provider ,100016-101 ,"2,176.21",
DFID,DFID,04/09/2017,Air fares ,East and Central Africa ,Corporate Travel Provider ,100016-101 ,"1,720.00",
DFID,DFID,04/09/2017,Air fares ,East and Central Africa ,Corporate Travel Provider ,100016-101 ,901.50,
DFID,DFID,04/09/2017,Air fares ,East and Central Africa ,Corporate Travel Provider ,100016-101 ,"4,357.47",
DFID,DFID,04/09/2017,Air fares ,East and Central Africa ,Corporate Travel Provider ,100016-110 ,"2,190.47",
DFID,DFID,04/09/2017,Air fares ,East and Central Africa ,Corporate Travel Provider ,100016-110 ,"2,414.29",
DFID,DFID,04/09/2017,Air fares ,East and Central Africa ,Corporate Travel Provider ,100016-110 ,"1,873.10",
DFID,DFID,04/09/2017,Air fares ,Research and Evidence Division ,Corporate Travel Provider ,100039-110 ,"1,171.07",
DFID,DFID,04/09/2017,Air fares ,Asia  Caribbean and Overseas Territories ,Corporate Travel Provider ,101603-101 ,"1,297.87",
DFID,DFID,04/09/2017,Hotels - Accommodation only ,Asia  Caribbean and Overseas Territories ,Corporate Travel Provider ,101603-102 ,666.90,
DFID,DFID,15/09/2017,Hotels - Accommodation only ,Asia  Caribbean and Overseas Territories ,Foreign & Commonwealth Office ,101603-102 ,"1,234.85",
DFID,DFID,12/09/2017,Hostile Environment Training ,Asia  Caribbean and Overseas Territories ,Foreign & Commonwealth Office ,101603-102 ,"1,182.95",
DFID,DFID,04/09/2017,Hotels - Accommodation only ,Asia  Caribbean and Overseas Territories ,Corporate Travel Provider ,101603-102 ,666.90,
DFID,DFID,14/09/2017,Hotels - Accommodation only ,Asia  Caribbean and Overseas Territories ,Foreign & Commonwealth Office ,101604-101 ,592.32,
DFID,DFID,01/09/2017,Training - Travel & Subsistence ,Asia  Caribbean and Overseas Territories ,Foreign & Commonwealth Office ,101604-101 ,953.52,
DFID,DFID,01/09/2017,Training - Travel & Subsistence ,Asia  Caribbean and Overseas Territories ,Foreign & Commonwealth Office ,101604-101 ,796.56,
DFID,DFID,01/09/2017,Hotels - Accommodation only ,Asia  Caribbean and Overseas Territories ,Foreign & Commonwealth Office ,101604-101 ,511.87,
DFID,DFID,12/09/2017,Training - Course Fees ,Asia  Caribbean and Overseas Territories ,Foreign & Commonwealth Office ,101605-101 ,686.03,
DFID,DFID,12/09/2017,Training - Course Fees ,Asia  Caribbean and Overseas Territories ,Foreign & Commonwealth Office ,101605-101 ,577.06,
DFID,DFID,07/09/2017,Hotels - Accommodation only ,Asia  Caribbean and Overseas Territories ,Foreign & Commonwealth Office ,101605-101 ,720.33,
DFID,DFID,15/09/2017,Air fares ,Asia  Caribbean and Overseas Territories ,Foreign & Commonwealth Office ,101605-101 ,730.54,
DFID,DFID,15/09/2017,Hotels - Accommodation only ,Asia  Caribbean and Overseas Territories ,Foreign & Commonwealth Office ,101605-101 ,"1,543.56",
DFID,DFID,04/09/2017,Hotels - Accommodation only ,Asia  Caribbean and Overseas Territories ,Corporate Travel Provider ,101605-101 ,780.75,
DFID,DFID,04/09/2017,Air fares ,Asia  Caribbean and Overseas Territories ,Corporate Travel Provider ,101605-101 ,550.37,
DFID,DFID,04/09/2017,Air fares ,Asia  Caribbean and Overseas Territories ,Corporate Travel Provider ,101605-101 ,893.60,
DFID,DFID,04/09/2017,Air fares ,West and Southern Africa ,Corporate Travel Provider ,101610-101 ,"1,473.30",
DFID,DFID,04/09/2017,Air fares ,West and Southern Africa ,Corporate Travel Provider ,101610-101 ,928.17,
DFID,DFID,04/09/2017,Air fares ,West and Southern Africa ,Corporate Travel Provider ,101610-101 ,729.80,
DFID,DFID,04/09/2017,Air fares ,West and Southern Africa ,Corporate Travel Provider ,101610-101 ,729.80,
DFID,DFID,04/09/2017,Air fares ,West and Southern Africa ,Corporate Travel Provider ,101610-101 ,"1,470.20",
DFID,DFID,04/09/2017,Air fares ,West and Southern Africa ,Corporate Travel Provider ,101610-101 ,"1,467.80",
DFID,DFID,04/09/2017,Air fares ,West and Southern Africa ,Corporate Travel Provider ,101610-101 ,834.40,
DFID,DFID,04/09/2017,Air fares ,West and Southern Africa ,Corporate Travel Provider ,101610-101 ,"1,680.60",
DFID,DFID,04/09/2017,Air fares ,West and Southern Africa ,Corporate Travel Provider ,101610-101 ,"1,113.90",
DFID,DFID,04/09/2017,Air fares ,West and Southern Africa ,Corporate Travel Provider ,101610-101 ,678.57,
DFID,DFID,04/09/2017,Air fares ,West and Southern Africa ,Corporate Travel Provider ,101610-101 ,"1,315.20",
DFID,DFID,04/09/2017,Air fares ,West and Southern Africa ,Corporate Travel Provider ,101610-101 ,"1,041.40",
DFID,DFID,04/09/2017,Air fares ,West and Southern Africa ,Corporate Travel Provider ,101610-101 ,"1,065.30",
DFID,DFID,04/09/2017,Air fares ,West and Southern Africa ,Corporate Travel Provider ,101610-101 ,718.80,
DFID,DFID,04/09/2017,Other passenger transport ,West and Southern Africa ,Corporate Travel Provider ,101610-101 ,501.20,
DFID,DFID,04/09/2017,Air fares ,West and Southern Africa ,Corporate Travel Provider ,101610-101 ,"1,709.04",
DFID,DFID,12/09/2017,Training - Travel & Subsistence ,West and Southern Africa ,Foreign & Commonwealth Office ,101610-101 ,"1,170.52",
DFID,DFID,04/09/2017,Air fares ,West and Southern Africa ,Corporate Travel Provider ,101613-101 ,591.50,
DFID,DFID,04/09/2017,Air fares ,West and Southern Africa ,Corporate Travel Provider ,101613-101 ,591.50,
DFID,DFID,12/09/2017,Data network- remote working ,West and Southern Africa ,Foreign & Commonwealth Office ,101613-101 ,"1,442.64",
DFID,DFID,04/09/2017,Air fares ,West and Southern Africa ,Corporate Travel Provider ,101613-101 ,591.50,
DFID,DFID,04/09/2017,Air fares ,West and Southern Africa ,Corporate Travel Provider ,101613-101 ,628.40,
DFID,DFID,04/09/2017,Air fares ,West and Southern Africa ,Corporate Travel Provider ,101613-101 ,591.50,
DFID,DFID,04/09/2017,Air fares ,East and Central Africa ,Corporate Travel Provider ,101616-101 ,853.50,
DFID,DFID,04/09/2017,Air fares ,East and Central Africa ,Corporate Travel Provider ,101616-101 ,582.87,
DFID,DFID,04/09/2017,Air fares ,East and Central Africa ,Corporate Travel Provider ,101616-101 ,914.19,
DFID,DFID,04/09/2017,Air fares ,East and Central Africa ,Corporate Travel Provider ,101616-101 ,665.19,
DFID,DFID,15/09/2017,Air fares ,East and Central Africa ,Foreign & Commonwealth Office ,101616-101 ,"2,577.44",
DFID,DFID,15/09/2017,Air fares ,East and Central Africa ,Foreign & Commonwealth Office ,101616-101 ,"2,577.44",
DFID,DFID,04/09/2017,Air fares ,East and Central Africa ,Corporate Travel Provider ,101616-101 ,861.84,
DFID,DFID,04/09/2017,Air fares ,West and Southern Africa ,Corporate Travel Provider ,101620-101 ,683.47,
DFID,DFID,15/09/2017,Medical/Health Services ,West and Southern Africa ,Foreign & Commonwealth Office ,101620-101 ,"3,891.40",
DFID,DFID,12/09/2017,Hotels - Accommodation only ,West and Southern Africa ,Foreign & Commonwealth Office ,101620-101 ,"2,070.28",
DFID,DFID,12/09/2017,Medical/Health Services ,West and Southern Africa ,Foreign & Commonwealth Office ,101620-101 ,"3,929.08",
DFID,DFID,12/09/2017,Medical/Health Services ,West and Southern Africa ,Foreign & Commonwealth Office ,101620-101 ,"3,929.08",
DFID,DFID,12/09/2017,Medical/Health Services ,West and Southern Africa ,Foreign & Commonwealth Office ,101620-101 ,"3,929.08",
DFID,DFID,07/09/2017,Mobile telephones & accessories ,West and Southern Africa ,Foreign & Commonwealth Office ,101620-101 ,945.07,
DFID,DFID,04/09/2017,Air fares ,West and Southern Africa ,Corporate Travel Provider ,101620-101 ,"1,895.90",
DFID,DFID,04/09/2017,Air fares ,West and Southern Africa ,Corporate Travel Provider ,101620-101 ,763.17,
DFID,DFID,04/09/2017,Air fares ,West and Southern Africa ,Corporate Travel Provider ,101620-101 ,758.47,
DFID,DFID,04/09/2017,Air fares ,West and Southern Africa ,Corporate Travel Provider ,101620-101 ,646.20,
DFID,DFID,04/09/2017,Air fares ,Asia  Caribbean and Overseas Territories ,Corporate Travel Provider ,101621-101 ,572.00,
DFID,DFID,04/09/2017,Air fares ,Asia  Caribbean and Overseas Territories ,Corporate Travel Provider ,101621-101 ,972.77,
DFID,DFID,04/09/2017,Air fares ,Asia  Caribbean and Overseas Territories ,Corporate Travel Provider ,101621-101 ,708.92,
DFID,DFID,15/09/2017,Hotels - Accommodation only ,Asia  Caribbean and Overseas Territories ,Foreign & Commonwealth Office ,101621-108 ,"1,646.48",
DFID,DFID,04/09/2017,Air fares ,Asia  Caribbean and Overseas Territories ,Corporate Travel Provider ,101621-108 ,705.97,
DFID,DFID,04/09/2017,Air fares ,West and Southern Africa ,Supplier Name withheld ,101622-106 ,"1,304.37",
DFID,DFID,04/09/2017,Air fares ,West and Southern Africa ,Supplier Name withheld ,101622-106 ,901.17,
DFID,DFID,04/09/2017,Hotels - Accommodation only ,West and Southern Africa ,Supplier Name withheld ,101622-106 ,857.25,
DFID,DFID,04/09/2017,Air fares ,West and Southern Africa ,Supplier Name withheld ,101622-106 ,"1,217.10",
DFID,DFID,04/09/2017,Air fares ,West and Southern Africa ,Supplier Name withheld ,101622-106 ,900.67,
DFID,DFID,04/09/2017,Air fares ,West and Southern Africa ,Supplier Name withheld ,101622-106 ,693.50,
DFID,DFID,04/09/2017,Hotels - Accommodation only ,West and Southern Africa ,Supplier Name withheld ,101622-106 ,723.90,
DFID,DFID,04/09/2017,Air fares ,West and Southern Africa ,Supplier Name withheld ,101622-106 ,845.77,
DFID,DFID,04/09/2017,Hotels - Accommodation only ,West and Southern Africa ,Supplier Name withheld ,101622-106 ,756.84,
DFID,DFID,04/09/2017,Hotels - Accommodation only ,West and Southern Africa ,Supplier Name withheld ,101622-106 ,666.90,
DFID,DFID,04/09/2017,Air fares ,West and Southern Africa ,Supplier Name withheld ,101622-106 ,"1,253.27",
DFID,DFID,04/09/2017,Air fares ,West and Southern Africa ,Supplier Name withheld ,101622-106 ,691.60,
DFID,DFID,04/09/2017,Air fares ,West and Southern Africa ,Supplier Name withheld ,101622-105 ,"1,376.87",
DFID,DFID,04/09/2017,Air fares ,West and Southern Africa ,Corporate Travel Provider ,101629-101 ,802.50,
DFID,DFID,04/09/2017,Air fares ,West and Southern Africa ,Corporate Travel Provider ,101629-101 ,871.20,
DFID,DFID,04/09/2017,Air fares ,West and Southern Africa ,Corporate Travel Provider ,101629-101 ,697.90,
DFID,DFID,04/09/2017,Air fares ,West and Southern Africa ,Corporate Travel Provider ,101629-101 ,"1,073.70",
DFID,DFID,04/09/2017,Air fares ,West and Southern Africa ,Corporate Travel Provider ,101629-101 ,876.10,
DFID,DFID,04/09/2017,Air fares ,West and Southern Africa ,Corporate Travel Provider ,101629-101 ,876.10,
DFID,DFID,04/09/2017,Air fares ,West and Southern Africa ,Corporate Travel Provider ,101629-101 ,666.60,
DFID,DFID,04/09/2017,Air fares ,West and Southern Africa ,Corporate Travel Provider ,101629-101 ,764.40,
DFID,DFID,04/09/2017,Air fares ,West and Southern Africa ,Corporate Travel Provider ,101629-101 ,"1,353.00",
DFID,DFID,04/09/2017,Air fares ,West and Southern Africa ,Corporate Travel Provider ,101629-101 ,740.00,
DFID,DFID,04/09/2017,Air fares ,West and Southern Africa ,Corporate Travel Provider ,101629-101 ,557.50,
DFID,DFID,04/09/2017,Air fares ,Asia  Caribbean and Overseas Territories ,Corporate Travel Provider ,101624-101 ,840.77,
DFID,DFID,04/09/2017,Other passenger transport ,Asia  Caribbean and Overseas Territories ,Corporate Travel Provider ,101611-101 ,600.00,
DFID,DFID,04/09/2017,Air fares ,East and Central Africa ,Corporate Travel Provider ,101612-101 ,811.58,
DFID,DFID,04/09/2017,Air fares ,East and Central Africa ,Corporate Travel Provider ,101612-101 ,648.60,
DFID,DFID,15/09/2017,Training - Travel & Subsistence ,East and Central Africa ,Foreign & Commonwealth Office ,101612-101 ,536.29,
DFID,DFID,15/09/2017,Air fares ,East and Central Africa ,Foreign & Commonwealth Office ,101612-101 ,538.64,
DFID,DFID,15/09/2017,Training - Travel & Subsistence ,East and Central Africa ,Foreign & Commonwealth Office ,101612-101 ,572.04,
DFID,DFID,15/09/2017,Training - Travel & Subsistence ,East and Central Africa ,Foreign & Commonwealth Office ,101612-101 ,685.84,
DFID,DFID,15/09/2017,Hotels - Accommodation only ,East and Central Africa ,Foreign & Commonwealth Office ,101612-101 ,609.00,
DFID,DFID,04/09/2017,Air fares ,East and Central Africa ,Corporate Travel Provider ,101612-101 ,660.07,
DFID,DFID,04/09/2017,Air fares ,Group Operations ,Corporate Travel Provider ,100270-102 ,705.09,
DFID,DFID,04/09/2017,Air fares ,Group Operations ,Corporate Travel Provider ,100270-102 ,897.69,
DFID,DFID,04/09/2017,Air fares ,Group Operations ,Corporate Travel Provider ,100270-102 ,870.79,
DFID,DFID,04/09/2017,Air fares ,Economic Development Division ,Corporate Travel Provider ,100275-101 ,898.38,
DFID,DFID,04/09/2017,Air fares ,Economic Development Division ,Corporate Travel Provider ,100275-101 ,923.07,
DFID,DFID,04/09/2017,Hotels - Accommodation only ,Economic Development Division ,Corporate Travel Provider ,100275-101 ,590.31,
DFID,DFID,04/09/2017,Hotels - Accommodation only ,East and Central Africa ,Corporate Travel Provider ,101625-111 ,529.96,
DFID,DFID,04/09/2017,Air fares ,East and Central Africa ,Corporate Travel Provider ,101625-111 ,642.07,
DFID,DFID,04/09/2017,Air fares ,East and Central Africa ,Corporate Travel Provider ,101625-111 ,686.47,
DFID,DFID,04/09/2017,Air fares ,East and Central Africa ,Corporate Travel Provider ,101630-101 ,547.97,
DFID,DFID,04/09/2017,Air fares ,East and Central Africa ,Corporate Travel Provider ,101630-101 ,547.97,
DFID,DFID,04/09/2017,Air fares ,East and Central Africa ,Corporate Travel Provider ,101630-101 ,840.77,
DFID,DFID,04/09/2017,Hotels - Accommodation only ,East and Central Africa ,Corporate Travel Provider ,101630-101 ,"1,268.64",
DFID,DFID,04/09/2017,Air fares ,East and Central Africa ,Corporate Travel Provider ,101630-101 ,"1,687.30",
DFID,DFID,12/09/2017,Air fares ,East and Central Africa ,Foreign & Commonwealth Office ,101630-101 ,"1,599.38",
DFID,DFID,04/09/2017,Hotels - Accommodation only ,East and Central Africa ,Corporate Travel Provider ,101630-101 ,"1,307.16",
DFID,DFID,04/09/2017,Air fares ,East and Central Africa ,Corporate Travel Provider ,101625-113 ,"1,302.77",
DFID,DFID,04/09/2017,Air fares ,East and Central Africa ,Corporate Travel Provider ,101625-113 ,620.19,
DFID,DFID,04/09/2017,Air fares ,East and Central Africa ,Corporate Travel Provider ,101630-102 ,578.90,
DFID,DFID,04/09/2017,Hotels - Accommodation only ,East and Central Africa ,Corporate Travel Provider ,101630-102 ,"1,307.16",
DFID,DFID,04/09/2017,Air fares ,East and Central Africa ,Corporate Travel Provider ,101633-101 ,"1,239.97",
DFID,DFID,07/09/2017,Training - Travel & Subsistence ,East and Central Africa ,Foreign & Commonwealth Office ,101633-101 ,769.41,
DFID,DFID,15/09/2017,Mobile telephones & accessories ,East and Central Africa ,Foreign & Commonwealth Office ,101634-101 ,"1,565.97",
DFID,DFID,15/09/2017,Mobile telephones & accessories ,East and Central Africa ,Foreign & Commonwealth Office ,101634-101 ,"1,372.65",
DFID,DFID,15/09/2017,Mobile telephones & accessories ,East and Central Africa ,Foreign & Commonwealth Office ,101634-101 ,"1,342.34",
DFID,DFID,04/09/2017,Air fares ,East and Central Africa ,Corporate Travel Provider ,101634-101 ,549.83,
DFID,DFID,04/09/2017,Hotels - Accommodation only ,East and Central Africa ,Corporate Travel Provider ,101634-101 ,659.00,
DFID,DFID,04/09/2017,Air fares ,East and Central Africa ,Corporate Travel Provider ,101635-101 ,530.58,
DFID,DFID,04/09/2017,Air fares ,East and Central Africa ,Corporate Travel Provider ,101635-101 ,614.90,
DFID,DFID,04/09/2017,Air fares ,East and Central Africa ,Corporate Travel Provider ,101635-101 ,"1,990.70",
DFID,DFID,04/09/2017,Air fares ,East and Central Africa ,Corporate Travel Provider ,101635-101 ,"1,079.40",
DFID,DFID,04/09/2017,Air fares ,East and Central Africa ,Corporate Travel Provider ,101635-101 ,866.27,
DFID,DFID,04/09/2017,Hotels - Accommodation only ,East and Central Africa ,Corporate Travel Provider ,101635-101 ,612.95,
DFID,DFID,12/09/2017,Telephone Usage & services ,East and Central Africa ,Foreign & Commonwealth Office ,101635-101 ,628.70,
DFID,DFID,12/09/2017,Mobile telephones & accessories ,West and Southern Africa ,Foreign & Commonwealth Office ,101637-101 ,817.16,
DFID,DFID,15/09/2017,Vehicle Hire Charges ,West and Southern Africa ,Foreign & Commonwealth Office ,101637-101 ,"1,207.84",
DFID,DFID,04/09/2017,Hotels - Accommodation only ,West and Southern Africa ,Corporate Travel Provider ,101638-101 ,537.05,
DFID,DFID,04/09/2017,Air fares ,West and Southern Africa ,Corporate Travel Provider ,101638-101 ,"1,634.77",
DFID,DFID,04/09/2017,Air fares ,West and Southern Africa ,Corporate Travel Provider ,101638-101 ,939.67,
DFID,DFID,04/09/2017,Air fares ,West and Southern Africa ,Corporate Travel Provider ,101638-101 ,"1,479.47",
DFID,DFID,04/09/2017,Air fares ,West and Southern Africa ,Corporate Travel Provider ,101638-101 ,"1,867.47",
DFID,DFID,04/09/2017,Air fares ,West and Southern Africa ,Corporate Travel Provider ,101638-101 ,"1,194.78",
DFID,DFID,04/09/2017,Hotels - Accommodation only ,Business Solutions Division Level ,Corporate Travel Provider ,200001-101 ,544.65,
DFID,DFID,04/09/2017,Hotels - Accommodation only ,Business Solutions Division Level ,Corporate Travel Provider ,200001-101 ,652.25,
DFID,DFID,04/09/2017,Air fares ,Business Solutions Division Level ,Corporate Travel Provider ,200001-101 ,"1,221.28",
DFID,DFID,04/09/2017,Air fares ,Business Solutions Division Level ,Corporate Travel Provider ,200001-101 ,"1,221.28",
DFID,DFID,04/09/2017,Computer Consumables ,Business Solutions Division Level , SBL Ltd  ,200001-101 ,"1,584.43",
DFID,DFID,04/09/2017,Air fares ,Business Solutions Division Level ,Corporate Travel Provider ,200001-101 ,"1,101.19",
DFID,DFID,04/09/2017,Air fares ,Business Solutions Division Level ,Corporate Travel Provider ,200001-101 ,"1,101.19",
DFID,DFID,04/09/2017,Computer Consumables ,Business Solutions Division Level ,Computacenter PLC   ,200002-153 ,"4,654.80",
DFID,DFID,04/09/2017,Hardware -Laptop PCs ,Business Solutions Division Level ,CDW Ltd,200002-153 ,647.95,
DFID,DFID,04/09/2017,Air fares ,Middle East and North Africa Division ,Corporate Travel Provider ,201701-101 ,828.37,
DFID,DFID,04/09/2017,Air fares ,Middle East and North Africa Division ,Corporate Travel Provider ,201701-101 ,667.27,
DFID,DFID,04/09/2017,Air fares ,Middle East and North Africa Division ,Corporate Travel Provider ,201701-101 ,512.40,
DFID,DFID,07/09/2017,Telephone Usage & services ,Middle East and North Africa Division ,Foreign & Commonwealth Office ,201701-101 ,606.81,
DFID,DFID,12/09/2017,Hotels - Accommodation only ,Middle East and North Africa Division ,Foreign & Commonwealth Office ,201705-101 ,609.80,
DFID,DFID,12/09/2017,Telephone Usage & services ,Middle East and North Africa Division ,Foreign & Commonwealth Office ,201705-101 ,585.12,
DFID,DFID,04/09/2017,Air fares ,Middle East and North Africa Division ,Corporate Travel Provider ,201705-101 ,549.77,
DFID,DFID,04/09/2017,Air fares ,International Relations Division ,Corporate Travel Provider ,201711-101 ,"1,409.22",
DFID,DFID,12/09/2017,Cleaning Costs ,International Relations Division ,Foreign & Commonwealth Office ,201711-101 ,792.91,
DFID,DFID,12/09/2017,Cleaning Costs ,International Relations Division ,Foreign & Commonwealth Office ,201711-101 ,745.15,
DFID,DFID,01/09/2017,Repairs  Maintenance and Alterations – Other Building Costs ,International Relations Division ,Foreign & Commonwealth Office ,201711-101 ,"2,998.18",
DFID,DFID,04/09/2017,Air fares ,International Relations Division ,Corporate Travel Provider ,201711-101 ,"1,411.36",
DFID,DFID,04/09/2017,Air fares ,International Relations Division ,Corporate Travel Provider ,201711-101 ,"1,505.05",
DFID,DFID,04/09/2017,Air fares ,International Relations Division ,Corporate Travel Provider ,201711-101 ,816.69,
DFID,DFID,04/09/2017,Hotels - Accommodation only ,International Relations Division ,Corporate Travel Provider ,201723-102 ,776.59,
DFID,DFID,04/09/2017,Air fares ,International Relations Division ,Corporate Travel Provider ,201723-102 ,"1,239.67",
DFID,DFID,12/09/2017,Project delivery costs – supplier services ,Policy Division ,Foreign & Commonwealth Office ,201724-124 ,"3,994.84",
DFID,DFID,12/09/2017,Project delivery costs – supplier services ,Policy Division ,Foreign & Commonwealth Office ,201724-124 ,"1,150.44",
DFID,DFID,12/09/2017,Project delivery costs – supplier services ,Policy Division ,Foreign & Commonwealth Office ,201724-124 ,885.81,
DFID,DFID,04/09/2017,Air fares ,Research and Evidence Division ,Corporate Travel Provider ,202331-101 ,"1,005.67",
DFID,DFID,04/09/2017,Air fares ,Research and Evidence Division ,Corporate Travel Provider ,202331-101 ,"1,005.67",
DFID,DFID,04/09/2017,Hotels - Accommodation only ,Research and Evidence Division ,Corporate Travel Provider ,202331-101 ,763.60,
DFID,DFID,04/09/2017,Hotels - Accommodation only ,Research and Evidence Division ,Corporate Travel Provider ,202331-101 ,799.49,
DFID,DFID,04/09/2017,Air fares ,Research and Evidence Division ,Corporate Travel Provider ,202331-101 ,"1,001.47",
DFID,DFID,04/09/2017,Hotels - Accommodation only ,Economic Development Division ,Corporate Travel Provider ,202259-101 ,928.40,
DFID,DFID,04/09/2017,Air fares ,Economic Development Division ,Corporate Travel Provider ,202373-101 ,705.87,
DFID,DFID,04/09/2017,Air fares ,Economic Development Division ,Corporate Travel Provider ,202373-101 ,806.17,
DFID,DFID,04/09/2017,Air fares ,Economic Development Division ,Corporate Travel Provider ,202373-101 ,"1,015.80",
DFID,DFID,04/09/2017,Air fares ,Economic Development Division ,Corporate Travel Provider ,202373-101 ,522.87,
DFID,DFID,04/09/2017,Hotels - Accommodation only ,Economic Development Division ,Corporate Travel Provider ,202373-101 ,"1,071.00",
DFID,DFID,04/09/2017,Air fares ,Research and Evidence Division ,Corporate Travel Provider ,202392-101 ,714.11,
DFID,DFID,04/09/2017,Air fares ,Research and Evidence Division ,Corporate Travel Provider ,202392-104 ,528.27,
DFID,DFID,04/09/2017,Air fares ,Research and Evidence Division ,Corporate Travel Provider ,202392-104 ,"1,160.97",
DFID,DFID,04/09/2017,Air fares ,Research and Evidence Division ,Corporate Travel Provider ,202392-105 ,923.07,
DFID,DFID,04/09/2017,Air fares ,Research and Evidence Division ,Corporate Travel Provider ,202392-106 ,739.43,
DFID,DFID,04/09/2017,Air fares ,Research and Evidence Division ,Corporate Travel Provider ,202392-106 ,689.32,
DFID,DFID,04/09/2017,Air fares ,Research and Evidence Division ,Corporate Travel Provider ,202392-107 ,"1,018.37",
DFID,DFID,04/09/2017,Hotels - Accommodation only ,Research and Evidence Division ,Corporate Travel Provider ,202392-109 ,544.65,
DFID,DFID,04/09/2017,Hotels - Accommodation only ,Research and Evidence Division ,Corporate Travel Provider ,202392-111 ,544.65,
DFID,DFID,04/09/2017,Air fares ,Policy Division ,Corporate Travel Provider ,202396-101 ,702.26,
DFID,DFID,04/09/2017,Air fares ,Policy Division ,Corporate Travel Provider ,202396-101 ,731.67,
DFID,DFID,04/09/2017,Air fares ,Policy Division ,Corporate Travel Provider ,202402-107 ,923.07,
DFID,DFID,04/09/2017,Air fares ,Policy Division ,Corporate Travel Provider ,202402-107 ,577.77,
DFID,DFID,04/09/2017,Hotels - Accommodation only ,Policy Division ,Corporate Travel Provider ,202402-107 ,881.09,
DFID,DFID,15/09/2017,Project delivery costs – supplier services ,Asia  Caribbean and Overseas Territories ,Foreign & Commonwealth Office ,202403-101 ,"2,097.02",
DFID,DFID,04/09/2017,Hotels - Accommodation only ,Conflict  Humanitarian  Security & Stabilisation Division ,Corporate Travel Provider ,202410-109 ,733.66,
DFID,DFID,04/09/2017,Air fares ,Conflict  Humanitarian  Security & Stabilisation Division ,Corporate Travel Provider ,202410-109 ,880.87,
DFID,DFID,04/09/2017,Air fares ,Conflict  Humanitarian  Security & Stabilisation Division ,Corporate Travel Provider ,202410-109 ,"1,554.57",
DFID,DFID,04/09/2017,Hotels - Accommodation only ,Conflict  Humanitarian  Security & Stabilisation Division ,Corporate Travel Provider ,202410-109 ,"1,208.76",
DFID,DFID,04/09/2017,Air fares ,Policy Division ,Corporate Travel Provider ,202419-101 ,526.47,
DFID,DFID,04/09/2017,Air fares ,Policy Division ,Corporate Travel Provider ,202419-101 ,583.43,
DFID,DFID,04/09/2017,Air fares ,Policy Division ,Corporate Travel Provider ,202419-101 ,843.87,
DFID,DFID,04/09/2017,Hotels - Accommodation only ,Policy Division ,Corporate Travel Provider ,202419-101 ,858.99,
DFID,DFID,04/09/2017,Air fares ,East and Central Africa ,Corporate Travel Provider ,202594-101 ,"1,141.37",
DFID,DFID,04/09/2017,Air fares ,East and Central Africa ,Corporate Travel Provider ,202594-101 ,"1,841.64",
DFID,DFID,04/09/2017,Air fares ,East and Central Africa ,Corporate Travel Provider ,202594-101 ,795.47,
DFID,DFID,04/09/2017,Air fares ,East and Central Africa ,Corporate Travel Provider ,202594-101 ,545.50,
DFID,DFID,04/09/2017,Air fares ,East and Central Africa ,Corporate Travel Provider ,202594-101 ,"2,872.77",
DFID,DFID,04/09/2017,Air fares ,East and Central Africa ,Corporate Travel Provider ,202594-101 ,620.27,
DFID,DFID,04/09/2017,Air fares ,East and Central Africa ,Corporate Travel Provider ,202594-101 ,"1,003.30",
DFID,DFID,04/09/2017,Hotels - Accommodation only ,East and Central Africa ,Corporate Travel Provider ,202594-101 ,590.96,
DFID,DFID,04/09/2017,Air fares ,East and Central Africa ,Corporate Travel Provider ,202594-101 ,"1,133.77",
DFID,DFID,04/09/2017,Air fares ,East and Central Africa ,Corporate Travel Provider ,202594-101 ,528.67,
DFID,DFID,04/09/2017,Air fares ,East and Central Africa ,Corporate Travel Provider ,202594-101 ,596.70,
DFID,DFID,04/09/2017,Air fares ,East and Central Africa ,Corporate Travel Provider ,202594-101 ,530.37,
DFID,DFID,04/09/2017,Air fares ,East and Central Africa ,Corporate Travel Provider ,202594-101 ,805.78,
DFID,DFID,04/09/2017,Air fares ,East and Central Africa ,Corporate Travel Provider ,202594-101 ,825.58,
DFID,DFID,04/09/2017,Air fares ,East and Central Africa ,Corporate Travel Provider ,202594-101 ,"2,077.00",
DFID,DFID,04/09/2017,Air fares ,East and Central Africa ,Corporate Travel Provider ,202594-101 ,801.67,
DFID,DFID,04/09/2017,Air fares ,East and Central Africa ,Corporate Travel Provider ,202594-101 ,778.97,
DFID,DFID,04/09/2017,Air fares ,East and Central Africa ,Corporate Travel Provider ,202594-101 ,"1,011.17",
DFID,DFID,04/09/2017,Air fares ,East and Central Africa ,Corporate Travel Provider ,202594-102 ,570.00,
DFID,DFID,04/09/2017,Air fares ,East and Central Africa ,Corporate Travel Provider ,202594-102 ,514.70,
DFID,DFID,04/09/2017,Air fares ,East and Central Africa ,Corporate Travel Provider ,202594-102 ,569.00,
DFID,DFID,04/09/2017,Air fares ,Economic Development Division ,Corporate Travel Provider ,202432-101 ,583.97,
DFID,DFID,04/09/2017,Air fares ,Economic Development Division ,Corporate Travel Provider ,202432-101 ,806.77,
DFID,DFID,04/09/2017,Air fares ,Economic Development Division ,Corporate Travel Provider ,202432-101 ,554.27,
DFID,DFID,04/09/2017,Training - Course Fees ,Conflict  Humanitarian  Security & Stabilisation Division ,Indigo Business Services Ltd,202410-107 ,"1,050.00",
DFID,DFID,04/09/2017,Air fares ,Conflict  Humanitarian  Security & Stabilisation Division ,Corporate Travel Provider ,202410-108 ,668.37,
DFID,DFID,04/09/2017,Air fares ,West and Southern Africa ,Corporate Travel Provider ,202732-102 ,571.58,
DFID,DFID,04/09/2017,Air fares ,West and Southern Africa ,Corporate Travel Provider ,202732-102 ,617.71,
DFID,DFID,04/09/2017,Other Professional Development ,Finance and Corporate Performance Division ,CIPFA,202836-101 ,892.80,
DFID,DFID,15/09/2017,Project delivery costs – supplier services ,Policy Division ,Foreign & Commonwealth Office ,203146-101 ,"3,328.65",
DFID,DFID,15/09/2017,Project delivery costs – supplier services ,Policy Division ,Foreign & Commonwealth Office ,203146-101 ,"3,448.46",
DFID,DFID,07/09/2017,Air fares ,Business Solutions Division Level ,Foreign & Commonwealth Office ,203329-101 ,538.26,
DFID,DFID,04/09/2017,Air fares ,Business Solutions Division Level ,Corporate Travel Provider ,203329-104 ,723.33,
DFID,DFID,04/09/2017,Air fares ,Business Solutions Division Level ,Corporate Travel Provider ,203329-104 ,670.80,
DFID,DFID,04/09/2017,Air fares ,Business Solutions Division Level ,Corporate Travel Provider ,203329-104 ,"1,083.17",
DFID,DFID,04/09/2017,Air fares ,East and Central Africa ,Corporate Travel Provider ,203357-114 ,621.39,
DFID,DFID,04/09/2017,Air fares ,East and Central Africa ,Corporate Travel Provider ,203357-114 ,621.39,
DFID,DFID,04/09/2017,Air fares ,East and Central Africa ,Corporate Travel Provider ,203357-114 ,621.39,
DFID,DFID,04/09/2017,Air fares ,East and Central Africa ,Corporate Travel Provider ,203357-114 ,621.39,
DFID,DFID,04/09/2017,Air fares ,East and Central Africa ,Corporate Travel Provider ,203357-114 ,621.39,
DFID,DFID,04/09/2017,Air fares ,East and Central Africa ,Corporate Travel Provider ,203357-114 ,621.39,
DFID,DFID,04/09/2017,Hotels - Accommodation only ,West and Southern Africa ,Corporate Travel Provider ,203627-106 ,655.39,
DFID,DFID,04/09/2017,Hotels - Accommodation only ,West and Southern Africa ,Corporate Travel Provider ,203627-106 ,663.15,
DFID,DFID,04/09/2017,Air fares ,Finance and Corporate Performance Division ,Corporate Travel Provider ,203698-101 ,"1,000.17",
DFID,DFID,04/09/2017,Hotels - Accommodation only ,Finance and Corporate Performance Division ,Corporate Travel Provider ,100201-101 ,800.00,
DFID,DFID,04/09/2017,Air fares ,Research and Evidence Division ,Corporate Travel Provider ,203874-103 ,531.87,
DFID,DFID,04/09/2017,Air fares ,Research and Evidence Division ,Corporate Travel Provider ,203874-103 ,"1,068.20",
DFID,DFID,04/09/2017,Air fares ,Asia  Caribbean and Overseas Territories ,Corporate Travel Provider ,204053-101 ,547.67,
DFID,DFID,14/09/2017,Mobile telephones & accessories ,Asia  Caribbean and Overseas Territories ,Foreign & Commonwealth Office ,204053-101 ,"3,587.00",
DFID,DFID,04/09/2017,Hotels - Accommodation only ,Asia  Caribbean and Overseas Territories ,Corporate Travel Provider ,204053-101 ,781.40,
DFID,DFID,04/09/2017,Air fares ,Asia  Caribbean and Overseas Territories ,Corporate Travel Provider ,204053-101 ,"5,655.97",
DFID,DFID,04/09/2017,Air fares ,Middle East and North Africa Division ,Corporate Travel Provider ,204055-101 ,692.87,
DFID,DFID,04/09/2017,Hotels - Accommodation only ,Middle East and North Africa Division ,Corporate Travel Provider ,204055-101 ,629.73,
DFID,DFID,04/09/2017,Air fares ,Middle East and North Africa Division ,Corporate Travel Provider ,204055-101 ,843.87,
DFID,DFID,04/09/2017,Air fares ,Middle East and North Africa Division ,Corporate Travel Provider ,204055-101 ,782.97,
DFID,DFID,04/09/2017,Air fares ,Middle East and North Africa Division ,Corporate Travel Provider ,204055-101 ,"1,186.97",
DFID,DFID,12/09/2017,Air fares ,Middle East and North Africa Division ,Foreign & Commonwealth Office ,204055-101 ,631.51,
DFID,DFID,04/09/2017,Air fares ,Middle East and North Africa Division ,Corporate Travel Provider ,204055-101 ,719.77,
DFID,DFID,04/09/2017,Air fares ,Middle East and North Africa Division ,Corporate Travel Provider ,204055-101 ,873.12,
DFID,DFID,04/09/2017,Air fares ,Middle East and North Africa Division ,Corporate Travel Provider ,204055-101 ,529.87,
DFID,DFID,04/09/2017,Air fares ,Middle East and North Africa Division ,Corporate Travel Provider ,204055-101 ,873.12,
DFID,DFID,04/09/2017,Air fares ,Middle East and North Africa Division ,Corporate Travel Provider ,204055-101 ,967.77,
DFID,DFID,04/09/2017,Air fares ,Middle East and North Africa Division ,Corporate Travel Provider ,204055-101 ,764.97,
DFID,DFID,04/09/2017,Air fares ,Middle East and North Africa Division ,Corporate Travel Provider ,204055-101 ,"1,447.40",
DFID,DFID,04/09/2017,Air fares ,Middle East and North Africa Division ,Corporate Travel Provider ,204084-101 ,631.10,
DFID,DFID,04/09/2017,Air fares ,Middle East and North Africa Division ,Corporate Travel Provider ,204084-101 ,641.50,
DFID,DFID,04/09/2017,Hotels - Accommodation only ,East and Central Africa ,Corporate Travel Provider ,204323-107 ,561.00,
DFID,DFID,15/09/2017,Project delivery costs – supplier services ,East and Central Africa ,Foreign & Commonwealth Office ,204439-103 ,"4,777.68",
DFID,DFID,15/09/2017,Project delivery costs – supplier services ,East and Central Africa ,Foreign & Commonwealth Office ,204439-103 ,"1,047.63",
DFID,DFID,15/09/2017,Project delivery costs – supplier services ,East and Central Africa ,Foreign & Commonwealth Office ,204439-103 ,953.06,
DFID,DFID,12/09/2017,Project delivery costs – supplier services ,East and Central Africa ,Foreign & Commonwealth Office ,204439-103 ,"17,046.05",
DFID,DFID,07/09/2017,Project delivery costs – supplier services ,East and Central Africa ,Foreign & Commonwealth Office ,204439-103 ,"1,092.04",
DFID,DFID,07/09/2017,Project delivery costs – supplier services ,East and Central Africa ,Foreign & Commonwealth Office ,204439-103 ,"19,626.71",
DFID,DFID,14/09/2017,Air fares ,Policy Division ,Foreign & Commonwealth Office ,204452-101 ,902.03,
DFID,DFID,04/09/2017,Air fares ,Policy Division ,Corporate Travel Provider ,204452-101 ,772.57,
DFID,DFID,04/09/2017,Hotels - Accommodation only ,Asia  Caribbean and Overseas Territories ,Corporate Travel Provider ,204604-107 ,904.77,
DFID,DFID,14/09/2017,Aid Programme - Accountable Grant Payments ,Asia  Caribbean and Overseas Territories ,Foreign & Commonwealth Office ,204613-102 ,"21,000.00",
DFID,DFID,04/09/2017,Air fares ,West and Southern Africa ,Corporate Travel Provider ,204643-101 ,"1,176.27",
DFID,DFID,04/09/2017,Air fares ,Research and Evidence Division ,Corporate Travel Provider ,204815-101 ,583.48,
DFID,DFID,04/09/2017,Air fares ,Country Programmes Cabinet ,Corporate Travel Provider ,204832-101 ,587.48,
DFID,DFID,04/09/2017,Air fares ,Finance and Corporate Performance Division ,Corporate Travel Provider ,204846-101 ,511.92,
DFID,DFID,04/09/2017,Air fares ,Non-Departmental Public Body ,Corporate Travel Provider ,204873-103 ,"1,115.87",
DFID,DFID,04/09/2017,Air fares ,West and Southern Africa ,Corporate Travel Provider ,204918-101 ,"1,327.40",
DFID,DFID,04/09/2017,Air fares ,Middle East and North Africa Division ,Corporate Travel Provider ,204981-101 ,799.47,
DFID,DFID,04/09/2017,Air fares ,Middle East and North Africa Division ,Corporate Travel Provider ,204981-101 ,614.77,
DFID,DFID,04/09/2017,Air fares ,Middle East and North Africa Division ,Corporate Travel Provider ,204981-101 ,"1,771.27",
DFID,DFID,04/09/2017,Hotels - Accommodation only ,Middle East and North Africa Division ,Corporate Travel Provider ,204983-101 ,618.20,
DFID,DFID,04/09/2017,Air fares ,PGP Directorate ,Corporate Travel Provider ,205044-101 ,984.07,
DFID,DFID,04/09/2017,Air fares ,Middle East and North Africa Division ,Corporate Travel Provider ,300078-101 ,638.80,
DFID,DFID,04/09/2017,Air fares ,Middle East and North Africa Division ,Corporate Travel Provider ,300078-101 ,845.79,
DFID,DFID,04/09/2017,Air fares ,Middle East and North Africa Division ,Corporate Travel Provider ,300078-101 ,858.09,
DFID,DFID,04/09/2017,Hotels - Accommodation only ,Middle East and North Africa Division ,Corporate Travel Provider ,300078-101 ,653.58,
DFID,DFID,04/09/2017,Air fares ,Middle East and North Africa Division ,Corporate Travel Provider ,300078-101 ,700.20,
DFID,DFID,12/09/2017,Medical/Health Services ,Middle East and North Africa Division ,Foreign & Commonwealth Office ,300078-101 ,"10,266.96",
DFID,DFID,12/09/2017,Hotels - Accommodation only ,Middle East and North Africa Division ,Foreign & Commonwealth Office ,300078-101 ,"1,951.25",
DFID,DFID,04/09/2017,Air fares ,Middle East and North Africa Division ,Corporate Travel Provider ,300078-101 ,521.27,
DFID,DFID,04/09/2017,Air fares ,Middle East and North Africa Division ,Corporate Travel Provider ,300078-101 ,521.27,
DFID,DFID,04/09/2017,Air fares ,Middle East and North Africa Division ,Corporate Travel Provider ,300080-101 ,"1,291.17",
DFID,DFID,04/09/2017,Air fares ,Middle East and North Africa Division ,Corporate Travel Provider ,300080-101 ,923.10,
DFID,DFID,04/09/2017,Air fares ,Middle East and North Africa Division ,Corporate Travel Provider ,300080-101 ,"1,087.57",
DFID,DFID,15/09/2017,Travel - Subsistence ,Middle East and North Africa Division ,Foreign & Commonwealth Office ,300080-101 ,647.92,
DFID,DFID,04/09/2017,Air fares ,Middle East and North Africa Division ,Corporate Travel Provider ,300080-101 ,924.47,
DFID,DFID,04/09/2017,Air fares ,Middle East and North Africa Division ,Corporate Travel Provider ,300080-101 ,898.47,
DFID,DFID,04/09/2017,Air fares ,Middle East and North Africa Division ,Corporate Travel Provider ,300080-101 ,652.97,
DFID,DFID,04/09/2017,Hotels - Accommodation only ,Middle East and North Africa Division ,Corporate Travel Provider ,300080-101 ,805.44,
DFID,DFID,04/09/2017,Air fares ,Conflict  Humanitarian  Security & Stabilisation Division ,Corporate Travel Provider ,205279-102 ,687.87,
DFID,DFID,04/09/2017,Air fares ,Conflict  Humanitarian  Security & Stabilisation Division ,Corporate Travel Provider ,205279-102 ,"1,478.00",
DFID,DFID,04/09/2017,Air fares ,Conflict  Humanitarian  Security & Stabilisation Division ,Corporate Travel Provider ,205279-102 ,576.80,
DFID,DFID,04/09/2017,Air fares ,Conflict  Humanitarian  Security & Stabilisation Division ,Corporate Travel Provider ,205280-101 ,687.87,
DFID,DFID,04/09/2017,Air fares ,Conflict  Humanitarian  Security & Stabilisation Division ,Corporate Travel Provider ,205280-102 ,834.77,
DFID,DFID,04/09/2017,Air fares ,Conflict  Humanitarian  Security & Stabilisation Division ,Corporate Travel Provider ,205280-102 ,834.77,
DFID,DFID,15/09/2017,Secure Staff Accommodation ,Asia  Caribbean and Overseas Territories ,Foreign & Commonwealth Office ,300003-101 ,"3,556.68",
DFID,DFID,12/09/2017,Auditors Remuneration & Expenses - Cash ,Asia  Caribbean and Overseas Territories ,Foreign & Commonwealth Office ,300003-106 ,"1,150.67",
DFID,DFID,04/09/2017,Hotels - Accommodation only ,Economic Development Division ,Corporate Travel Provider ,205081-101 ,874.34,
DFID,DFID,15/09/2017,Air fares ,Asia  Caribbean and Overseas Territories ,Foreign & Commonwealth Office ,205101-105 ,"1,033.14",
DFID,DFID,14/09/2017,Secure Staff Accommodation ,Asia  Caribbean and Overseas Territories ,Foreign & Commonwealth Office ,205101-105 ,"10,565.23",
DFID,DFID,15/09/2017,Secure Staff Accommodation ,Asia  Caribbean and Overseas Territories ,Foreign & Commonwealth Office ,205138-103 ,"3,402.79",
DFID,DFID,04/09/2017,Air fares ,Asia  Caribbean and Overseas Territories ,Corporate Travel Provider ,205138-103 ,763.57,
DFID,DFID,12/09/2017,Hotels - Accommodation only ,Conflict  Humanitarian  Security & Stabilisation Division ,Foreign & Commonwealth Office ,300264-108 ,671.56,
DFID,DFID,14/09/2017,Secure Staff Accommodation ,Conflict  Humanitarian  Security & Stabilisation Division ,Foreign & Commonwealth Office ,300264-108 ,671.56,
DFID,DFID,04/09/2017,Air fares ,Policy Division ,Corporate Travel Provider ,300033-101 ,"1,231.40",
DFID,DFID,04/09/2017,Hotels - Accommodation only ,Policy Division ,Corporate Travel Provider ,300033-101 ,542.02,
DFID,DFID,19/09/2017,Project delivery costs – supplier services ,West and Southern Africa ,ADAM SMITH INTERNATIONAL  LTD ,202678-106 ,"84,195.00",
DFID,DFID,04/09/2017,Project delivery costs – supplier services ,West and Southern Africa ,ADAM SMITH INTERNATIONAL  LTD ,203161-103 ,"689,497.65",
DFID,DFID,01/09/2017,Project delivery costs – supplier services ,West and Southern Africa ,ADAM SMITH INTERNATIONAL  LTD ,203839-101 ,"54,656.62",
DFID,DFID,14/09/2017,Project delivery costs – supplier services ,East and Central Africa ,ADAM SMITH INTERNATIONAL  LTD ,202541-110 ,"1,074,309.68",
DFID,DFID,05/09/2017,Project delivery costs – supplier services ,Asia  Caribbean and Overseas Territories ,ADAM SMITH INTERNATIONAL  LTD ,204619-104 ,"29,285.40",
DFID,DFID,06/09/2017,Project delivery costs – supplier services ,West and Southern Africa ,ADAM SMITH INTERNATIONAL  LTD ,204659-104 ,"128,156.16",
DFID,DFID,06/09/2017,Project delivery costs – supplier services ,West and Southern Africa ,ADAM SMITH INTERNATIONAL  LTD ,204659-104 ,"133,885.20",
DFID,DFID,18/09/2017,Project delivery costs – supplier services ,East and Central Africa ,ADAM SMITH INTERNATIONAL  LTD ,204456-105 ,"16,492.43",
DFID,DFID,22/09/2017,Project delivery costs – supplier services ,West and Southern Africa ,ADAM SMITH INTERNATIONAL  LTD ,203674-102 ,"102,960.08",
DFID,DFID,22/09/2017,Project delivery costs – supplier services ,West and Southern Africa ,ADAM SMITH INTERNATIONAL  LTD ,203674-103 ,"3,333.33",
DFID,DFID,01/09/2017,Project delivery costs – supplier services ,West and Southern Africa ,ADAM SMITH INTERNATIONAL  LTD ,203839-101 ,"140,623.35",
DFID,DFID,28/09/2017,Project delivery costs – supplier services ,West and Southern Africa ,ADAM SMITH INTERNATIONAL  LTD ,202584-106 ,"361,799.36",
DFID,DFID,28/09/2017,Project delivery costs – supplier services ,West and Southern Africa ,ADAM SMITH INTERNATIONAL  LTD ,202584-106 ,"148,625.28",
DFID,DFID,28/09/2017,Project delivery costs – supplier services ,West and Southern Africa ,ADAM SMITH INTERNATIONAL  LTD ,202584-106 ,"282,679.42",
DFID,DFID,28/09/2017,Project delivery costs – supplier services ,West and Southern Africa ,ADAM SMITH INTERNATIONAL  LTD ,203824-103 ,"149,727.28",
DFID,DFID,29/09/2017,Project delivery costs – supplier services ,Middle East and North Africa Division ,ADAM SMITH INTERNATIONAL  LTD ,300011-101 ,"116,886.07",
DFID,DFID,29/09/2017,Project delivery costs – supplier services ,Middle East and North Africa Division ,ADAM SMITH INTERNATIONAL  LTD ,300011-101 ,"93,249.00",
DFID,DFID,29/09/2017,Project delivery costs – supplier services ,East and Central Africa ,ADAM SMITH INTERNATIONAL  LTD ,203153-103 ,"107,472.83",
DFID,DFID,28/09/2017,Project delivery costs – supplier services ,Asia  Caribbean and Overseas Territories ,Supplier Name withheld ,204122-104 ,"487,246.00",
DFID,DFID,28/09/2017,Project delivery costs – supplier services ,Asia  Caribbean and Overseas Territories ,Supplier Name withheld ,204122-105 ,"549,446.19",
DFID,DFID,28/09/2017,Project delivery costs – supplier services ,Asia  Caribbean and Overseas Territories ,Supplier Name withheld ,204122-101 ,"153,517.35",
DFID,DFID,01/09/2017,Aid Programme - Accountable Grant Payments ,Policy Division ,BRITISH COUNCIL (UK) ,205033-101 ,"1,329,651.08",
DFID,DFID,04/09/2017,Aid Programme - Joint programme contribution ,Research and Evidence Division ,Natural Environment Research Council ,112082-104 ,"340,000.00",
DFID,DFID,05/09/2017,Aid Programme - Joint programme contribution ,Research and Evidence Division ,Natural Environment Research Council ,201884-106 ,"390,000.00",
DFID,DFID,11/09/2017,Aid Programme - Joint programme contribution ,Research and Evidence Division ,Natural Environment Research Council ,203835-103 ,"805,000.00",
DFID,DFID,05/09/2017,Aid Programme - Joint programme contribution ,Research and Evidence Division ,Natural Environment Research Council ,203774-103 ,"480,000.00",
DFID,DFID,05/09/2017,Aid Programme - Voluntary contributions ,Asia  Caribbean and Overseas Territories ,BRITISH RED CROSS ,300003-107 ,"276,610.00",
DFID,DFID,26/09/2017,Aid Programme - Voluntary contributions ,Asia  Caribbean and Overseas Territories ,BRITISH RED CROSS ,300003-110 ,"400,000.00",
DFID,DFID,19/09/2017,Research and development costs - supplier services ,Middle East and North Africa Division ,THE SPRINGFIELD CENTRE ,300060-102 ,"6,530.00",
DFID,DFID,13/09/2017,Data Network - land lines ,Business Solutions Division Level ,BT BACS PAYMENTS ,200002-130 ,"2,509.37",
DFID,DFID,07/09/2017,Project delivery costs – supplier services ,Policy Division ,BRITISH COUNCIL ,203166-101 ,"371,975.70",
DFID,DFID,26/09/2017,Project delivery costs – supplier services ,West and Southern Africa ,BRITISH COUNCIL ,201625-101 ,"335,303.14",
DFID,DFID,05/09/2017,Project delivery costs – supplier services ,West and Southern Africa ,BRITISH COUNCIL ,201625-101 ,"377,666.50",
DFID,DFID,07/09/2017,Project delivery costs – supplier services ,East and Central Africa ,BRITISH COUNCIL ,203396-103 ,"397,447.00",
DFID,DFID,05/09/2017,Aid Programme - Accountable Grant Payments ,Policy Division ,CHRISTIAN AID ,203559-130 ,"139,849.00",
DFID,DFID,13/09/2017,Aid Programme - Accountable Grant Payments ,West and Southern Africa ,CHRISTIAN AID ,201196-112 ,"268,990.00",
DFID,DFID,05/09/2017,Aid Programme - Accountable Grant Payments ,Policy Division ,CHRISTIAN AID ,203559-149 ,"186,526.00",
DFID,DFID,11/09/2017,Project delivery costs – supplier services ,Conflict  Humanitarian  Security & Stabilisation Division ,Crown Agents. ,202741-104 ,"12,126.00",
DFID,DFID,13/09/2017,Project delivery costs – supplier services ,Conflict  Humanitarian  Security & Stabilisation Division ,Crown Agents. ,202741-104 ,"2,538.00",
DFID,DFID,11/09/2017,Project delivery costs – supplier services ,East and Central Africa ,Crown Agents. ,300280-106 ,"1,853.45",
DFID,DFID,18/09/2017,Project delivery costs – supplier services ,East and Central Africa ,Crown Agents. ,300280-106 ,"1,141.13",
DFID,DFID,29/09/2017,Project delivery costs – supplier services ,West and Southern Africa ,Crown Agents. ,205161-103 ,"2,000.00",
DFID,DFID,11/09/2017,Project delivery costs – supplier services ,West and Southern Africa ,Crown Agents. ,300432-105 ,"1,227.07",
DFID,DFID,01/09/2017,Project delivery costs – supplier services ,West and Southern Africa ,Crown Agents. ,202416-115 ,"1,316.72",
DFID,DFID,11/09/2017,Project delivery costs – supplier services ,West and Southern Africa ,Crown Agents. ,202416-115 ,"1,280.29",
DFID,DFID,29/09/2017,Project delivery costs – supplier services ,West and Southern Africa ,Crown Agents. ,202416-120 ,"9,684.00",
DFID,DFID,06/09/2017,Project delivery costs – supplier services ,Asia  Caribbean and Overseas Territories ,Crown Agents. ,205138-103 ,"4,300.00",
DFID,DFID,15/09/2017,Project delivery costs – supplier services ,Asia  Caribbean and Overseas Territories ,Crown Agents. ,205138-103 ,"2,230.95",
DFID,DFID,05/09/2017,Project delivery costs – supplier services ,Asia  Caribbean and Overseas Territories ,Crown Agents. ,205138-103 ,"1,345.87",
DFID,DFID,05/09/2017,Project delivery costs – supplier services ,Asia  Caribbean and Overseas Territories ,Crown Agents. ,205138-103 ,"1,856.83",
DFID,DFID,26/09/2017,Project delivery costs – supplier services ,Middle East and North Africa Division ,Crown Agents. ,204016-103 ,"1,913.48",
DFID,DFID,15/09/2017,Project delivery costs – supplier services ,Middle East and North Africa Division ,Crown Agents. ,204016-103 ,"13,497.60",
DFID,DFID,04/09/2017,Project delivery costs – supplier services ,Middle East and North Africa Division ,Crown Agents. ,204016-103 ,"5,280.00",
DFID,DFID,13/09/2017,Project delivery costs – supplier services ,East and Central Africa ,Crown Agents. ,300047-107 ,"3,058.62",
DFID,DFID,13/09/2017,Project delivery costs – supplier services ,East and Central Africa ,Crown Agents. ,300047-107 ,544.00,
DFID,DFID,29/09/2017,Project delivery costs – supplier services ,West and Southern Africa ,Crown Agents. ,300432-105 ,"4,341.70",
DFID,DFID,29/09/2017,Project delivery costs – supplier services ,West and Southern Africa ,Crown Agents. ,205161-103 ,"1,315.00",
DFID,DFID,19/09/2017,Aid Programme - Humanitarian Material Relief Assistance and Services ,Conflict  Humanitarian  Security & Stabilisation Division ,Crown Agents. ,300491-102 ,"241,268.49",
DFID,DFID,28/09/2017,Aid Programme - Humanitarian Material Relief Assistance and Services ,Conflict  Humanitarian  Security & Stabilisation Division ,Crown Agents. ,300491-102 ,"52,830.00",
DFID,DFID,28/09/2017,Aid Programme - Humanitarian Material Relief Assistance and Services ,Conflict  Humanitarian  Security & Stabilisation Division ,Crown Agents. ,300491-102 ,"157,823.20",
DFID,DFID,26/09/2017,Aid Programme - Humanitarian Material Relief Assistance and Services ,Conflict  Humanitarian  Security & Stabilisation Division ,Crown Agents. ,300491-102 ,"311,259.17",
DFID,DFID,18/09/2017,Aid Programme - Humanitarian Material Relief Assistance and Services ,Conflict  Humanitarian  Security & Stabilisation Division ,Crown Agents. ,300491-102 ,"128,672.57",
DFID,DFID,20/09/2017,Aid Programme - Humanitarian Material Relief Assistance and Services ,Conflict  Humanitarian  Security & Stabilisation Division ,Crown Agents. ,300491-102 ,"524,966.15",
DFID,DFID,20/09/2017,Aid Programme - Humanitarian Material Relief Assistance and Services ,Conflict  Humanitarian  Security & Stabilisation Division ,Crown Agents. ,300491-102 ,"114,391.54",
DFID,DFID,15/09/2017,Aid Programme - Humanitarian Material Relief Assistance and Services ,Conflict  Humanitarian  Security & Stabilisation Division ,Crown Agents. ,300491-102 ,"356,000.00",
DFID,DFID,15/09/2017,Project delivery costs – supplier services ,Conflict  Humanitarian  Security & Stabilisation Division ,Crown Agents. ,300491-102 ,"100,000.00",
DFID,DFID,20/09/2017,Project delivery costs – supplier services ,Conflict  Humanitarian  Security & Stabilisation Division ,Crown Agents. ,202741-106 ,"320,455.20",
DFID,DFID,05/09/2017,Hostile Environment Training ,Conflict  Humanitarian  Security & Stabilisation Division ,Crown Agents. ,202410-108 ,"2,040.00",
DFID,DFID,29/09/2017,Project delivery costs – supplier services ,Conflict  Humanitarian  Security & Stabilisation Division ,Crown Agents. ,203416-102 ,"34,131.45",
DFID,DFID,05/09/2017,Project delivery costs – supplier services ,Conflict  Humanitarian  Security & Stabilisation Division ,Crown Agents. ,203416-102 ,"1,045.27",
DFID,DFID,05/09/2017,Project delivery costs – supplier services ,Conflict  Humanitarian  Security & Stabilisation Division ,Crown Agents. ,203416-102 ,"1,879.20",
DFID,DFID,05/09/2017,Project delivery costs – supplier services ,Conflict  Humanitarian  Security & Stabilisation Division ,Crown Agents. ,205038-107 ,"11,668.80",
DFID,DFID,14/09/2017,Aid Programme - Humanitarian Material Relief Assistance and Services ,Asia  Caribbean and Overseas Territories ,Crown Agents. ,204603-101 ,"1,905.00",
DFID,DFID,01/09/2017,Project delivery costs – supplier services ,Middle East and North Africa Division ,Crown Agents. ,300045-102 ,"14,070.00",
DFID,DFID,29/09/2017,Project delivery costs – supplier services ,Middle East and North Africa Division ,Crown Agents. ,300045-102 ,"5,065.20",
DFID,DFID,21/09/2017,Project delivery costs – supplier services ,East and Central Africa ,Crown Agents. ,205286-105 ,"5,163.29",
DFID,DFID,01/09/2017,Project delivery costs – supplier services ,East and Central Africa ,Crown Agents. ,205286-105 ,"6,854.40",
DFID,DFID,05/09/2017,Project delivery costs – supplier services ,East and Central Africa ,Crown Agents. ,204439-103 ,"9,856.80",
DFID,DFID,07/09/2017,Project delivery costs – supplier services ,East and Central Africa ,Crown Agents. ,204439-103 ,"1,363.07",
DFID,DFID,07/09/2017,Project delivery costs – supplier services ,East and Central Africa ,Crown Agents. ,204439-103 ,"10,389.60",
DFID,DFID,14/09/2017,Project delivery costs – supplier services ,East and Central Africa ,Crown Agents. ,204439-103 ,"6,459.39",
DFID,DFID,19/09/2017,Project delivery costs – supplier services ,East and Central Africa ,Crown Agents. ,204439-103 ,"11,520.00",
DFID,DFID,01/09/2017,Project delivery costs – supplier services ,East and Central Africa ,Crown Agents. ,204439-103 ,"15,100.80",
DFID,DFID,13/09/2017,Aid Programme - Humanitarian Material Relief Assistance and Services ,Middle East and North Africa Division ,Crown Agents. ,204516-102 ,"37,143.00",
DFID,DFID,20/09/2017,Aid Programme - Humanitarian Material Relief Assistance and Services ,Middle East and North Africa Division ,Crown Agents. ,204516-102 ,"26,360.40",
DFID,DFID,01/09/2017,Aid Programme - Humanitarian Material Relief Assistance and Services ,Middle East and North Africa Division ,Crown Agents. ,204516-102 ,"12,130.52",
DFID,DFID,01/09/2017,Aid Programme - Humanitarian Material Relief Assistance and Services ,Middle East and North Africa Division ,Crown Agents. ,204516-102 ,"6,260.84",
DFID,DFID,01/09/2017,Aid Programme - Humanitarian Material Relief Assistance and Services ,Middle East and North Africa Division ,Crown Agents. ,204516-102 ,"14,150.40",
DFID,DFID,01/09/2017,Project delivery costs – supplier services ,West and Southern Africa ,Crown Agents. ,300298-105 ,997.82,
DFID,DFID,26/09/2017,Project delivery costs – supplier services ,East and Central Africa ,Crown Agents. ,202594-101 ,"1,708.74",
DFID,DFID,04/09/2017,Aid Programme - Humanitarian Material Relief Assistance and Services ,Middle East and North Africa Division ,Crown Agents. ,205094-104 ,"17,649.00",
DFID,DFID,15/09/2017,Aid Programme - Humanitarian Material Relief Assistance and Services ,Middle East and North Africa Division ,Crown Agents. ,205094-104 ,"21,859.20",
DFID,DFID,21/09/2017,Project delivery costs – supplier services ,East and Central Africa ,Crown Agents. ,205116-107 ,"1,443.69",
DFID,DFID,06/09/2017,Contract & Agency Staff,East and Central Africa ,Crown Agents. ,101612-101 ,"2,400.32",
DFID,DFID,19/09/2017,Contract & Agency Staff,East and Central Africa ,Crown Agents. ,101612-101 ,"5,715.00",
DFID,DFID,13/09/2017,Contract & Agency Staff,East and Central Africa ,Crown Agents. ,101612-101 ,790.07,
DFID,DFID,19/09/2017,Contract & Agency Staff,East and Central Africa ,Crown Agents. ,101612-101 ,"7,620.00",
DFID,DFID,06/09/2017,Contract & Agency Staff,East and Central Africa ,Crown Agents. ,101612-101 ,"1,491.02",
DFID,DFID,11/09/2017,Aid Programme - Humanitarian Material Relief Assistance and Services ,East and Central Africa ,Crown Agents. ,203462-102 ,798.97,
DFID,DFID,13/09/2017,Aid Programme - Humanitarian Material Relief Assistance and Services ,East and Central Africa ,Crown Agents. ,203462-102 ,793.37,
DFID,DFID,22/09/2017,Aid Programme - Humanitarian Material Relief Assistance and Services ,Conflict  Humanitarian  Security & Stabilisation Division ,Crown Agents. ,202878-103 ,"5,210.92",
DFID,DFID,22/09/2017,Aid Programme - Humanitarian Material Relief Assistance and Services ,Conflict  Humanitarian  Security & Stabilisation Division ,Crown Agents. ,202878-103 ,"40,003.78",
DFID,DFID,22/09/2017,Project delivery costs – supplier services ,Asia  Caribbean and Overseas Territories ,Crown Agents. ,300003-106 ,"1,419.19",
DFID,DFID,28/09/2017,Project delivery costs – supplier services ,Conflict  Humanitarian  Security & Stabilisation Division ,Crown Agents. ,202741-104 ,"182,742.00",
DFID,DFID,18/09/2017,Aid Programme - Accountable Grant Payments ,Policy Division ,CONCERN WORLDWIDE ,203559-120 ,"55,385.21",
DFID,DFID,11/09/2017,Aid Programme - Accountable Grant Payments ,Policy Division ,CONCERN WORLDWIDE ,203559-150 ,"102,359.00",
DFID,DFID,11/09/2017,AV Conferencing systems -hardware ,Business Solutions Division Level ,COMPUTACENTER (UK) LTD ,200002-197 ,"4,678.80",
DFID,DFID,28/09/2017,AV Conferencing systems -hardware ,Business Solutions Division Level ,COMPUTACENTER (UK) LTD ,200002-197 ,"5,520.00",
DFID,DFID,06/09/2017,Aid Programme - Accountable Grant Payments ,Asia  Caribbean and Overseas Territories ,CARE INTERNATIONAL UK ,203274-113 ,"198,885.00",
DFID,DFID,21/09/2017,Aid Programme - Accountable Grant Payments ,Asia  Caribbean and Overseas Territories ,CARE INTERNATIONAL UK ,205138-104 ,"365,447.00",
DFID,DFID,29/09/2017,Aid Programme - Accountable Grant Payments ,Research and Evidence Division ,CENTRE FOR ECONOMIC POLICY RESEARCH ,202835-104 ,"612,241.11",
DFID,DFID,11/09/2017,Aid Programme - Accountable Grant Payments ,Research and Evidence Division ,UNIVERSITY OF CAMBRIDGE ,201884-107 ,"57,008.16",
DFID,DFID,15/09/2017,Conferences  Seminars & Meeting/Event Resource ,Economic Development Division ,CHATHAM  HOUSE ENTERPRISES LIMITED ,100276-101 ,654.00,
DFID,DFID,22/09/2017,Storage & Distribution costs ,International Relations Division ,CROWN RELOCATIONS  UK ,100262-101 ,540.00,
DFID,DFID,22/09/2017,Storage & Distribution costs ,International Relations Division ,CROWN RELOCATIONS  UK ,100262-101 ,540.00,
DFID,DFID,13/09/2017,Training Providers/Facilitation Services ,Finance and Corporate Performance Division ,Capita  Business Services ,204846-101 ,"8,292.68",
DFID,DFID,28/09/2017,Training Providers/Facilitation Services ,Finance and Corporate Performance Division ,Capita  Business Services ,204846-101 ,"11,939.03",
DFID,DFID,27/09/2017,Training Providers/Facilitation Services ,West and Southern Africa ,Capita  Business Services ,101622-101 ,"5,047.87",
DFID,DFID,22/09/2017,Training Providers/Facilitation Services ,East and Central Africa ,Capita  Business Services ,101634-101 ,"1,820.04",
DFID,DFID,06/09/2017,Training - Course Fees ,East and Central Africa ,Capita  Business Services ,101612-101 ,"8,180.48",
DFID,DFID,18/09/2017,Project delivery costs – supplier services ,Asia  Caribbean and Overseas Territories ,CONCERN WORLDWIDE ,203264-102 ,"395,609.37",
DFID,DFID,19/09/2017,Project delivery costs – supplier services ,Middle East and North Africa Division ,DEVELOPMENT INITIATIVES ,204516-108 ,"22,140.00",
DFID,DFID,21/09/2017,Project delivery costs – supplier services ,Middle East and North Africa Division ,DEVELOPMENT INITIATIVES ,204516-108 ,945.00,
DFID,DFID,28/09/2017,Project delivery costs – supplier services ,Asia  Caribbean and Overseas Territories ,Nathan Associates London Ltd ,202180-102 ,"77,155.33",
DFID,DFID,15/09/2017,Project delivery costs – supplier services ,West and Southern Africa ,COFFEY INTERNATIONAL DEVELOPMENT LTD ,202455-104 ,"14,621.00",
DFID,DFID,22/09/2017,Project delivery costs – supplier services ,Policy Division ,COFFEY INTERNATIONAL DEVELOPMENT LTD ,202372-104 ,"118,896.02",
DFID,DFID,12/09/2017,Project delivery costs – supplier services ,West and Southern Africa ,COFFEY INTERNATIONAL DEVELOPMENT LTD ,203429-105 ,"25,856.00",
DFID,DFID,12/09/2017,Project delivery costs – supplier services ,West and Southern Africa ,COFFEY INTERNATIONAL DEVELOPMENT LTD ,203429-105 ,"26,173.00",
DFID,DFID,12/09/2017,Project delivery costs – supplier services ,West and Southern Africa ,COFFEY INTERNATIONAL DEVELOPMENT LTD ,203429-105 ,"18,500.00",
DFID,DFID,28/09/2017,Project delivery costs – supplier services ,West and Southern Africa ,COFFEY INTERNATIONAL DEVELOPMENT LTD ,203429-105 ,"93,128.00",
DFID,DFID,07/09/2017,Project delivery costs – supplier services ,West and Southern Africa ,COFFEY INTERNATIONAL DEVELOPMENT LTD ,300255-101 ,"115,088.17",
DFID,DFID,22/09/2017,Project delivery costs – supplier services ,Economic Development Division ,COFFEY INTERNATIONAL DEVELOPMENT LTD ,205181-104 ,"8,721.18",
DFID,DFID,22/09/2017,Project delivery costs – supplier services ,East and Central Africa ,COFFEY INTERNATIONAL DEVELOPMENT LTD ,202509-102 ,"1,700,000.00",
DFID,DFID,20/09/2017,Project delivery costs – supplier services ,West and Southern Africa ,COFFEY INTERNATIONAL DEVELOPMENT LTD ,202455-107 ,"49,901.12",
DFID,DFID,11/09/2017,Project delivery costs – supplier services ,West and Southern Africa ,COFFEY INTERNATIONAL DEVELOPMENT LTD ,202455-107 ,"10,968.60",
DFID,DFID,11/09/2017,Project delivery costs – supplier services ,West and Southern Africa ,COFFEY INTERNATIONAL DEVELOPMENT LTD ,202455-107 ,"27,167.99",
DFID,DFID,04/09/2017,Project delivery costs – supplier services ,East and Central Africa ,COFFEY INTERNATIONAL DEVELOPMENT LTD ,203024-104 ,"21,306.48",
DFID,DFID,29/09/2017,Project delivery costs – supplier services ,Asia  Caribbean and Overseas Territories ,COFFEY INTERNATIONAL DEVELOPMENT LTD ,203454-105 ,"44,683.00",
DFID,DFID,15/09/2017,Project delivery costs – supplier services ,East and Central Africa ,COFFEY INTERNATIONAL DEVELOPMENT LTD ,204458-115 ,"47,693.29",
DFID,DFID,15/09/2017,Project delivery costs – supplier services ,East and Central Africa ,COFFEY INTERNATIONAL DEVELOPMENT LTD ,205225-101 ,"3,105.35",
DFID,DFID,26/09/2017,Project delivery costs – supplier services ,West and Southern Africa ,COFFEY INTERNATIONAL DEVELOPMENT LTD ,104190-109 ,"379,609.35",
DFID,DFID,22/09/2017,Aid Programme - Accountable Grant Payments ,Economic Development Division ,THE FAIRTRADE FOUNDATION ,203448-101 ,"7,000.00",
DFID,DFID,07/09/2017,Repairs  Maint  Alter - Property & Constrct. Services ,One HMG FCO Platform ,FCO SERVICES ,204994-143 ,"6,408.98",
DFID,DFID,11/09/2017,Repairs  Maint  Alter - Property & Constrct. Services ,One HMG FCO Platform ,FCO SERVICES ,204994-143 ,"5,751.00",
DFID,DFID,11/09/2017,Repairs  Maint  Alter - Property & Constrct. Services ,One HMG FCO Platform ,FCO SERVICES ,204994-143 ,"39,073.40",The delivery of remedial works required to the DFID properties in multiple overseas locations as part of the 1 HMG consolidation programme
DFID,DFID,07/09/2017,Repairs  Maint  Alter - Property & Constrct. Services ,One HMG FCO Platform ,FCO SERVICES ,204994-143 ,"2,554.08",
DFID,DFID,11/09/2017,Repairs  Maint  Alter - Property & Constrct. Services ,One HMG FCO Platform ,FCO SERVICES ,204994-143 ,"2,018.00",
DFID,DFID,07/09/2017,Repairs  Maint  Alter - Property & Constrct. Services ,One HMG FCO Platform ,FCO SERVICES ,204994-143 ,"5,200.00",
DFID,DFID,07/09/2017,Repairs  Maint  Alter - Property & Constrct. Services ,One HMG FCO Platform ,FCO SERVICES ,204994-143 ,"5,901.28",
DFID,DFID,21/09/2017,Repairs  Maint  Alter - Property & Constrct. Services ,One HMG FCO Platform ,FCO SERVICES ,204994-143 ,"31,698.98",The delivery of remedial works required to the DFID properties in multiple overseas locations as part of the 1 HMG consolidation programme
DFID,DFID,07/09/2017,Repairs  Maint  Alter - Property & Constrct. Services ,One HMG FCO Platform ,FCO SERVICES ,204994-143 ,"141,291.00",The delivery of remedial works required to the DFID properties in multiple overseas locations as part of the 1 HMG consolidation programme
DFID,DFID,11/09/2017,Repairs  Maint  Alter - Property & Constrct. Services ,One HMG FCO Platform ,FCO SERVICES ,204994-143 ,"49,831.00",The delivery of remedial works required to the DFID properties in multiple overseas locations as part of the 1 HMG consolidation programme
DFID,DFID,11/09/2017,Repairs  Maint  Alter - Property & Constrct. Services ,One HMG FCO Platform ,FCO SERVICES ,204994-143 ,"18,000.00",
DFID,DFID,20/09/2017,Courier & Bag Services ,Business Solutions Division Level ,FCO SERVICES ,200001-101 ,"3,775.12",
DFID,DFID,29/09/2017,Project delivery costs – supplier services ,Group Operations ,FCO SERVICES ,100007-103 ,"7,670.40",
DFID,DFID,06/09/2017,FCO shared service charges ,Group Operations ,FCO SERVICES ,203717-101 ,818.95,
DFID,DFID,28/09/2017,Project delivery costs – supplier services ,East and Central Africa ,PALLADIUM ,202577-103 ,"11,084.70",
DFID,DFID,28/09/2017,Project delivery costs – supplier services ,East and Central Africa ,PALLADIUM ,202577-104 ,"373,141.04",
DFID,DFID,19/09/2017,Project delivery costs – supplier services ,West and Southern Africa ,PALLADIUM ,204822-102 ,"196,267.00",
DFID,DFID,19/09/2017,Project delivery costs – supplier services ,Policy Division ,PALLADIUM ,201724-155 ,"69,001.93",
DFID,DFID,19/09/2017,Project delivery costs – supplier services ,Policy Division ,PALLADIUM ,202745-104 ,"534,605.70",
DFID,DFID,26/09/2017,Project delivery costs – supplier services ,East and Central Africa ,PALLADIUM ,204012-106 ,"229,819.69",
DFID,DFID,07/09/2017,Project delivery costs – supplier services ,West and Southern Africa ,PALLADIUM ,202098-101 ,"59,444.41",
DFID,DFID,07/09/2017,Project delivery costs – supplier services ,East and Central Africa ,PALLADIUM ,202596-108 ,"2,542.95",
DFID,DFID,01/09/2017,Project delivery costs – supplier services ,East and Central Africa ,PALLADIUM ,202596-108 ,"14,379.65",
DFID,DFID,20/09/2017,Project delivery costs – supplier services ,Asia  Caribbean and Overseas Territories ,PALLADIUM ,204613-101 ,"72,579.66",
DFID,DFID,20/09/2017,Project delivery costs – supplier services ,Asia  Caribbean and Overseas Territories ,PALLADIUM ,201851-101 ,"273,313.24",
DFID,DFID,13/09/2017,Project delivery costs – supplier services ,West and Southern Africa ,PALLADIUM ,203429-103 ,"129,161.67",
DFID,DFID,12/09/2017,Project delivery costs – supplier services ,West and Southern Africa ,PALLADIUM ,203429-103 ,"26,000.00",
DFID,DFID,21/09/2017,Project delivery costs – supplier services ,East and Central Africa ,PALLADIUM ,204809-102 ,"122,640.83",
DFID,DFID,20/09/2017,Project delivery costs – supplier services ,East and Central Africa ,PALLADIUM ,203539-102 ,"167,521.57",
DFID,DFID,20/09/2017,Fund monies to be managed and dispersed by the supplier ,East and Central Africa ,PALLADIUM ,203539-102 ,"461,528.49",
DFID,DFID,19/09/2017,Project delivery costs – supplier services ,West and Southern Africa ,PALLADIUM ,204822-102 ,"147,696.68",
DFID,DFID,07/09/2017,Project delivery costs – supplier services ,West and Southern Africa ,PALLADIUM ,204822-102 ,"940,115.75",
DFID,DFID,19/09/2017,Project delivery costs – supplier services ,West and Southern Africa ,PALLADIUM ,202352-102 ,"165,453.04",
DFID,DFID,11/09/2017,Project delivery costs – supplier services ,West and Southern Africa ,PALLADIUM ,202370-102 ,"431,416.08",
DFID,DFID,28/09/2017,Project delivery costs – supplier services ,Conflict  Humanitarian  Security & Stabilisation Division ,PALLADIUM ,205176-101 ,"32,859.52",
DFID,DFID,05/09/2017,Project delivery costs – supplier services ,Conflict  Humanitarian  Security & Stabilisation Division ,PALLADIUM ,205176-101 ,"10,202.14",
DFID,DFID,26/09/2017,Project delivery costs – supplier services ,West and Southern Africa ,ICF Consulting Services Ltd ,201433-110 ,"100,000.00",
DFID,DFID,05/09/2017,Aid Programme - Accountable Grant Payments ,West and Southern Africa ,GOAL ,205182-106 ,"397,393.00",
DFID,DFID,06/09/2017,Aid Programme - Accountable Grant Payments ,Asia  Caribbean and Overseas Territories ,HEALTH POVERTY ACTION ,203400-115 ,"34,840.00",
DFID,DFID,06/09/2017,Project delivery costs – supplier services ,Conflict  Humanitarian  Security & Stabilisation Division ,THE HALO TRUST ,203243-119 ,"159,000.00",
DFID,DFID,14/09/2017,Project delivery costs – supplier services ,Conflict  Humanitarian  Security & Stabilisation Division ,THE HALO TRUST ,203243-119 ,"159,000.00",
DFID,DFID,14/09/2017,Project delivery costs – supplier services ,West and Southern Africa ,HEALTH PARTNERS INTERNATIONAL ,202694-101 ,"214,164.97",
DFID,DFID,14/09/2017,Project delivery costs – supplier services ,West and Southern Africa ,HEALTH PARTNERS INTERNATIONAL ,202694-104 ,"107,493.56",
DFID,DFID,06/09/2017,Project delivery costs – supplier services ,East and Central Africa ,HTSPE LTD ,201575-107 ,"103,530.55",
DFID,DFID,18/09/2017,Aid Programme - Accountable Grant Payments ,Research and Evidence Division ,HANDICAP INTERNATIONAL UK ,203706-115 ,"33,708.00",
DFID,DFID,20/09/2017,Aid Programme - Humanitarian Material Relief Assistance and Services ,Conflict  Humanitarian  Security & Stabilisation Division ,HANDICAP INTERNATIONAL UK ,202878-103 ,"36,224.80",
DFID,DFID,07/09/2017,Contract & Agency Staff ,Finance and Corporate Performance Division ,Hays Specialist Recruitment Ltd ,202437-101,"1,381.26",
DFID,DFID,11/09/2017,Contract & Agency Staff ,Finance and Corporate Performance Division ,Hays Specialist Recruitment Ltd ,100201-101 ,"1,105.01",
DFID,DFID,15/09/2017,Contract & Agency Staff ,Finance and Corporate Performance Division ,Hays Specialist Recruitment Ltd ,202437-101 ,"1,381.26",
DFID,DFID,21/09/2017,Contract & Agency Staff ,Finance and Corporate Performance Division ,Hays Specialist Recruitment Ltd ,202437-101 ,"1,381.26",
DFID,DFID,29/09/2017,Contract & Agency Staff ,Finance and Corporate Performance Division ,Hays Specialist Recruitment Ltd ,202437-101 ,"1,381.26",
DFID,DFID,01/09/2017,Contract & Agency Staff ,Finance and Corporate Performance Division ,HUDSON GLOBAL RESOURCES LTD ,202437-101 ,610.18,
DFID,DFID,29/09/2017,Contract & Agency Staff ,Finance and Corporate Performance Division ,HUDSON GLOBAL RESOURCES LTD ,202437-101 ,"3,661.06",
DFID,DFID,29/09/2017,Contract & Agency Staff ,Finance and Corporate Performance Division ,HUDSON GLOBAL RESOURCES LTD ,202437-101 ,"2,745.79",
DFID,DFID,29/09/2017,Contract & Agency Staff ,Finance and Corporate Performance Division ,HUDSON GLOBAL RESOURCES LTD ,100201-101 ,"2,128.36",
DFID,DFID,07/09/2017,Contract & Agency Staff ,Finance and Corporate Performance Division ,HUDSON GLOBAL RESOURCES LTD ,100201-101 ,"7,062.53",
DFID,DFID,11/09/2017,Recruitment costs ,Group Operations ,HUDSON GLOBAL RESOURCES LTD ,204284-101 ,"2,929.00",
DFID,DFID,01/09/2017,Project delivery costs – supplier services ,Policy Division ,ITAD LTD ,201724-134 ,"3,233.26",
DFID,DFID,05/09/2017,Project delivery costs – supplier services ,West and Southern Africa ,ITAD LTD ,202482-102 ,"25,449.60",
DFID,DFID,06/09/2017,Research and development costs - supplier services ,Research and Evidence Division ,THE INSTITUTE OF DEVELOPMENT STUDIE ,204584-152 ,"24,590.00",
DFID,DFID,01/09/2017,Aid Programme - Voluntary contributions ,East and Central Africa ,ICRAF ,204956-102 ,"181,384.00",
DFID,DFID,05/09/2017,Aid Programme - Accountable Grant Payments ,Policy Division ,ISLAMIC RELIEF ,203559-115 ,"58,449.00",
DFID,DFID,26/09/2017,Aid Programme - Accountable Grant Payments ,Research and Evidence Division ,INASP ,203962-101 ,"334,149.00",
DFID,DFID,05/09/2017,Training - Course Fees ,Internal Audit ,INSTITUTE OF INTERNAL AUDITORS-UK ,100121-101 ,"1,500.00",
DFID,DFID,05/09/2017,Professional member subscriptions ,Internal Audit ,INSTITUTE OF INTERNAL AUDITORS-UK ,100121-101 ,"4,121.00",
DFID,DFID,29/09/2017,Training - Course Fees ,Internal Audit ,INSTITUTE OF INTERNAL AUDITORS-UK ,100121-101 ,675.00,
DFID,DFID,11/09/2017,Training - Course Fees ,Internal Audit ,INSTITUTE OF INTERNAL AUDITORS-UK ,100121-101 ,675.00,
DFID,DFID,27/09/2017,Project delivery costs – supplier services ,Policy Division ,INTERN DEVEL EDUC ASSOC OF SCOTLAND ,201469-105 ,"79,597.00",
DFID,DFID,26/09/2017,Aid Programme - Voluntary contributions ,Asia  Caribbean and Overseas Territories ,INTER AMERICAN DEVELOPMENT BANK ,203643-102 ,"1,100,000.00",
DFID,DFID,27/09/2017,Research and development costs - supplier services ,Research and Evidence Division ,INSTITUTE OF DEVELOPMENT STUDIES ,202042-102 ,"265,057.37",
DFID,DFID,11/09/2017,Training - Course Fees ,East and Central Africa ,INSTITUTE OF DEVELOPMENT STUDIES ,101612-101 ,900.00,
DFID,DFID,14/09/2017,Aid Programme - Trust Funds contributions ,Policy Division ,IBRD HSBC T ,203034-102 ,"1,200,000.00",
DFID,DFID,06/09/2017,Aid Programme - Trust Funds contributions ,Research and Evidence Division ,IBRD HSBC T ,205222-103 ,"1,000,000.00",
DFID,DFID,04/09/2017,Aid Programme - Trust Funds contributions ,Economic Development Division ,IBRD HSBC T ,205226-104 ,"1,000,000.00",
DFID,DFID,06/09/2017,Aid Programme - Trust Funds contributions ,Economic Development Division ,IBRD HSBC T ,205222-104 ,"1,500,000.00",
DFID,DFID,11/09/2017,Project delivery costs – supplier services ,Research and Evidence Division ,IOD PARC ,205109-101 ,"63,173.59",
DFID,DFID,14/09/2017,Aid Programme - Joint programme contribution ,Asia  Caribbean and Overseas Territories ,INTERNATIONAL TRADE CENTRE ,202762-101 ,"361,660.91",
DFID,DFID,05/09/2017,Aid Programme - Accountable Grant Payments ,East and Central Africa ,INTERNATIONAL MEDICAL CORPS (UK) ,204019-122 ,"879,373.00",
DFID,DFID,04/09/2017,Aid Programme - Accountable Grant Payments ,Middle East and North Africa Division ,Supplier Name withheld ,204525-105 ,"721,784.00",
DFID,DFID,29/09/2017,Aid Programme - Accountable Grant Payments ,Middle East and North Africa Division ,Supplier Name withheld ,204525-106 ,"146,411.00",
DFID,DFID,29/09/2017,Project delivery costs – supplier services ,Policy Division ,IMPERIAL COLLEGE LONDON ,200706-101 ,"487,084.36",
DFID,DFID,11/09/2017,Hardware -monitors ,Business Solutions Division Level ,INSIGHT DIRECT (UK) LTD ,200004-103 ,982.80,
DFID,DFID,11/09/2017,Hardware - desktop PCs ,Business Solutions Division Level ,INSIGHT DIRECT (UK) LTD ,200004-103 ,"5,124.60",
DFID,DFID,21/09/2017,Hostile Environment Training ,Top Management Group ,KELLOGG BROWN & ROOT LIMITED ,100232-107 ,750.00,
DFID,DFID,29/09/2017,Hostile Environment Training ,Policy Division ,KELLOGG BROWN & ROOT LIMITED ,205248-102 ,900.00,
DFID,DFID,18/09/2017,Hostile Environment Training ,Middle East and North Africa Division ,KELLOGG BROWN & ROOT LIMITED ,100146-101 ,735.00,
DFID,DFID,05/09/2017,Hostile Environment Training ,Research and Evidence Division ,KELLOGG BROWN & ROOT LIMITED ,202392-107 ,588.00,
DFID,DFID,07/09/2017,Hostile Environment Training ,Conflict  Humanitarian  Security & Stabilisation Division ,KELLOGG BROWN & ROOT LIMITED ,100049-102 ,882.00,
DFID,DFID,11/09/2017,Hostile Environment Training ,Asia  Caribbean and Overseas Territories ,KELLOGG BROWN & ROOT LIMITED ,204053-101 ,735.00,
DFID,DFID,11/09/2017,Training - Course Fees ,Research and Evidence Division ,KELLOGG BROWN & ROOT LIMITED ,202331-102 ,873.60,
DFID,DFID,11/09/2017,Hostile Environment Training ,Economic Development Division ,KELLOGG BROWN & ROOT LIMITED ,202373-101 ,735.00,
DFID,DFID,21/09/2017,Hostile Environment Training ,Communications Division ,KELLOGG BROWN & ROOT LIMITED ,100138-101 ,658.92,
DFID,DFID,21/09/2017,Hostile Environment Training ,Communications Division ,KELLOGG BROWN & ROOT LIMITED ,100138-101 ,658.92,
DFID,DFID,11/09/2017,Hostile Environment Training ,Economic Development Division ,KELLOGG BROWN & ROOT LIMITED ,205081-101 ,882.00,
DFID,DFID,01/09/2017,Aid Programme - Accountable Grant Payments ,East and Central Africa ,LIVERPOOL SCHOOL OF TROPICAL MEDICINE ,202549-104 ,"639,915.00",
DFID,DFID,11/09/2017,Aid Programme - Accountable Grant Payments ,Policy Division ,London School of Hygiene and Tropical Medicine ,204789-103 ,"178,100.00",
DFID,DFID,13/09/2017,Project delivery costs – supplier services ,East and Central Africa ,London School of Hygiene and Tropical Medicine ,201518-104 ,"262,543.00",
DFID,DFID,04/09/2017,Project delivery costs – supplier services ,Research and Evidence Division ,London School of Hygiene and Tropical Medicine ,203806-102 ,"314,955.21",
DFID,DFID,26/09/2017,Research and development costs - supplier services ,Research and Evidence Division ,London School of Hygiene and Tropical Medicine ,201447-104 ,"215,398.91",
DFID,DFID,28/09/2017,Project delivery costs – supplier services ,East and Central Africa ,Supplier Name withheld ,203871-102 ,"58,411.42",
DFID,DFID,27/09/2017,Project delivery costs – supplier services ,West and Southern Africa ,Supplier Name withheld ,202942-102 ,"855,810.89",
DFID,DFID,28/09/2017,Project delivery costs – supplier services ,West and Southern Africa ,Supplier Name withheld ,203154-103 ,"558,922.33",
DFID,DFID,27/09/2017,Project delivery costs – supplier services ,West and Southern Africa ,Supplier Name withheld ,205234-102 ,"494,076.29",
DFID,DFID,13/09/2017,Project delivery costs – supplier services ,East and Central Africa ,Supplier Name withheld ,204288-103 ,"100,134.88",
DFID,DFID,26/09/2017,Project delivery costs – supplier services ,Asia  Caribbean and Overseas Territories ,Supplier Name withheld ,204023-104 ,"165,710.41",
DFID,DFID,13/09/2017,Project delivery costs – supplier services ,Asia  Caribbean and Overseas Territories ,Supplier Name withheld ,204277-102 ,"50,179.70",
DFID,DFID,28/09/2017,Project delivery costs – supplier services ,Asia  Caribbean and Overseas Territories ,Supplier Name withheld ,202488-107 ,"483,803.44",
DFID,DFID,11/09/2017,Project delivery costs – supplier services ,East and Central Africa ,Supplier Name withheld ,203641-103 ,"29,489.91",
DFID,DFID,28/09/2017,Project delivery costs – supplier services ,West and Southern Africa ,Supplier Name withheld ,202678-101 ,"100,645.68",
DFID,DFID,01/09/2017,Project delivery costs – supplier services ,Policy Division ,Supplier Name withheld ,203148-101 ,"509,421.13",
DFID,DFID,21/09/2017,Data Network - land lines ,Business Solutions Division Level ,VODAFONE LIMITED ,200002-185 ,"2,219.22",
DFID,DFID,28/09/2017,Data Network - land lines ,Business Solutions Division Level ,VODAFONE LIMITED ,200002-185 ,"98,513.53",Rental charge for telecommunication data links (WAN) for offices for non European Union  sites for  May 2017  (1  of 2)
DFID,DFID,21/09/2017,Data Network - land lines ,Business Solutions Division Level ,VODAFONE LIMITED ,200002-185 ,"7,022.76",
DFID,DFID,21/09/2017,Telephone Usage & services ,Business Solutions Division Level ,VODAFONE LIMITED ,200002-185 ,"7,103.15",
DFID,DFID,21/09/2017,Telephone Usage & services ,Business Solutions Division Level ,VODAFONE LIMITED ,200002-168 ,"30,688.84",Telephone usage and rental costs for UK based staff for the period April to May 2017
DFID,DFID,28/09/2017,Data Network - land lines ,Business Solutions Division Level ,VODAFONE LIMITED ,203329-103 ,"98,513.52",Rental charge for telecommunication data links (WAN) for offices for non European Union sites for  May 2017  (2  of 2)
DFID,DFID,21/09/2017,Data Network - land lines ,Business Solutions Division Level ,VODAFONE LIMITED ,203329-103 ,"2,219.22",
DFID,DFID,21/09/2017,Telephone Usage & services ,Business Solutions Division Level ,VODAFONE LIMITED ,203329-103 ,"7,103.14",
DFID,DFID,21/09/2017,Data Network - land lines ,Business Solutions Division Level ,VODAFONE LIMITED ,203329-103 ,"7,022.76",
DFID,DFID,05/09/2017,Project delivery costs – supplier services ,East and Central Africa ,MAXWELL STAMP PLC ,204626-101 ,"155,825.00",
DFID,DFID,05/09/2017,Project delivery costs – supplier services ,East and Central Africa ,MAXWELL STAMP PLC ,204626-101 ,"544,141.00",
DFID,DFID,28/09/2017,Project delivery costs – supplier services ,East and Central Africa ,MET OFFICE ,204044-102 ,"112,710.12",
DFID,DFID,13/09/2017,Aid Programme - Accountable Grant Payments ,Middle East and North Africa Division ,MERCY CORPS EUROPE ,300034-101 ,"1,114,964.00",
DFID,DFID,06/09/2017,Aid Programme - Accountable Grant Payments ,East and Central Africa ,ODI ,202552-102 ,"125,080.00",
DFID,DFID,20/09/2017,Aid Programme - Accountable Grant Payments ,West and Southern Africa ,OXFAM INSTITUTIONAL INCOME ACCOUNT ,300067-106 ,"727,369.00",
DFID,DFID,28/09/2017,Project delivery costs – supplier services ,Policy Division ,OXFAM INSTITUTIONAL INCOME ACCOUNT ,203572-101 ,"108,173.00",
DFID,DFID,28/09/2017,Project delivery costs – supplier services ,Policy Division ,OXFAM INSTITUTIONAL INCOME ACCOUNT ,203572-101 ,"88,740.00",
DFID,DFID,28/09/2017,Project delivery costs – supplier services ,Policy Division ,OXFAM INSTITUTIONAL INCOME ACCOUNT ,203572-101 ,"828,031.00",
DFID,DFID,28/09/2017,Project delivery costs – supplier services ,Asia  Caribbean and Overseas Territories ,OXFORD POLICY MANAGEMENT ,202708-103 ,"6,000.00",
DFID,DFID,19/09/2017,Project delivery costs – supplier services ,Research and Evidence Division ,OXFORD POLICY MANAGEMENT ,203638-104 ,"57,822.84",
DFID,DFID,06/09/2017,Project delivery costs – supplier services ,Policy Division ,OXFORD POLICY MANAGEMENT ,204695-101 ,"26,491.83",
DFID,DFID,29/09/2017,Project delivery costs – supplier services ,Policy Division ,OXFORD POLICY MANAGEMENT ,203572-102 ,"50,911.20",
DFID,DFID,18/09/2017,Project delivery costs – supplier services ,Asia  Caribbean and Overseas Territories ,OXFORD POLICY MANAGEMENT ,300238-102 ,"50,507.77",
DFID,DFID,18/09/2017,Project delivery costs – supplier services ,Asia  Caribbean and Overseas Territories ,OXFORD POLICY MANAGEMENT ,300238-102 ,"230,841.81",
DFID,DFID,18/09/2017,Project delivery costs – supplier services ,East and Central Africa ,OXFORD POLICY MANAGEMENT ,204463-102 ,"13,972.50",
DFID,DFID,26/09/2017,Project delivery costs – supplier services ,Asia  Caribbean and Overseas Territories ,OXFORD POLICY MANAGEMENT ,202367-103 ,"177,449.87",
DFID,DFID,04/09/2017,Project delivery costs – supplier services ,West and Southern Africa ,OXFORD POLICY MANAGEMENT ,205126-101 ,"272,866.16",
DFID,DFID,27/09/2017,Project delivery costs – supplier services ,East and Central Africa ,OXFORD POLICY MANAGEMENT ,203596-101 ,"17,151.25",
DFID,DFID,07/09/2017,Project delivery costs – supplier services ,Research and Evidence Division ,OXFORD POLICY MANAGEMENT ,204322-102 ,"230,450.40",
DFID,DFID,01/09/2017,Project delivery costs – supplier services ,West and Southern Africa ,OXFORD POLICY MANAGEMENT ,203536-108 ,"3,503.63",
DFID,DFID,21/09/2017,Project delivery costs – supplier services ,Asia  Caribbean and Overseas Territories ,OXFORD POLICY MANAGEMENT ,201367-104 ,"145,705.00",
DFID,DFID,06/09/2017,Project delivery costs – supplier services ,Middle East and North Africa Division ,OXFORD POLICY MANAGEMENT ,300050-103 ,"1,887.06",
DFID,DFID,28/09/2017,Project delivery costs – supplier services ,West and Southern Africa ,OXFORD POLICY MANAGEMENT ,203161-102 ,"91,015.00",
DFID,DFID,28/09/2017,Project delivery costs – supplier services ,West and Southern Africa ,OXFORD POLICY MANAGEMENT ,101613-101 ,"4,242.00",
DFID,DFID,05/09/2017,Project delivery costs – supplier services ,Middle East and North Africa Division ,OXFORD POLICY MANAGEMENT ,300239-102 ,"8,050.00",
DFID,DFID,20/09/2017,Project delivery costs – supplier services ,West and Southern Africa ,OXFORD POLICY MANAGEMENT ,201874-103 ,"136,416.35",
DFID,DFID,07/09/2017,Project delivery costs – supplier services ,West and Southern Africa ,OXFORD POLICY MANAGEMENT ,201874-103 ,"66,049.72",
DFID,DFID,06/09/2017,Project delivery costs – supplier services ,Middle East and North Africa Division ,OXFORD POLICY MANAGEMENT ,300050-103 ,"25,388.00",
DFID,DFID,01/09/2017,Project delivery costs – supplier services ,Research and Evidence Division ,OXFORD POLICY MANAGEMENT ,205043-105 ,"38,073.60",
DFID,DFID,28/09/2017,Conferences  Seminars & Meeting/Event Resource ,Research and Evidence Division ,OXFORD POLICY MANAGEMENT ,300405-101 ,625.00,
DFID,DFID,15/09/2017,Project delivery costs – supplier services ,West and Southern Africa ,OXFORD POLICY MANAGEMENT ,204330-103 ,"242,557.24",
DFID,DFID,05/09/2017,Project delivery costs – supplier services ,Economic Development Division ,OXFORD POLICY MANAGEMENT ,202627-102 ,"32,282.00",
DFID,DFID,26/09/2017,Project delivery costs – supplier services ,West and Southern Africa ,OXFORD POLICY MANAGEMENT ,205182-105 ,"38,741.86",
DFID,DFID,28/09/2017,Project delivery costs – supplier services ,East and Central Africa ,OXFORD POLICY MANAGEMENT ,204258-102 ,"276,136.07",
DFID,DFID,29/09/2017,Project delivery costs – supplier services ,West and Southern Africa ,OXFORD POLICY MANAGEMENT ,202978-101 ,"88,826.00",
DFID,DFID,04/09/2017,Project delivery costs – supplier services ,West and Southern Africa ,OXFORD POLICY MANAGEMENT ,205182-105 ,"51,620.99",
DFID,DFID,21/09/2017,Project delivery costs – supplier services ,East and Central Africa ,OXFORD POLICY MANAGEMENT ,204339-103 ,"80,363.80",
DFID,DFID,11/09/2017,Project delivery costs – supplier services ,East and Central Africa ,OXFORD POLICY MANAGEMENT ,204339-103 ,"254,832.70",
DFID,DFID,11/09/2017,Project delivery costs – supplier services ,East and Central Africa ,OXFORD POLICY MANAGEMENT ,204339-103 ,"204,875.24",
DFID,DFID,11/09/2017,Aid Programme - Accountable Grant Payments ,Policy Division ,OPPORTUNITY INTERNATIONAL UK ,203559-126 ,"249,998.00",
DFID,DFID,19/09/2017,Aid Programme - Voluntary contributions ,Policy Division ,ORGANISATION FOR ECONOMIC CO-OP & DE ,203295-101 ,"50,000.00",
DFID,DFID,06/09/2017,Project delivery costs – supplier services ,Asia  Caribbean and Overseas Territories ,OPTIONS CONSULTANCY SERVICES LIMITED ,203390-104 ,"44,880.00",
DFID,DFID,28/09/2017,Project delivery costs – supplier services ,Asia  Caribbean and Overseas Territories ,OPTIONS CONSULTANCY SERVICES LIMITED ,203390-104 ,"52,850.00",
DFID,DFID,28/09/2017,Project delivery costs – supplier services ,Asia  Caribbean and Overseas Territories ,OPTIONS CONSULTANCY SERVICES LIMITED ,203390-104 ,"38,350.00",
DFID,DFID,05/09/2017,Aid Programme - Accountable Grant Payments ,Policy Division ,OXFAM ,203559-105 ,"246,904.63",
DFID,DFID,14/09/2017,Project delivery costs – supplier services ,Policy Division ,PLAN INTERNATIONAL UK ,203572-101 ,"233,056.29",
DFID,DFID,26/09/2017,Project delivery costs – supplier services ,Asia  Caribbean and Overseas Territories ,PRICEWATERHOUSECOOPERS ,203964-101 ,"99,616.58",
DFID,DFID,26/09/2017,Project delivery costs – supplier services ,Economic Development Division ,PRICEWATERHOUSECOOPERS ,114178-104 ,"277,322.50",
DFID,DFID,19/09/2017,Project delivery costs – supplier services ,Asia  Caribbean and Overseas Territories ,PRICEWATERHOUSECOOPERS ,205138-103 ,"10,781.75",
DFID,DFID,28/09/2017,Project delivery costs – supplier services ,Research and Evidence Division ,PRICEWATERHOUSECOOPERS ,200822-103 ,"94,372.87",
DFID,DFID,28/09/2017,Project delivery costs – supplier services ,Research and Evidence Division ,PRICEWATERHOUSECOOPERS ,200822-103 ,"19,523.36",
DFID,DFID,28/09/2017,Project delivery costs – supplier services ,Economic Development Division ,PRICEWATERHOUSECOOPERS ,202939-113 ,"53,181.36",
DFID,DFID,28/09/2017,Project delivery costs – supplier services ,Research and Evidence Division ,PRICEWATERHOUSECOOPERS ,203835-104 ,"8,101.81",
DFID,DFID,28/09/2017,Project delivery costs – supplier services ,Research and Evidence Division ,PRICEWATERHOUSECOOPERS ,203835-104 ,"49,563.69",
DFID,DFID,26/09/2017,Project delivery costs – supplier services ,Economic Development Division ,PRICEWATERHOUSECOOPERS ,114178-104 ,"27,394.67",
DFID,DFID,13/09/2017,Project delivery costs – supplier services ,Economic Development Division ,PRICEWATERHOUSECOOPERS ,202648-102 ,"149,970.08",
DFID,DFID,28/09/2017,Project delivery costs – supplier services ,West and Southern Africa ,PRICEWATERHOUSECOOPERS ,205234-106 ,"39,121.00",
DFID,DFID,28/09/2017,Project delivery costs – supplier services ,West and Southern Africa ,PRICEWATERHOUSECOOPERS ,203161-104 ,"504,952.00",
DFID,DFID,05/09/2017,Project delivery costs – supplier services ,West and Southern Africa ,PRICEWATERHOUSECOOPERS ,203161-104 ,"532,171.00",
DFID,DFID,28/09/2017,Project delivery costs – supplier services ,Economic Development Division ,PRICEWATERHOUSECOOPERS ,202939-103 ,"66,152.63",
DFID,DFID,28/09/2017,Project delivery costs – supplier services ,Economic Development Division ,PRICEWATERHOUSECOOPERS ,202939-115 ,"14,439.76",
DFID,DFID,06/09/2017,Project delivery costs – supplier services ,Asia  Caribbean and Overseas Territories ,PRICEWATERHOUSECOOPERS ,205245-101 ,"38,020.80",
DFID,DFID,28/09/2017,Project delivery costs – supplier services ,Policy Division ,PRICEWATERHOUSECOOPERS ,114370-105 ,"189,455.61",
DFID,DFID,28/09/2017,Project delivery costs – supplier services ,Policy Division ,PRICEWATERHOUSECOOPERS ,114370-105 ,"14,680.00",
DFID,DFID,14/09/2017,Storage & Distribution costs ,Middle East and North Africa Division ,PICKFORDS LTD ,300078-101 ,"5,822.51",
DFID,DFID,14/09/2017,Storage & Distribution costs ,Middle East and North Africa Division ,PICKFORDS LTD ,300078-101 ,"6,281.33",
DFID,DFID,13/09/2017,Relocation costs ,Middle East and North Africa Division ,PICKFORDS LTD ,300080-101 ,"1,839.00",
DFID,DFID,29/09/2017,Storage & Distribution costs ,East and Central Africa ,PICKFORDS LTD ,101625-113 ,"6,498.94",
DFID,DFID,27/09/2017,Storage & Distribution costs ,Asia  Caribbean and Overseas Territories ,PICKFORDS LTD ,204053-101 ,"4,579.09",
DFID,DFID,29/09/2017,Storage & Distribution costs ,Asia  Caribbean and Overseas Territories ,PICKFORDS LTD ,101624-101 ,"14,450.73",
DFID,DFID,25/09/2017,Storage & Distribution costs ,West and Southern Africa ,PICKFORDS LTD ,101637-101 ,"8,379.83",
DFID,DFID,01/09/2017,Storage & Distribution costs ,Asia  Caribbean and Overseas Territories ,PICKFORDS LTD ,101605-101 ,944.17,
DFID,DFID,14/09/2017,Storage & Distribution costs ,West and Southern Africa ,PICKFORDS LTD ,101629-101 ,"1,683.97",
DFID,DFID,14/09/2017,Storage & Distribution costs ,West and Southern Africa ,PICKFORDS LTD ,101629-101 ,666.27,
DFID,DFID,18/09/2017,Relocation costs ,West and Southern Africa ,PICKFORDS LTD ,101629-101 ,"1,489.70",
DFID,DFID,04/09/2017,Storage & Distribution costs ,West and Southern Africa ,PICKFORDS LTD ,101618-101 ,"12,247.78",
DFID,DFID,19/09/2017,Storage & Distribution costs ,West and Southern Africa ,PICKFORDS LTD ,101613-101 ,"4,913.19",
DFID,DFID,19/09/2017,Storage & Distribution costs ,Asia  Caribbean and Overseas Territories ,PICKFORDS LTD ,205101-105 ,"4,913.19",
DFID,DFID,12/09/2017,Relocation costs ,West and Southern Africa ,PICKFORDS LTD ,101638-101 ,"1,268.00",
DFID,DFID,04/09/2017,Storage & Distribution costs ,West and Southern Africa ,PICKFORDS LTD ,101613-101 ,"12,247.79",
DFID,DFID,11/09/2017,Storage & Distribution costs ,Conflict  Humanitarian  Security & Stabilisation Division ,PICKFORDS LTD ,300264-112 ,"1,088.00",
DFID,DFID,25/09/2017,Storage & Distribution costs ,West and Southern Africa ,PICKFORDS LTD ,100214-101 ,572.00,
DFID,DFID,25/09/2017,Storage & Distribution costs ,West and Southern Africa ,PICKFORDS LTD ,101629-101 ,900.79,
DFID,DFID,05/09/2017,Air fares ,West and Southern Africa ,PICKFORDS LTD ,101629-101 ,966.40,
DFID,DFID,19/09/2017,Storage & Distribution costs ,East and Central Africa ,PICKFORDS LTD ,300230-108 ,"10,177.26",
DFID,DFID,11/09/2017,UK Staff overseas - Transfer costs ,West and Southern Africa ,PICKFORDS LTD ,203981-110 ,"20,626.41",
DFID,DFID,29/09/2017,Storage & Distribution costs ,West and Southern Africa ,PICKFORDS LTD ,101622-106 ,"14,450.72",
DFID,DFID,01/09/2017,Storage & Distribution costs ,Asia  Caribbean and Overseas Territories ,PICKFORDS LTD ,101621-101 ,944.16,
DFID,DFID,27/09/2017,Storage & Distribution costs ,Asia  Caribbean and Overseas Territories ,PICKFORDS LTD ,202403-101 ,"4,579.10",
DFID,DFID,27/09/2017,Storage & Distribution costs ,East and Central Africa ,PICKFORDS LTD ,101616-101 ,"2,415.52",
DFID,DFID,21/09/2017,Project delivery costs – supplier services ,East and Central Africa ,POPULATION  SERVICES INTERNATIONAL ,300304-102 ,"135,214.00",
DFID,DFID,21/09/2017,Project delivery costs – supplier services ,East and Central Africa ,POPULATION  SERVICES INTERNATIONAL ,300304-102 ,"253,058.00",
DFID,DFID,12/09/2017,Project delivery costs – supplier services ,Asia  Caribbean and Overseas Territories ,POPULATION  SERVICES INTERNATIONAL ,202413-105 ,"1,672,470.90",
DFID,DFID,15/09/2017,Project delivery costs – supplier services ,West and Southern Africa ,POPULATION  SERVICES INTERNATIONAL ,203458-103 ,"852,310.00",
DFID,DFID,15/09/2017,Project delivery costs – supplier services ,West and Southern Africa ,POPULATION  SERVICES INTERNATIONAL ,203458-104 ,"849,484.00",
DFID,DFID,28/09/2017,Project delivery costs – supplier services ,East and Central Africa ,THE POLICY PRACTICE LTD ,203923-102 ,"12,126.28",
DFID,DFID,18/09/2017,Aid Programme - Accountable Grant Payments ,East and Central Africa ,THE RAINFOREST FOUNDATION UK ,204956-101 ,"362,467.31",
DFID,DFID,05/09/2017,Interview expenses ,Research and Evidence Division ,Recipient name withheld ,203874-104 ,851.00,
DFID,DFID,01/09/2017,Aid Programme - Refugee Relief Payments ,East and Central Africa ,THE SAVE THE CHILDREN FUND ,205070-103 ,"211,576.00",
DFID,DFID,21/09/2017,Aid Programme - Accountable Grant Payments ,Conflict  Humanitarian  Security & Stabilisation Division ,SAVE THE CHILDREN ,300263-102 ,"1,451,839.30",
DFID,DFID,21/09/2017,Aid Programme - Accountable Grant Payments ,Research and Evidence Division ,SAVE THE CHILDREN ,203705-133 ,"87,854.00",
DFID,DFID,05/09/2017,Aid Programme - Accountable Grant Payments ,Asia  Caribbean and Overseas Territories ,SAVE THE CHILDREN ,205268-105 ,"436,286.00",
DFID,DFID,15/09/2017,Project delivery costs – supplier services ,Policy Division ,Social Development Direct Ltd ,203245-106 ,"8,256.00",
DFID,DFID,11/09/2017,Project delivery costs – supplier services ,East and Central Africa ,Social Development Direct Ltd ,205144-103 ,"18,740.60",
DFID,DFID,01/09/2017,Office Equipment - Purchases ,Group Operations ,SECURITY SERVICES GROUP ,100007-103 ,849.60,
DFID,DFID,22/09/2017,Computer Software Licenses ,Business Solutions Division Level ,SITEIMPROVE LTD ,200001-101 ,"3,715.63",
DFID,DFID,22/09/2017,Aid Programme - Accountable Grant Payments ,West and Southern Africa ,SAVE THE CHILDREN UK ,205122-107 ,"2,523,658.00",
DFID,DFID,28/09/2017,Aid Programme - Accountable Grant Payments ,Research and Evidence Division ,SAVE THE CHILDREN UK ,203705-128 ,"1,390,953.00",
DFID,DFID,21/09/2017,Storage & Distribution costs ,Business Solutions Division Level ,TNT Express (UK) Ltd ,200001-101 ,"4,591.28",
DFID,DFID,15/09/2017,Legal costs ,East and Central Africa ,GOVERNMENT LEGAL DEPARTMENT ,203308-108 ,"1,004.10",
DFID,DFID,28/09/2017,Legal costs ,East and Central Africa ,GOVERNMENT LEGAL DEPARTMENT ,101612-101 ,877.70,
DFID,DFID,27/09/2017,Legal costs ,Human Resources ,GOVERNMENT LEGAL DEPARTMENT ,100269-136 ,"2,078.70",
DFID,DFID,15/09/2017,Legal costs ,Human Resources ,GOVERNMENT LEGAL DEPARTMENT ,100269-136 ,"5,037.77",
DFID,DFID,20/09/2017,Legal costs ,Finance and Corporate Performance Division ,GOVERNMENT LEGAL DEPARTMENT ,100201-101 ,613.80,
DFID,DFID,20/09/2017,Legal costs ,Finance and Corporate Performance Division ,GOVERNMENT LEGAL DEPARTMENT ,100201-101 ,974.90,
DFID,DFID,14/09/2017,Legal costs ,Conflict  Humanitarian  Security & Stabilisation Division ,GOVERNMENT LEGAL DEPARTMENT ,100049-101 ,"2,678.04",
DFID,DFID,21/09/2017,other information and communication technologies ,Business Solutions Division Level ,TRUSTMARQUE SOLUTIONS LTD ,200002-228 ,"50,666.70",Licences for Microsoft Azure cloud hosted services for various migrated  DFID on-premises IT servers
DFID,DFID,11/09/2017,Aid Programme - Accountable Grant Payments ,Policy Division ,TROCAIRE (Northern Ireland) ,203559-112 ,"82,628.00",
DFID,DFID,26/09/2017,Project delivery costs – supplier services ,Policy Division ,TROPICAL HEALTH AND EDUCATION TRUST ,202208-101 ,"120,270.36",
DFID,DFID,07/09/2017,Professional member subscriptions ,Research and Evidence Division ,THE ROYAL STATISTICAL SOCIETY ,202331-102 ,532.34,
DFID,DFID,07/09/2017,Professional member subscriptions ,Research and Evidence Division ,THE ROYAL STATISTICAL SOCIETY ,202331-102 ,"1,893.25",
DFID,DFID,21/09/2017,Postage Costs ,Group Operations ,Whistl UK ,100106-101 ,"2,276.80",
DFID,DFID,21/09/2017,Aid Programme - Humanitarian Material Relief Assistance and Services ,Asia  Caribbean and Overseas Territories ,UNDP CONTRIBUTIONS GBP ,205138-105 ,"301,160.00",
DFID,DFID,14/09/2017,Aid Programme - Voluntary contributions ,Asia  Caribbean and Overseas Territories ,UNDP CONTRIBUTIONS GBP ,300003-110 ,"112,152.00",
DFID,DFID,28/09/2017,Aid Programme - Pooled/Basket funding ,East and Central Africa ,UNDP CONTRIBUTIONS GBP ,204788-110 ,"1,005,000.00",
DFID,DFID,04/09/2017,Aid Programme - Voluntary contributions ,East and Central Africa ,UN WOMEN ,200795-110 ,"232,840.00",
DFID,DFID,21/09/2017,Aid Programme - Humanitarian Material Relief Assistance and Services ,East and Central Africa ,UNICEF ,203462-102 ,"4,000,000.00",
DFID,DFID,27/09/2017,Aid Programme - Voluntary contributions ,West and Southern Africa ,UNICEF ,300432-101 ,"2,446,200.00",
DFID,DFID,26/09/2017,Aid Programme - Core contributions ,Conflict  Humanitarian  Security & Stabilisation Division ,UNICEF ,300339-105 ,"8,000,000.00",
DFID,DFID,01/09/2017,Aid Programme - Voluntary contributions ,Middle East and North Africa Division ,UNICEF ,300031-101 ,"7,653,735.00",
DFID,DFID,28/09/2017,Aid Programme - Voluntary contributions ,West and Southern Africa ,UNICEF ,202214-125 ,"1,462,037.00",
DFID,DFID,07/09/2017,Aid Programme - Joint programme contribution ,Policy Division ,UNICEF ,204700-102 ,"425,000.00",
DFID,DFID,05/09/2017,Aid Programme - Humanitarian Material Relief Assistance and Services ,East and Central Africa ,UNICEF ,300363-104 ,"1,900,000.00",
DFID,DFID,06/09/2017,Aid Programme - Humanitarian Material Relief Assistance and Services ,East and Central Africa ,UNICEF ,300363-104 ,"1,100,000.00",
DFID,DFID,27/09/2017,Aid Programme - Voluntary contributions ,Asia  Caribbean and Overseas Territories ,UNICEF ,204605-104 ,"2,353,024.00",
DFID,DFID,27/09/2017,Aid Programme - Voluntary contributions ,Asia  Caribbean and Overseas Territories ,UNICEF ,300306-101 ,"2,526,015.23",
DFID,DFID,27/09/2017,Aid Programme - Voluntary contributions ,Asia  Caribbean and Overseas Territories ,UNICEF ,300306-102 ,"521,716.43",
DFID,DFID,26/09/2017,Aid Programme - Humanitarian Material Relief Assistance and Services ,East and Central Africa ,UNICEF ,202890-101 ,"4,452,387.00",
DFID,DFID,13/09/2017,Aid Programme - Accountable Grant Payments ,Economic Development Division ,VOLUNTARY SERVICE OVERSEAS ,203800-102 ,"59,538.00",
DFID,DFID,19/09/2017,Telephone Usage & services ,Business Solutions Division Level ,VODAFONE CORPORATE ,200002-170 ,"23,793.72",
DFID,DFID,19/09/2017,Telephone Usage & services ,Business Solutions Division Level ,VODAFONE CORPORATE ,200002-170 ,"7,156.88",
DFID,DFID,22/09/2017,Data Network - land lines ,Business Solutions Division Level ,VERIZON UK LIMITED ,200002-126 ,"8,254.52",
DFID,DFID,11/09/2017,Aid Programme - Accountable Grant Payments ,Policy Division ,WATERAID ,203559-116 ,"113,522.00",
DFID,DFID,15/09/2017,Aid Programme - Accountable Grant Payments ,Policy Division ,WATERAID ,203559-157 ,"268,109.00",
DFID,DFID,27/09/2017,Air fares ,Business Solutions Division Level ,Saimon Overseas Ltd ,200001-101 ,747.93,
DFID,DFID,18/09/2017,Air fares ,Asia  Caribbean and Overseas Territories ,Saimon Overseas Ltd ,101603-102 ,"1,062.82",
DFID,DFID,18/09/2017,Air fares ,Asia  Caribbean and Overseas Territories ,Saimon Overseas Ltd ,101603-102 ,"1,512.40",
DFID,DFID,18/09/2017,Air fares ,Asia  Caribbean and Overseas Territories ,Saimon Overseas Ltd ,101603-102 ,757.30,
DFID,DFID,13/09/2017,Project delivery costs – supplier services ,West and Southern Africa ,Aquila Printers Limited ,203627-102 ,"1,402.84",
DFID,DFID,14/09/2017,Hotels - Accommodation only ,Asia  Caribbean and Overseas Territories ,Radisson Hotel ,101621-101 ,616.37,
DFID,DFID,06/09/2017,Recruitment costs ,Asia  Caribbean and Overseas Territories ,Thompson Nepal Pvt Ltd ,101621-101 ,622.53,
DFID,DFID,07/09/2017,Aid Programme - Accountable Grant Payments ,Asia  Caribbean and Overseas Territories ,Helvetas Nepal ,204857-103 ,"685,530.95",
DFID,DFID,07/09/2017,Hotels - Accommodation only ,West and Southern Africa ,Grand Hotel ,101610-101 ,612.45,
DFID,DFID,06/09/2017,Air fares ,West and Southern Africa ,Jeffery Travels ,101610-101 ,"1,125.10",
DFID,DFID,21/09/2017,Aid Programme - Humanitarian Material Relief Assistance and Services ,Conflict  Humanitarian  Security & Stabilisation Division ,Pan American Health Organisation ,300491-102 ,"1,250,000.00",
DFID,DFID,14/09/2017,Hotels - Accommodation only ,East and Central Africa ,Sheraton Hotel ,101635-101 ,595.60,
DFID,DFID,14/09/2017,Hotels - Accommodation only ,East and Central Africa ,Sheraton Hotel ,101635-101 ,"1,330.70",
DFID,DFID,15/09/2017,Hotels - Accommodation only ,East and Central Africa ,Sheraton Hotel ,101635-101 ,633.33,
DFID,DFID,14/09/2017,Hotels - Accommodation only ,East and Central Africa ,Sheraton Hotel ,101635-101 ,735.07,
DFID,DFID,29/09/2017,Air fares ,East and Central Africa ,Simbatravelcare Limited ,101635-101 ,955.26,
DFID,DFID,29/09/2017,Air fares ,East and Central Africa ,Simbatravelcare Limited ,101635-101 ,"1,285.61",
DFID,DFID,22/09/2017,Air fares ,East and Central Africa ,WFP Somalia ,101630-101 ,"3,880.27",
DFID,DFID,22/09/2017,Air fares ,East and Central Africa ,WFP Somalia ,101630-101 ,"1,924.50",
DFID,DFID,29/09/2017,Aid Programme - Accountable Grant Payments ,West and Southern Africa ,The Population Council ,202344-102 ,"200,038.00",
DFID,DFID,07/09/2017,Research and development costs - supplier services ,Research and Evidence Division ,The Population Council ,201398-103 ,"150,609.57",
DFID,DFID,21/09/2017,Research and development costs - supplier services ,Research and Evidence Division ,The Population Council ,201398-103 ,"110,926.09",
DFID,DFID,01/09/2017,Hotels - Accommodation only ,West and Southern Africa ,Supplier Name withheld ,101622-106 ,"2,127.99",
DFID,DFID,15/09/2017,Hotels - Accommodation only ,West and Southern Africa ,Supplier Name withheld ,101622-105 ,658.64,
DFID,DFID,26/09/2017,Auditors Remuneration & Expenses - Cash ,West and Southern Africa ,PKF Professional Services ,114206-101 ,"24,828.54",
DFID,DFID,14/09/2017,Conferences  Seminars & Meeting/Event Resource ,Research and Evidence Division ,COMPASS GROUP ,202331-101 ,"15,297.30",
DFID,DFID,14/09/2017,Conferences  Seminars & Meeting/Event Resource ,Research and Evidence Division ,COMPASS GROUP ,202331-101 ,"6,904.80",
DFID,DFID,29/09/2017,Research and development costs - supplier services ,Research and Evidence Division ,Overseas Development Institute ,204584-150 ,"41,150.00",
DFID,DFID,05/09/2017,Project delivery costs – supplier services ,Policy Division ,Overseas Development Institute ,202921-103 ,"234,558.35",
DFID,DFID,01/09/2017,Aid Programme - Accountable Grant Payments ,Asia  Caribbean and Overseas Territories ,THE ASIA FOUNDATION ,203996-107 ,"108,365.38",
DFID,DFID,12/09/2017,Project delivery costs – supplier services ,Economic Development Division ,ART OF LIVING ,205081-101 ,"3,735.00",
DFID,DFID,12/09/2017,Project delivery costs – supplier services ,Economic Development Division ,ART OF LIVING ,205081-101 ,"5,316.00",
DFID,DFID,07/09/2017,Project delivery costs – supplier services ,Economic Development Division ,ART OF LIVING ,205081-101 ,"3,149.00",
DFID,DFID,19/09/2017,Project delivery costs – supplier services ,Economic Development Division ,ART OF LIVING ,205081-101 ,"1,157.00",
DFID,DFID,29/09/2017,Project delivery costs – supplier services ,Economic Development Division ,ART OF LIVING ,205081-101 ,"1,710.00",
DFID,DFID,28/09/2017,Aid Programme - Humanitarian Material Relief Assistance and Services ,East and Central Africa ,UN OCHA ,300363-103 ,"2,000,000.00",
DFID,DFID,28/09/2017,Aid Programme - Humanitarian Material Relief Assistance and Services ,East and Central Africa ,UN OCHA ,300363-103 ,"475,000.00",
DFID,DFID,26/09/2017,Aid Programme - Core contributions ,Conflict  Humanitarian  Security & Stabilisation Division ,UN OCHA ,300339-102 ,"20,000,000.00",
DFID,DFID,28/09/2017,Aid Programme - Voluntary contributions ,Middle East and North Africa Division ,UN OCHA ,204530-101 ,"9,000,000.00",
DFID,DFID,26/09/2017,Aid Programme - Humanitarian Material Relief Assistance and Services ,Middle East and North Africa Division ,FAO ,300095-101 ,"1,500,000.00",
DFID,DFID,15/09/2017,Aid Programme - Voluntary contributions ,East and Central Africa ,FAO ,204888-105 ,"398,377.00",
DFID,DFID,29/09/2017,Aid Programme - Core contributions ,Conflict  Humanitarian  Security & Stabilisation Division ,WFP CONTRIBUTIONS UNIT ,300339-103 ,"40,000,000.00",
DFID,DFID,28/09/2017,Aid Programme - Humanitarian Material Relief Assistance and Services ,West and Southern Africa ,WFP CONTRIBUTIONS UNIT ,300432-104 ,"6,000,000.00",
DFID,DFID,05/09/2017,Aid Programme - Voluntary contributions ,East and Central Africa ,WFP CONTRIBUTIONS UNIT ,300245-102 ,"387,939.00",
DFID,DFID,27/09/2017,Aid Programme - Voluntary contributions ,East and Central Africa ,WFP CONTRIBUTIONS UNIT ,204019-117 ,"2,633,100.00",
DFID,DFID,19/09/2017,Aid Programme - Voluntary contributions ,East and Central Africa ,WFP CONTRIBUTIONS UNIT ,203462-102 ,"3,000,000.00",
DFID,DFID,14/09/2017,Aid Programme - Humanitarian Material Relief Assistance and Services ,East and Central Africa ,WFP CONTRIBUTIONS UNIT ,300363-102 ,"10,000,000.00",
DFID,DFID,07/09/2017,Aid Programme - Emergency Food Aid ,East and Central Africa ,WFP CONTRIBUTIONS UNIT ,205143-105 ,"6,000,000.00",
DFID,DFID,22/09/2017,Aid Programme - Voluntary contributions ,East and Central Africa ,WFP CONTRIBUTIONS UNIT ,204019-101 ,"8,000,000.00",
DFID,DFID,07/09/2017,Data Network - land lines ,Business Solutions Division Level ,KUBE NETWORKS LTD ,200002-130 ,"1,097.02",
DFID,DFID,04/09/2017,Project delivery costs – supplier services ,West and Southern Africa ,IPA-International Procurement Agency (BV) ,204917-101 ,"246,923.77",
DFID,DFID,04/09/2017,DFID Purchased Relief Supplies ,East and Central Africa ,IPA-International Procurement Agency (BV) ,203109-111 ,"77,476.52",
DFID,DFID,15/09/2017,Hotels - Accommodation only ,East and Central Africa ,Economic Policy Research Institute ,101616-101 ,"1,570.00",
DFID,DFID,15/09/2017,Training - Course Fees ,East and Central Africa ,Economic Policy Research Institute ,101616-101 ,"2,990.00",
DFID,DFID,15/09/2017,Training - Course Fees ,East and Central Africa ,Economic Policy Research Institute ,205116-108 ,"2,990.00",
DFID,DFID,15/09/2017,Hotels - Accommodation only ,East and Central Africa ,Economic Policy Research Institute ,205116-108 ,"1,570.00",
DFID,DFID,07/09/2017,Project delivery costs – supplier services ,East and Central Africa ,Kimetrica Limited ,205116-110 ,"21,162.00",
DFID,DFID,14/09/2017,Aid Programme - Accountable Grant Payments ,Middle East and North Africa Division ,Save the Children Fund UK ,300353-101 ,"2,246,965.00",
DFID,DFID,28/09/2017,Project delivery costs – supplier services ,Policy Division ,KPMG EAST AFRICA LTD ,201724-102 ,"88,125.00",
DFID,DFID,22/09/2017,Project delivery costs – supplier services ,Policy Division ,KPMG EAST AFRICA LTD ,202921-102 ,"805,466.40",
DFID,DFID,26/09/2017,Project delivery costs – supplier services ,East and Central Africa ,UPPER QUARTILE ,203871-108 ,"48,304.00",
DFID,DFID,15/09/2017,Project delivery costs – supplier services ,West and Southern Africa ,UPPER QUARTILE ,203816-104 ,"137,416.00",
DFID,DFID,29/09/2017,Project delivery costs – supplier services ,Asia  Caribbean and Overseas Territories ,Supplier Name withheld ,204122-103 ,"2,600.61",
DFID,DFID,29/09/2017,Project delivery costs – supplier services ,Asia  Caribbean and Overseas Territories ,Supplier Name withheld ,204122-103 ,"84,086.39",
DFID,DFID,15/09/2017,Aid Programme - Core contributions ,Research and Evidence Division ,African Economic Research Consortium ,204153-111 ,"175,000.00",
DFID,DFID,13/09/2017,Hotels - Accommodation only ,Business Solutions Division Level ,The Country Lodge Complex ,203329-104 ,788.52,
DFID,DFID,07/09/2017,Aid Programme - Accountable Grant Payments ,Policy Division ,UNITED NATIONS FOUNDATION ,204333-102 ,"316,281.69",
DFID,DFID,05/09/2017,Hotels - Accommodation only ,East and Central Africa ,Alisa Hotel North Ridge ,204334-102 ,"2,104.73",
DFID,DFID,28/09/2017,Aid Programme - Voluntary contributions ,East and Central Africa ,UNFPA ,205067-102 ,"523,889.00",
DFID,DFID,27/09/2017,Aid Programme - Joint programme contribution ,Asia  Caribbean and Overseas Territories ,UNFPA ,204605-103 ,"1,542,150.00",
DFID,DFID,13/09/2017,Aid Programme - Voluntary contributions ,West and Southern Africa ,UNFPA ,204315-104 ,"80,545.60",
DFID,DFID,27/09/2017,Aid Programme - Joint programme contribution ,Asia  Caribbean and Overseas Territories ,UNFPA ,202488-111 ,"450,000.00",
DFID,DFID,26/09/2017,Aid Programme - Core contributions ,Asia  Caribbean and Overseas Territories ,Supplier Name withheld ,205112-101 ,"156,948.90",
DFID,DFID,28/09/2017,Aid Programme - Voluntary contributions ,Middle East and North Africa Division ,UNFPA ,205073-101 ,"2,790,000.00",
DFID,DFID,04/09/2017,Aid Programme - Voluntary contributions ,East and Central Africa ,UNFPA ,204903-106 ,"1,560,000.00",
DFID,DFID,18/09/2017,Aid Programme - Voluntary contributions ,Middle East and North Africa Division ,UNHCR ,300317-101 ,"1,600,000.00",
DFID,DFID,15/09/2017,Aid Programme - Voluntary contributions ,Middle East and North Africa Division ,UNHCR ,204536-103 ,"3,100,000.00",
DFID,DFID,28/09/2017,Aid Programme - Humanitarian Material Relief Assistance and Services ,East and Central Africa ,UNHCR ,205286-106 ,"197,234.00",
DFID,DFID,29/09/2017,Aid Programme - Core contributions ,Conflict  Humanitarian  Security & Stabilisation Division ,UNHCR ,300339-104 ,"35,000,000.00",
DFID,DFID,28/09/2017,Project delivery costs – supplier services ,Economic Development Division ,KPMG LLP ,204255-101 ,"274,909.63",
DFID,DFID,07/09/2017,Aid Programme - Pooled/Basket funding ,Research and Evidence Division ,WHO (GENEVA) ,201900-106 ,"74,500.00",
DFID,DFID,29/09/2017,Aid Programme - Core contributions ,Conflict  Humanitarian  Security & Stabilisation Division ,WHO (GENEVA) ,300339-106 ,"5,000,000.00",
DFID,DFID,19/09/2017,Aid Programme - Voluntary contributions ,East and Central Africa ,WHO (GENEVA) ,203155-104 ,"288,403.00",
DFID,DFID,15/09/2017,Aid Programme - Joint programme contribution ,Policy Division ,WHO (GENEVA) ,204700-101 ,"1,600,000.00",
DFID,DFID,15/09/2017,Aid Programme - Voluntary contributions ,West and Southern Africa ,WHO (GENEVA) ,204640-104 ,"228,648.00",
DFID,DFID,15/09/2017,Aid Programme - Voluntary contributions ,West and Southern Africa ,WHO (GENEVA) ,204640-110 ,"32,658.00",
DFID,DFID,15/09/2017,Aid Programme - Voluntary contributions ,West and Southern Africa ,WHO (GENEVA) ,204640-111 ,"151,032.00",
DFID,DFID,12/09/2017,Project delivery costs – supplier services ,Middle East and North Africa Division ,CHEMONICS ,205048-101 ,"112,826.00",
DFID,DFID,26/09/2017,Aid Programme - Core contributions ,Conflict  Humanitarian  Security & Stabilisation Division ,IOM ,300339-107 ,"4,000,000.00",
DFID,DFID,07/09/2017,Aid Programme - Voluntary contributions ,Middle East and North Africa Division ,IOM ,300317-102 ,"1,000,000.00",
DFID,DFID,21/09/2017,Aid Programme - Voluntary contributions ,Asia  Caribbean and Overseas Territories ,IOM ,300051-101 ,"330,000.00",
DFID,DFID,28/09/2017,Aid Programme - Accountable Grant Payments ,West and Southern Africa ,SEARCH FOR COMMON GROUND ,202416-114 ,"448,988.00",
DFID,DFID,21/09/2017,Project delivery costs – supplier services ,Asia  Caribbean and Overseas Territories ,BMB MOTT  MACDONALD ,107480-101 ,"40,379.25",
DFID,DFID,22/09/2017,Project delivery costs – supplier services ,Asia  Caribbean and Overseas Territories ,BMB MOTT  MACDONALD ,107480-101 ,"67,316.05",
DFID,DFID,20/09/2017,Project delivery costs – supplier services ,Asia  Caribbean and Overseas Territories ,IPE Global Ltd. ,204794-103 ,"94,400.00",
DFID,DFID,26/09/2017,Project delivery costs – supplier services ,Asia  Caribbean and Overseas Territories ,IPE Global Ltd. ,204794-103 ,"118,000.00",
DFID,DFID,26/09/2017,Project delivery costs – supplier services ,Asia  Caribbean and Overseas Territories ,IPE Global Ltd. ,204794-103 ,"118,000.00",
DFID,DFID,26/09/2017,Project delivery costs – supplier services ,Asia  Caribbean and Overseas Territories ,IPE Global Ltd. ,204794-103 ,"7,313.64",
DFID,DFID,15/09/2017,Project delivery costs – supplier services ,Asia  Caribbean and Overseas Territories ,IPE Global Ltd. ,204794-103 ,"27,763.22",
DFID,DFID,11/09/2017,Project delivery costs – supplier services ,Asia  Caribbean and Overseas Territories ,IPE Global Ltd. ,204794-103 ,"159,300.00",
DFID,DFID,15/09/2017,Project delivery costs – supplier services ,Asia  Caribbean and Overseas Territories ,IPE Global Ltd. ,204825-106 ,"3,535.75",
DFID,DFID,08/09/2017,Project delivery costs – supplier services ,West and Southern Africa ,IPE Global Ltd. ,203164-102 ,"707,198.86",
DFID,DFID,27/09/2017,Aid Programme - Accountable Grant Payments ,Economic Development Division ,Transparency International Secr ,204252-124 ,"67,547.90",
DFID,DFID,19/09/2017,Aid Programme - Voluntary contributions ,East and Central Africa ,UNEP ,205115-102 ,"750,000.00",
DFID,DFID,28/09/2017,Aid Programme - Voluntary contributions ,West and Southern Africa ,THE INTERNATIONAL COMMITTEE OF THE RED CROSS (ICRC) ,204565-104 ,"2,900,000.00",
DFID,DFID,26/09/2017,Aid Programme - Voluntary contributions ,Asia  Caribbean and Overseas Territories ,Supplier Name withheld ,203904-103 ,"2,500,000.00",
DFID,DFID,05/09/2017,Aid Programme - Accountable Grant Payments ,West and Southern Africa ,The Carter Center ,204889-102 ,"238,351.00",
DFID,DFID,05/09/2017,Aid Programme - Accountable Grant Payments ,West and Southern Africa ,The Carter Center ,105844-107 ,"125,532.00",
DFID,DFID,21/09/2017,Aid Programme - Accountable Grant Payments ,East and Central Africa ,INTERNATIONAL RESCUE COMMITTEE ,205116-111 ,"483,841.18",
DFID,DFID,29/09/2017,Aid Programme - Core contributions ,Conflict  Humanitarian  Security & Stabilisation Division ,United Nations General Trust Fund Account ,300339-101 ,"55,000,000.00",
DFID,DFID,21/09/2017,Aid Programme - Strategic Grant Arrangement payments ,Research and Evidence Division ,WELLCOME TRUST ,204571-110 ,"140,117.00",
DFID,DFID,18/09/2017,Aid Programme - Core contributions ,Research and Evidence Division ,BILL & MELINDA GATES FOUNDATION (USD) ,205273-106 ,"1,845,290.82",
DFID,DFID,15/09/2017,Hotels - Accommodation only ,East and Central Africa ,Southern Sun Hotels(T) Ltd (USD) ,101634-101 ,512.82,
DFID,DFID,27/09/2017,Hotels - Accommodation only ,East and Central Africa ,Southern Sun Hotels(T) Ltd (USD) ,101634-101 ,526.89,
DFID,DFID,27/09/2017,Hotels - Accommodation only ,East and Central Africa ,Southern Sun Hotels(T) Ltd (USD) ,101634-101 ,"1,001.33",
DFID,DFID,27/09/2017,Hotels - Accommodation only ,East and Central Africa ,Southern Sun Hotels(T) Ltd (USD) ,101634-101 ,843.19,
DFID,DFID,22/09/2017,Aid Programme - Joint programme contribution ,Research and Evidence Division ,Engineering & Physical Sciences Research Council ,203781-106 ,"154,083.36",
DFID,DFID,19/09/2017,Aid Programme - Accountable Grant Payments ,Economic Development Division , WORLD RESOURCES INSTITUTE ,204949-101 ,"511,556.00",
DFID,DFID,13/09/2017,Project delivery costs – supplier services ,West and Southern Africa ,BMB  MOTT  MACDONALD ,204242-102 ,"392,705.00",
DFID,DFID,22/09/2017,Fund monies to be managed and dispersed by the supplier ,East and Central Africa ,BMB  MOTT  MACDONALD ,203383-101 ,"340,000.00",
DFID,DFID,07/09/2017,Project delivery costs – supplier services ,East and Central Africa ,BMB  MOTT  MACDONALD ,202511-102 ,"471,374.40",
DFID,DFID,07/09/2017,Project delivery costs – supplier services ,East and Central Africa ,BMB  MOTT  MACDONALD ,202511-102 ,"128,757.68",
DFID,DFID,07/09/2017,Project delivery costs – supplier services ,East and Central Africa ,BMB  MOTT  MACDONALD ,202511-102 ,"122,331.02",
DFID,DFID,05/09/2017,Aid Programme - Accountable Grant Payments ,Policy Division ,GLOBAL WATER PARTNERSHIP ,202884-107 ,"10,811.00",
DFID,DFID,07/09/2017,Aid Programme - Strategic Grant Arrangement payments ,Asia  Caribbean and Overseas Territories ,International Water Management Institute (IWMI) ,202775-111 ,"262,343.00",
DFID,DFID,26/09/2017,Aid Programme - Trust Funds contributions ,Asia  Caribbean and Overseas Territories ,UNOPS ,201239-101 ,"10,000,000.00",
DFID,DFID,26/09/2017,Aid Programme - Trust Funds contributions ,Asia  Caribbean and Overseas Territories ,UNOPS ,201239-103 ,"7,500,000.00",
DFID,DFID,20/09/2017,Aid Programme - Trust Funds contributions ,Asia  Caribbean and Overseas Territories ,UNOPS ,202149-102 ,"18,700,000.00",
DFID,DFID,20/09/2017,Aid Programme - Trust Funds contributions ,Asia  Caribbean and Overseas Territories ,UNOPS ,202149-104 ,"2,300,000.00",
DFID,DFID,21/09/2017,Aid Programme - Accountable Grant Payments ,Asia  Caribbean and Overseas Territories ,UCEP - Underpriveliged Childrens Education Programs ,203870-102 ,"92,501.00",
DFID,DFID,21/09/2017,Aid Programme - Accountable Grant Payments ,Asia  Caribbean and Overseas Territories ,UCEP - Underpriveliged Childrens Education Programs ,203870-104 ,"498,702.69",
DFID,DFID,11/09/2017,Air fares ,Finance and Corporate Performance Division ,Jaya Travels & Tours Pvt Ltd. (US$) ,203698-102 ,"1,151.19",
DFID,DFID,29/09/2017,Fund monies to be managed and dispersed by the supplier ,Research and Evidence Division ,CARDNO EMERGING MARKETS (UK) LTD ,203048-105 ,"203,570.53",
DFID,DFID,07/09/2017,Fund monies to be managed and dispersed by the supplier ,Research and Evidence Division ,CARDNO EMERGING MARKETS (UK) LTD ,203048-105 ,"399,951.69",
DFID,DFID,07/09/2017,Fund monies to be managed and dispersed by the supplier ,Research and Evidence Division ,CARDNO EMERGING MARKETS (UK) LTD ,203048-106 ,"58,417.40",
DFID,DFID,29/09/2017,Fund monies to be managed and dispersed by the supplier ,Research and Evidence Division ,CARDNO EMERGING MARKETS (UK) LTD ,203048-106 ,"34,573.69",
DFID,DFID,19/09/2017,Project delivery costs – supplier services ,East and Central Africa ,CARDNO EMERGING MARKETS (UK) LTD ,205052-104 ,"19,465.47",
DFID,DFID,11/09/2017,Project delivery costs – supplier services ,East and Central Africa ,CARDNO EMERGING MARKETS (UK) LTD ,202551-102 ,"133,585.08",
DFID,DFID,07/09/2017,Aid Programme - Accountable Grant Payments ,East and Central Africa ,International Initiative for Impact Evaluation(3ie) ,200795-109 ,"17,579.00",
DFID,DFID,01/09/2017,Aid Programme - Accountable Grant Payments ,Research and Evidence Division ,International Initiative for Impact Evaluation(3ie) ,203650-103 ,"324,411.00",
DFID,DFID,05/09/2017,Aid Programme - Accountable Grant Payments ,Research and Evidence Division ,International Initiative for Impact Evaluation(3ie) ,203650-104 ,"565,068.00",
DFID,DFID,18/09/2017,Project delivery costs – supplier services ,East and Central Africa ,ADAM SMITH INTERNATIONAL ,204334-102 ,"24,991.35",
DFID,DFID,27/09/2017,Bank Charges/Services ,Group Operations ,Government Actuary's Department ,100182-101 ,655.20,
DFID,DFID,01/09/2017,Aid Programme - Accountable Grant Payments ,Asia  Caribbean and Overseas Territories ,NATIONAL DEMOCRATIC INSTITUTE (NDI) ,204613-102 ,"86,304.00",
DFID,DFID,18/09/2017,Aid Programme - Core contributions ,Asia  Caribbean and Overseas Territories ,UNOPS - support for Access Cell unit ,300072-101 ,"300,000.00",
DFID,DFID,11/09/2017,Aid Programme - Voluntary contributions ,Middle East and North Africa Division ,UNOPS - support for Access Cell unit ,300001-101 ,"170,000.00",
DFID,DFID,27/09/2017,Project delivery costs – supplier services ,Asia  Caribbean and Overseas Territories ,RURAL RECONSTRUCTION NEPAL ,203764-104 ,"261,693.00",
DFID,DFID,27/09/2017,Project delivery costs – supplier services ,Asia  Caribbean and Overseas Territories ,RURAL RECONSTRUCTION NEPAL ,203764-110 ,"296,630.00",
DFID,DFID,07/09/2017,Aid Programme - Accountable Grant Payments ,Asia  Caribbean and Overseas Territories ,Sarhad Rural Support Programme (SRSP) ,202367-106 ,"95,000.00",
DFID,DFID,18/09/2017,Air fares ,Asia  Caribbean and Overseas Territories ,BONDS TRAVEL BUREAU ,101624-101 ,711.29,
DFID,DFID,18/09/2017,Hardware - printers ,Asia  Caribbean and Overseas Territories ,HB COMPUTERS ,101624-101 ,594.74,
DFID,DFID,11/09/2017,Data Network - land lines ,Business Solutions Division Level ,NAYATEL (PVT) LTD ,203329-102 ,676.19,
DFID,DFID,11/09/2017,Data Network - land lines ,Business Solutions Division Level ,NAYATEL (PVT) LTD ,200002-121 ,676.19,
DFID,DFID,11/09/2017,Air fares ,Asia  Caribbean and Overseas Territories ,OMAR TRAVELS ,204053-101 ,620.70,
DFID,DFID,11/09/2017,Hotels - Accommodation only ,Asia  Caribbean and Overseas Territories ,Supplier Name withheld ,101624-101 ,"1,388.42",
DFID,DFID,27/09/2017,Hotels - Accommodation only ,Asia  Caribbean and Overseas Territories ,Supplier Name withheld ,101624-101 ,647.19,
DFID,DFID,28/09/2017,Project delivery costs – supplier services ,Asia  Caribbean and Overseas Territories ,McKinsey & Co  Inc UK ,202697-109 ,"384,615.00",
DFID,DFID,26/09/2017,Medical/Health Services ,West and Southern Africa ,FLIMAS ,101638-101 ,"4,583.74",
DFID,DFID,29/09/2017,Aid Programme - Voluntary contributions ,Policy Division ,Access to Medicine Foundation ,204689-101 ,"500,000.00",
DFID,DFID,12/09/2017,Hostile Environment Training ,East and Central Africa ,UNDP Somalia ,101630-102 ,"1,360.60",
DFID,DFID,19/09/2017,Hostile Environment Training ,East and Central Africa ,UNDP Somalia ,101630-102 ,"1,139.83",
DFID,DFID,27/09/2017,Conferences  Seminars & Meeting/Event Resource ,West and Southern Africa ,Cresta Golfview Hotel Lusaka ,203627-111 ,"1,185.11",
DFID,DFID,28/09/2017,Project delivery costs – supplier services ,East and Central Africa ,PALLADIUM INTERNATIONAL ,202547-102 ,"516,650.94",
DFID,DFID,18/09/2017,Project delivery costs – supplier services ,East and Central Africa ,PALLADIUM INTERNATIONAL ,202547-102 ,"417,572.72",
DFID,DFID,14/09/2017,Project delivery costs – supplier services ,West and Southern Africa ,PALLADIUM INTERNATIONAL ,202819-102 ,"65,320.05",
DFID,DFID,27/09/2017,Project delivery costs – supplier services ,Asia  Caribbean and Overseas Territories ,PALLADIUM INTERNATIONAL ,202488-105 ,"424,303.83",
DFID,DFID,21/09/2017,Project delivery costs – supplier services ,West and Southern Africa ,PALLADIUM INTERNATIONAL ,202992-101 ,"928,384.00",
DFID,DFID,26/09/2017,Project delivery costs – supplier services ,West and Southern Africa ,PALLADIUM INTERNATIONAL ,202992-101 ,"1,439,149.72",
DFID,DFID,21/09/2017,Project delivery costs – supplier services ,West and Southern Africa ,PALLADIUM INTERNATIONAL ,202992-105 ,"55,818.00",
DFID,DFID,28/09/2017,Recruitment costs ,Human Resources ,HM REVENUE AND CUSTOMS Acc ,100269-155 ,"55,472.98",DFIDs contribution to the Civil Service Executive Recruitment Campaign
DFID,DFID,28/09/2017,Recruitment costs ,Human Resources ,HM REVENUE AND CUSTOMS Acc ,100269-127 ,"7,767.60",
DFID,DFID,06/09/2017,Recruitment costs ,Business Solutions Division Level ,HM REVENUE AND CUSTOMS Acc ,200001-101 ,"5,280.00",
DFID,DFID,29/09/2017,Recruitment costs ,Human Resources ,HM REVENUE AND CUSTOMS Acc ,100269-128 ,"12,749.60",
DFID,DFID,29/09/2017,Recruitment costs ,Human Resources ,HM REVENUE AND CUSTOMS Acc ,100269-127 ,"3,338.46",
DFID,DFID,20/09/2017,Aid Programme - Core contributions ,West and Southern Africa ,The World Bank (EFO) ,300338-101 ,"500,000.00",
DFID,DFID,28/09/2017,Aid Programme - Voluntary contributions ,Economic Development Division ,The World Bank (EFO) ,300292-110 ,"250,000.00",
DFID,DFID,18/09/2017,Courier & Bag Services ,Top Management Group ,Royal Mail (Courier) ,100232-106 ,605.25,
DFID,DFID,29/09/2017,Auditors Remuneration & Expenses - Cash ,West and Southern Africa ,Baker Tilly Nigeria ,205066-101 ,"2,961.89",
DFID,DFID,27/09/2017,Aid Programme - Poverty Reduction Budget Support ,Asia  Caribbean and Overseas Territories ,STATE BANK OF PAKISTAN  ,202697-101 ,"21,125,000.00",
DFID,DFID,04/09/2017,Further Education costs ,West and Southern Africa ,The Centre for Development  Environment and Policy ,101622-106 ,"3,150.00",
DFID,DFID,07/09/2017,Project delivery costs – supplier services ,East and Central Africa ,Bon Voyage Travel Centre Ltd(USD) ,202843-103 ,"1,309.71",
DFID,DFID,07/09/2017,Air fares ,East and Central Africa ,Bon Voyage Travel Centre Ltd(USD) ,101634-101 ,924.50,
DFID,DFID,07/09/2017,Air fares ,East and Central Africa ,Bon Voyage Travel Centre Ltd(USD) ,101634-101 ,724.19,
DFID,DFID,07/09/2017,Air fares ,East and Central Africa ,Bon Voyage Travel Centre Ltd(USD) ,101634-101 ,724.19,
DFID,DFID,19/09/2017,Air fares ,East and Central Africa ,Bon Voyage Travel Centre Ltd(USD) ,101634-101 ,"1,309.71",
DFID,DFID,27/09/2017,Air fares ,East and Central Africa ,Bon Voyage Travel Centre Ltd(USD) ,101634-101 ,"1,044.44",
DFID,DFID,27/09/2017,Air fares ,East and Central Africa ,Bon Voyage Travel Centre Ltd(USD) ,101634-101 ,"1,103.70",
DFID,DFID,27/09/2017,Air fares ,East and Central Africa ,Bon Voyage Travel Centre Ltd(USD) ,101634-101 ,524.44,
DFID,DFID,27/09/2017,Hotels - Accommodation only ,East and Central Africa ,Bon Voyage Travel Centre Ltd(USD) ,101634-101 ,533.33,
DFID,DFID,27/09/2017,Hotels - Accommodation only ,East and Central Africa ,Bon Voyage Travel Centre Ltd(USD) ,101634-101 ,673.33,
DFID,DFID,11/09/2017,Air fares ,East and Central Africa ,Bon Voyage Travel Centre Ltd(USD) ,101634-101 ,828.22,
DFID,DFID,22/09/2017,Air fares ,East and Central Africa ,Bon Voyage Travel Centre Ltd(USD) ,101634-101 ,613.45,
DFID,DFID,27/09/2017,Air fares ,East and Central Africa ,Bon Voyage Travel Centre Ltd(USD) ,101634-101 ,785.19,
DFID,DFID,11/09/2017,Research and development costs - supplier services ,Research and Evidence Division ,Tim Leyland ,300361-102 ,"1,721.88",
DFID,DFID,15/09/2017,Aid Programme - Accountable Grant Payments ,East and Central Africa ,International Institute for Environment and Development (IIED) ,203574-110 ,"140,027.00",
DFID,DFID,28/09/2017,Training Providers/Facilitation Services ,Finance and Corporate Performance Division ,Department of Energy and Climate Change (DECC) ,204846-101 ,"4,130.00",
DFID,DFID,14/09/2017,Project delivery costs – supplier services ,Asia  Caribbean and Overseas Territories ,ERM India Private Limited ,114293-103 ,"4,647.90",
DFID,DFID,07/09/2017,Aid Programme - Core contributions ,Research and Evidence Division ,Program for Appropriate Technology in Health ,300341-107 ,"752,367.00",
DFID,DFID,07/09/2017,Aid Programme - Core contributions ,Research and Evidence Division ,Program for Appropriate Technology in Health ,300341-108 ,"321,046.00",
DFID,DFID,07/09/2017,Aid Programme - Core contributions ,Research and Evidence Division ,Program for Appropriate Technology in Health ,300341-110 ,"257,419.50",
DFID,DFID,07/09/2017,Aid Programme - Core contributions ,Research and Evidence Division ,Program for Appropriate Technology in Health ,300341-111 ,"49,957.00",
DFID,DFID,20/09/2017,Aid Programme - Core contributions ,Economic Development Division ,SG HAMBROS BANK & TRUST LTD GBP ,203232-101 ,"1,433,860.00",
DFID,DFID,22/09/2017,Encashment of Promissory Notes ,Policy Division ,Strategic Climate Fund  World Bank  ,200368-111 ,"2,833,000.00",
DFID,DFID,29/09/2017,Encashment of Promissory Notes ,International Relations Division ,Asian Development Fund  ,203547-103 ,"7,550,000.00",
DFID,DFID,29/09/2017,Encashment of Promissory Notes ,International Relations Division ,Asian Development Fund  ,200614-104 ,"2,204,000.00",
DFID,DFID,13/09/2017,Aid Programme - Accountable Grant Payments ,West and Southern Africa ,Clinton Health Access Initiative ,203543-104 ,"144,188.00",
DFID,DFID,29/09/2017,Aid Programme - Accountable Grant Payments ,West and Southern Africa ,Action Against Hunger - USA ,202909-106 ,"96,998.84",
DFID,DFID,29/09/2017,Aid Programme - Accountable Grant Payments ,West and Southern Africa ,Action Against Hunger - USA ,202909-106 ,"458,536.48",
DFID,DFID,20/09/2017,Aid Programme - Accountable Grant Payments ,Economic Development Division ,Columbia University ,204252-119 ,"53,614.25",
DFID,DFID,29/09/2017,Aid Programme - Accountable Grant Payments ,Asia  Caribbean and Overseas Territories ,OBSERVER RESEARCH FOUNDATION ,202765-105 ,"8,435.05",
DFID,DFID,05/09/2017,Aid Programme - Humanitarian Material Relief Assistance and Services ,Conflict  Humanitarian  Security & Stabilisation Division ,Norwegian Refugee Council ,204610-102 ,"50,000.00",
DFID,DFID,15/09/2017,Project delivery costs – supplier services ,East and Central Africa ,Norwegian Refugee Council ,300270-103 ,"8,521.00",
DFID,DFID,28/09/2017,Aid Programme - Accountable Grant Payments ,Middle East and North Africa Division ,Norwegian Refugee Council ,300290-101 ,"3,245,992.00",
DFID,DFID,28/09/2017,Aid Programme - Accountable Grant Payments ,Middle East and North Africa Division ,Norwegian Refugee Council ,300290-101 ,"1,108,739.00",
DFID,DFID,19/09/2017,Aid Programme - Accountable Grant Payments ,East and Central Africa ,Norwegian Refugee Council ,205116-104 ,"303,186.21",
DFID,DFID,19/09/2017,Aid Programme - Accountable Grant Payments ,East and Central Africa ,Norwegian Refugee Council ,205116-112 ,"285,351.73",
DFID,DFID,19/09/2017,Aid Programme - Accountable Grant Payments ,East and Central Africa ,Norwegian Refugee Council ,205116-113 ,"303,186.21",
DFID,DFID,05/09/2017,Legal costs ,Human Resources ,Anderson Strathern ,100269-136 ,"3,909.50",
DFID,DFID,15/09/2017,Legal costs ,Human Resources ,Anderson Strathern ,100269-136 ,738.50,
DFID,DFID,11/09/2017,Aid Programme - Accountable Grant Payments ,Research and Evidence Division ,University of Edinburgh - Finance Department ,203665-103 ,"64,725.00",
DFID,DFID,05/09/2017,Research and development costs - supplier services ,Research and Evidence Division ,University of Edinburgh - Finance Department ,204326-102 ,"236,428.20",
DFID,DFID,27/09/2017,Air fares ,West and Southern Africa ,Supplier Name withheld ,101622-105 ,"1,455.78",
DFID,DFID,05/09/2017,Training - Travel & Subsistence ,Asia  Caribbean and Overseas Territories ,Gerry's Travel Agency Private Limited ,101624-101 ,967.79,
DFID,DFID,15/09/2017,Project delivery costs – supplier services ,Economic Development Division ,iMEDIA ASSOCIATES LTD ,202629-102 ,"1,350.00",
DFID,DFID,15/09/2017,Project delivery costs – supplier services ,Economic Development Division ,iMEDIA ASSOCIATES LTD ,202629-102 ,"11,757.10",
DFID,DFID,14/09/2017,Project delivery costs – supplier services ,Policy Division ,Triple Line Consulting ,205210-102 ,"4,368.00",
DFID,DFID,21/09/2017,Project delivery costs – supplier services ,Policy Division ,Triple Line Consulting ,205210-102 ,780.00,
DFID,DFID,11/09/2017,Project delivery costs – supplier services ,East and Central Africa ,Triple Line Consulting ,203220-102 ,"42,742.00",
DFID,DFID,28/09/2017,Project delivery costs – supplier services ,Economic Development Division ,IMC Worldwide Ltd. ,205118-103 ,"11,874.60",
DFID,DFID,21/09/2017,Project delivery costs – supplier services ,Economic Development Division ,IMC Worldwide Ltd. ,205226-103 ,"4,668.75",
DFID,DFID,06/09/2017,Project delivery costs – supplier services ,West and Southern Africa ,IMC Worldwide Ltd. ,205195-102 ,"430,783.79",
DFID,DFID,27/09/2017,Project delivery costs – supplier services ,Economic Development Division ,IMC Worldwide Ltd. ,202628-102 ,"15,312.00",
DFID,DFID,11/09/2017,Project delivery costs – supplier services ,Asia  Caribbean and Overseas Territories ,IMC Worldwide Ltd. ,203186-102 ,"252,478.47",
DFID,DFID,11/09/2017,Project delivery costs – supplier services ,Asia  Caribbean and Overseas Territories ,IMC Worldwide Ltd. ,203186-103 ,"228,446.87",
DFID,DFID,11/09/2017,Project delivery costs – supplier services ,Asia  Caribbean and Overseas Territories ,IMC Worldwide Ltd. ,203186-110 ,"100,000.00",
DFID,DFID,18/09/2017,Project delivery costs – supplier services ,West and Southern Africa ,IMC Worldwide Ltd. ,202455-102 ,"7,660.50",
DFID,DFID,18/09/2017,Project delivery costs – supplier services ,West and Southern Africa ,IMC Worldwide Ltd. ,202455-102 ,"8,328.63",
DFID,DFID,29/09/2017,Project delivery costs – supplier services ,West and Southern Africa ,IMC Worldwide Ltd. ,202455-102 ,"3,448.50",
DFID,DFID,28/09/2017,Project delivery costs – supplier services ,Economic Development Division ,IMC Worldwide Ltd. ,203444-109 ,"9,116.40",
DFID,DFID,15/09/2017,Project delivery costs – supplier services ,Asia  Caribbean and Overseas Territories ,IMC Worldwide Ltd. ,202328-106 ,"606,725.00",
DFID,DFID,26/09/2017,Project delivery costs – supplier services ,Asia  Caribbean and Overseas Territories ,IMC Worldwide Ltd. ,202328-107 ,"274,024.85",
DFID,DFID,26/09/2017,Project delivery costs – supplier services ,Asia  Caribbean and Overseas Territories ,IMC Worldwide Ltd. ,202697-111 ,"347,183.61",
DFID,DFID,15/09/2017,Project delivery costs – supplier services ,Asia  Caribbean and Overseas Territories ,IMC Worldwide Ltd. ,202697-112 ,"499,214.00",
DFID,DFID,26/09/2017,Project delivery costs – supplier services ,Asia  Caribbean and Overseas Territories ,IMC Worldwide Ltd. ,300268-102 ,"16,570.83",
DFID,DFID,05/09/2017,Project delivery costs – supplier services ,East and Central Africa ,IMC Worldwide Ltd. ,204861-103 ,"50,970.00",
DFID,DFID,06/09/2017,Project delivery costs – supplier services ,Economic Development Division ,IMC Worldwide Ltd. ,205118-102 ,"68,915.00",
DFID,DFID,18/09/2017,Project delivery costs – supplier services ,East and Central Africa ,DAI Europe ,204258-101 ,"41,018.55",
DFID,DFID,18/09/2017,Project delivery costs – supplier services ,East and Central Africa ,DAI Europe ,204258-101 ,"6,255.61",
DFID,DFID,18/09/2017,Project delivery costs – supplier services ,East and Central Africa ,DAI Europe ,204258-101 ,"27,698.51",
DFID,DFID,18/09/2017,Project delivery costs – supplier services ,East and Central Africa ,DAI Europe ,204258-101 ,"506,690.83",
DFID,DFID,05/09/2017,Project delivery costs – supplier services ,Middle East and North Africa Division ,DAI Europe ,204325-102 ,"28,844.49",
DFID,DFID,28/09/2017,Project delivery costs – supplier services ,West and Southern Africa ,DAI Europe ,202476-103 ,"503,356.28",
DFID,DFID,29/09/2017,Project delivery costs – supplier services ,East and Central Africa ,DAI Europe ,203574-112 ,"51,801.07",
DFID,DFID,20/09/2017,Project delivery costs – supplier services ,East and Central Africa ,DAI Europe ,203574-112 ,"65,876.01",
DFID,DFID,29/09/2017,Project delivery costs – supplier services ,East and Central Africa ,DAI Europe ,203574-103 ,"20,723.98",
DFID,DFID,20/09/2017,Project delivery costs – supplier services ,East and Central Africa ,DAI Europe ,203574-103 ,"48,465.52",
DFID,DFID,20/09/2017,Project delivery costs – supplier services ,East and Central Africa ,DAI Europe ,203574-109 ,"6,107.09",
DFID,DFID,29/09/2017,Project delivery costs – supplier services ,East and Central Africa ,DAI Europe ,203574-109 ,885.00,
DFID,DFID,29/09/2017,Project delivery costs – supplier services ,East and Central Africa ,DAI Europe ,203574-109 ,"18,319.17",
DFID,DFID,29/09/2017,Project delivery costs – supplier services ,East and Central Africa ,DAI Europe ,203574-112 ,"63,245.92",
DFID,DFID,07/09/2017,Project delivery costs – supplier services ,Research and Evidence Division ,DAI Europe ,203339-105 ,"27,647.38",
DFID,DFID,21/09/2017,Project delivery costs – supplier services ,East and Central Africa ,DAI Europe ,204437-102 ,"473,853.87",
DFID,DFID,04/09/2017,Project delivery costs – supplier services ,East and Central Africa ,DAI Europe ,204437-104 ,"46,636.00",
DFID,DFID,04/09/2017,Project delivery costs – supplier services ,East and Central Africa ,DAI Europe ,204437-108 ,"247,028.24",
DFID,DFID,21/09/2017,Project delivery costs – supplier services ,East and Central Africa ,DAI Europe ,204437-108 ,"29,425.48",
DFID,DFID,29/09/2017,Project delivery costs – supplier services ,East and Central Africa ,DAI Europe ,203574-103 ,"24,089.74",
DFID,DFID,20/09/2017,Project delivery costs – supplier services ,West and Southern Africa ,DAI Europe ,201958-102 ,"511,241.75",
DFID,DFID,20/09/2017,Project delivery costs – supplier services ,Middle East and North Africa Division ,DAI Europe ,204325-102 ,"13,308.54",
DFID,DFID,28/09/2017,Project delivery costs – supplier services ,Asia  Caribbean and Overseas Territories ,DAI Europe ,204604-102 ,"72,046.31",
DFID,DFID,11/09/2017,Project delivery costs – supplier services ,West and Southern Africa ,DAI Europe ,203922-101 ,"353,419.57",
DFID,DFID,15/09/2017,Project delivery costs – supplier services ,West and Southern Africa ,DAI Europe ,202585-102 ,"154,026.28",
DFID,DFID,15/09/2017,Project delivery costs – supplier services ,West and Southern Africa ,DAI Europe ,202585-102 ,"163,066.78",
DFID,DFID,21/09/2017,Project delivery costs – supplier services ,East and Central Africa ,DAI Europe ,202580-102 ,"76,388.06",
DFID,DFID,29/09/2017,Project delivery costs – supplier services ,East and Central Africa ,DAI Europe ,202580-102 ,"226,195.00",
DFID,DFID,19/09/2017,Project delivery costs – supplier services ,West and Southern Africa ,DAI Europe ,201980-102 ,"42,991.09",
DFID,DFID,19/09/2017,Project delivery costs – supplier services ,West and Southern Africa ,DAI Europe ,201980-102 ,"65,020.43",
DFID,DFID,20/09/2017,Project delivery costs – supplier services ,Asia  Caribbean and Overseas Territories ,DAI Europe ,204619-103 ,"85,913.09",
DFID,DFID,11/09/2017,Project delivery costs – supplier services ,Asia  Caribbean and Overseas Territories ,DAI Europe ,204619-103 ,"88,320.00",
DFID,DFID,15/09/2017,Project delivery costs – supplier services ,West and Southern Africa ,DAI Europe ,204822-101 ,"349,188.94",
DFID,DFID,13/09/2017,Project delivery costs – supplier services ,Asia  Caribbean and Overseas Territories ,DAI Europe ,204672-102 ,"192,283.71",
DFID,DFID,29/09/2017,Project delivery costs – supplier services ,East and Central Africa ,DAI Europe ,203473-103 ,"10,054.76",
DFID,DFID,22/09/2017,Project delivery costs – supplier services ,Asia  Caribbean and Overseas Territories ,DAI Europe ,202491-102 ,"362,926.86",
DFID,DFID,22/09/2017,Aid Programme - Challenge Fund payments ,Asia  Caribbean and Overseas Territories ,DAI Europe ,202491-106 ,"91,233.29",
DFID,DFID,26/09/2017,Project delivery costs – supplier services ,Asia  Caribbean and Overseas Territories ,DAI Europe ,114433-102 ,"449,298.56",
DFID,DFID,13/09/2017,Project delivery costs – supplier services ,East and Central Africa ,DAI Europe ,203307-110 ,"1,782.00",
DFID,DFID,22/09/2017,Project delivery costs – supplier services ,East and Central Africa ,DAI Europe ,204157-106 ,"314,038.95",
DFID,DFID,13/09/2017,Project delivery costs – supplier services ,East and Central Africa ,DAI Europe ,202900-102 ,"783,127.93",
DFID,DFID,13/09/2017,Project delivery costs – supplier services ,East and Central Africa ,DAI Europe ,202900-102 ,"472,051.08",
DFID,DFID,06/09/2017,Project delivery costs – supplier services ,East and Central Africa ,DAI Europe ,202596-105 ,"191,231.88",
DFID,DFID,13/09/2017,Fund monies to be managed and dispersed by the supplier ,Middle East and North Africa Division ,DAI Europe ,201828-101 ,"113,474.14",
DFID,DFID,01/09/2017,Hotels - Accommodation only ,Asia  Caribbean and Overseas Territories ,Ramada Multan ,101624-101 ,689.01,
DFID,DFID,01/09/2017,Hotels - Accommodation only ,Asia  Caribbean and Overseas Territories ,Ramada Multan ,101624-101 ,689.01,
DFID,DFID,19/09/2017,Aid Programme - Accountable Grant Payments ,Policy Division ,Sightsavers ,203559-156 ,"215,000.00",
DFID,DFID,07/09/2017,Project delivery costs – supplier services ,Policy Division ,Sightsavers ,203145-101 ,"1,372,745.00",
DFID,DFID,05/09/2017,Project delivery costs – supplier services ,Policy Division ,Sightsavers ,203146-103 ,"122,395.00",
DFID,DFID,19/09/2017,Aid Programme - Accountable Grant Payments ,Policy Division ,Sightsavers ,204731-103 ,"28,000.00",
DFID,DFID,07/09/2017,Project delivery costs – supplier services ,Asia  Caribbean and Overseas Territories ,Abt Associates ,205145-107 ,"112,294.24",
DFID,DFID,22/09/2017,Project delivery costs – supplier services ,East and Central Africa ,Marie Stopes International (MSI) ,204266-102 ,"850,604.00",
DFID,DFID,05/09/2017,Project delivery costs – supplier services ,Policy Division ,PATH ,204954-102 ,"89,728.98",
DFID,DFID,26/09/2017,Project delivery costs – supplier services ,East and Central Africa ,WYG International ,300230-105 ,"355,344.46",
DFID,DFID,26/09/2017,Project delivery costs – supplier services ,Asia  Caribbean and Overseas Territories ,LTS International Ltd. ,201724-153 ,"166,352.59",
DFID,DFID,26/09/2017,Project delivery costs – supplier services ,Asia  Caribbean and Overseas Territories ,LTS International Ltd. ,201724-153 ,"63,870.53",
DFID,DFID,05/09/2017,Project delivery costs – supplier services ,Asia  Caribbean and Overseas Territories ,LTS International Ltd. ,201724-153 ,"202,088.62",
DFID,DFID,05/09/2017,Project delivery costs – supplier services ,Asia  Caribbean and Overseas Territories ,LTS International Ltd. ,201724-153 ,"240,057.03",
DFID,DFID,05/09/2017,Project delivery costs – supplier services ,Asia  Caribbean and Overseas Territories ,LTS International Ltd. ,201724-153 ,"26,592.87",
DFID,DFID,05/09/2017,Project delivery costs – supplier services ,Asia  Caribbean and Overseas Territories ,LTS International Ltd. ,201724-153 ,"95,582.57",
DFID,DFID,05/09/2017,Project delivery costs – supplier services ,Asia  Caribbean and Overseas Territories ,LTS International Ltd. ,201724-153 ,"86,452.84",
DFID,DFID,11/09/2017,Project delivery costs – supplier services ,Policy Division ,LTS International Ltd. ,202745-105 ,"45,699.00",
DFID,DFID,18/09/2017,Project delivery costs – supplier services ,Policy Division ,LTS International Ltd. ,201724-135 ,"26,985.76",
DFID,DFID,28/09/2017,Project delivery costs – supplier services ,Policy Division ,LTS International Ltd. ,201724-135 ,"274,567.00",
DFID,DFID,01/09/2017,Fund monies to be managed and dispersed by the supplier ,Policy Division ,Mannion Daniels Limited ,202035-101 ,"179,470.06",
DFID,DFID,01/09/2017,Fund monies to be managed and dispersed by the supplier ,Policy Division ,Mannion Daniels Limited ,202035-102 ,"301,353.84",
DFID,DFID,04/09/2017,Project delivery costs – supplier services ,Asia  Caribbean and Overseas Territories ,Pact  Inc. ,205145-109 ,"9,029.00",
DFID,DFID,15/09/2017,Aid Programme - Accountable Grant Payments ,Asia  Caribbean and Overseas Territories ,International Foundation for Electoral Systems ,203487-102 ,"243,513.00",
DFID,DFID,28/09/2017,Project delivery costs – supplier services ,East and Central Africa ,GDSI UK LIMITED ,203462-103 ,"200,000.00",
DFID,DFID,28/09/2017,Project delivery costs – supplier services ,East and Central Africa ,GDSI UK LIMITED ,203462-103 ,"200,000.00",
DFID,DFID,04/09/2017,Project delivery costs – supplier services ,Research and Evidence Division ,PricewaterhouseCoopers Pvt.Ltd ,203200-106 ,"119,138.00",
DFID,DFID,15/09/2017,Project delivery costs – supplier services ,Asia  Caribbean and Overseas Territories ,MMPL ,300109-102 ,"12,673.76",
DFID,DFID,15/09/2017,Project delivery costs – supplier services ,Asia  Caribbean and Overseas Territories ,MMPL ,300109-106 ,"41,867.33",
DFID,DFID,11/09/2017,Research and development costs - supplier services ,Research and Evidence Division ,PricewaterhouseCoopers Limited (KENYA3) ,204570-106 ,"107,859.01",
DFID,DFID,01/09/2017,Hotels - Accommodation only ,West and Southern Africa ,Movenpick Ambassador Hotel Accra ,204918-101 ,"1,024.36",
DFID,DFID,19/09/2017,Aid Programme - Accountable Grant Payments ,East and Central Africa ,Act! (Act.Change.Transform) ,203574-111 ,"117,230.00",
DFID,DFID,01/09/2017,Research and development costs - supplier services ,Research and Evidence Division ,University of Cape Town (UCT) ,201446-104 ,"221,549.28",
DFID,DFID,29/09/2017,Aid Programme - Voluntary contributions ,East and Central Africa ,AUC ,204458-114 ,"400,000.00",
DFID,DFID,29/09/2017,Aid Programme - Voluntary contributions ,East and Central Africa ,AUC- Shared Values  Election ,204458-111 ,"500,000.00",
DFID,DFID,20/09/2017,Project delivery costs – supplier services ,East and Central Africa ,IMA World Health ,203631-102 ,"1,268,754.28",
DFID,DFID,11/09/2017,Training Providers/Facilitation Services ,Policy Division ,KBR ,100191-101 ,588.00,
DFID,DFID,19/09/2017,Computer Software Licenses ,Business Solutions Division Level ,MidlandHR ,200002-241 ,866.86,
DFID,DFID,19/09/2017,Computer software maintenance ,Business Solutions Division Level ,MidlandHR ,200002-241 ,"1,686.50",
DFID,DFID,22/09/2017,Project delivery costs – supplier services ,Asia  Caribbean and Overseas Territories ,Deloitte Touche Tohmatsu India Private Limited ,202869-103 ,"39,539.44",
DFID,DFID,04/09/2017,Aid Programme - Accountable Grant Payments ,Asia  Caribbean and Overseas Territories ,Jhpiego ,203224-104 ,"117,388.65",
DFID,DFID,22/09/2017,Project delivery costs – supplier services ,Conflict  Humanitarian  Security & Stabilisation Division ,Police Scotland ,300042-103 ,"21,079.08",
DFID,DFID,27/09/2017,Aid Programme - Accountable Grant Payments ,Conflict  Humanitarian  Security & Stabilisation Division ,UK-Med ,202878-103 ,"488,011.00",
DFID,DFID,20/09/2017,Training Providers/Facilitation Services ,Group Operations ,St John Ambulance CTD ,100106-101 ,"1,300.00",
DFID,DFID,11/09/2017,Project delivery costs – supplier services ,Business Solutions Division Level ,Parity Resources ,200004-127 ,"1,681.08",
DFID,DFID,13/09/2017,Project delivery costs – supplier services ,Business Solutions Division Level ,Parity Resources ,200004-127 ,"1,681.08",
DFID,DFID,21/09/2017,Project delivery costs – supplier services ,Business Solutions Division Level ,Parity Resources ,200004-127 ,"1,681.08",
DFID,DFID,29/09/2017,Project delivery costs – supplier services ,Business Solutions Division Level ,Parity Resources ,200004-127 ,"1,681.08",
DFID,DFID,15/09/2017,Aid Programme - Joint programme contribution ,West and Southern Africa ,US Agency for Int'l Dev ,200469-117 ,"850,000.00",
DFID,DFID,07/09/2017,Aid Programme - Accountable Grant Payments ,Research and Evidence Division ,Shell Foundation ,203157-103 ,"71,085.00",
DFID,DFID,27/09/2017,Aid Programme - Programme Contribution ,International Relations Division ,TheQueen Elizabeth Diamond Jubilee Trust ,203754-102 ,"5,000,000.00",
DFID,DFID,13/09/2017,Aid Programme - Accountable Grant Payments ,Asia  Caribbean and Overseas Territories ,Swisscontact ,204468-112 ,"18,600.00",
DFID,DFID,14/09/2017,Further Education costs ,Group Operations ,QA LTD ,204284-101 ,"3,640.00",
DFID,DFID,11/09/2017,Training - Course Fees ,Business Solutions Division Level ,Emergn ,200001-101 ,"1,200.00",
DFID,DFID,18/09/2017,Aid Programme - Accountable Grant Payments ,Asia  Caribbean and Overseas Territories ,People in Need ,205138-109 ,"650,000.00",
DFID,DFID,07/09/2017,Aid Programme - Other Financial Aid to Government ,Asia  Caribbean and Overseas Territories ,Tristan da Cunha Finance Department ,204730-101 ,"240,020.58",
DFID,DFID,07/09/2017,Aid Programme - Other Financial Aid to Government ,Asia  Caribbean and Overseas Territories ,Tristan da Cunha Finance Department ,204730-102 ,"12,874.39",
DFID,DFID,18/09/2017,Aid Programme - Other Financial Aid to Government ,Asia  Caribbean and Overseas Territories ,Supplier Name withheld ,203891-101 ,"674,189.00",
DFID,DFID,18/09/2017,Aid Programme - Other Financial Aid to Government ,Asia  Caribbean and Overseas Territories ,Supplier Name withheld ,203891-105 ,"38,000.00",
DFID,DFID,21/09/2017,Contract & Agency Staff ,Group Operations ,Anderson Knight Ltd ,100270-101 ,725.94,
DFID,DFID,27/09/2017,Contract & Agency Staff ,Group Operations ,Anderson Knight Ltd ,100270-101 ,725.94,
DFID,DFID,06/09/2017,Recruitment costs ,Group Operations ,Anderson Knight Ltd ,204664-101 ,"3,580.56",
DFID,DFID,22/09/2017,Aid Programme - Other Financial Aid to Government ,West and Southern Africa ,Zambia Social Protection Expansion Programme ,200625-103 ,"2,599,049.02",
DFID,DFID,06/09/2017,Recruitment costs ,Human Resources ,Linkedin Ireland Limited ,100269-127 ,"7,773.39",
DFID,DFID,06/09/2017,Recruitment costs ,Human Resources ,Linkedin Ireland Limited ,100269-127 ,"2,916.67",
DFID,DFID,29/09/2017,Aid Programme - Accountable Grant Payments ,West and Southern Africa ,SHMPA ,202524-109 ,"125,090.00",
DFID,DFID,08/09/2017,Project delivery costs – supplier services ,Asia  Caribbean and Overseas Territories ,Louis Berger Group  Inc. ,203426-109 ,"85,000.00",
DFID,DFID,08/09/2017,Project delivery costs – supplier services ,Asia  Caribbean and Overseas Territories ,Louis Berger Group  Inc. ,203426-102 ,"429,671.00",
DFID,DFID,14/09/2017,Aid Programme - Accountable Grant Payments ,Asia  Caribbean and Overseas Territories ,Dolma Foundation ,203426-107 ,"104,507.91",
DFID,DFID,21/09/2017,Aid Programme - Accountable Grant Payments ,Policy Division ,HelpAge International UK ,203559-109 ,"287,662.00",
DFID,DFID,13/09/2017,Training - Course Fees ,Conflict  Humanitarian  Security & Stabilisation Division ,Language Services Direct Ltd ,100049-102 ,"1,110.60",
DFID,DFID,06/09/2017,Training Providers/Facilitation Services ,Economic Development Division ,Language Services Direct Ltd ,100086-101 ,759.74,
DFID,DFID,13/09/2017,Training - Course Fees ,East and Central Africa ,Language Services Direct Ltd ,101625-113 ,"1,700.52",
DFID,DFID,11/09/2017,Training - Course Fees ,West and Southern Africa ,Language Services Direct Ltd ,101610-101 ,991.98,
DFID,DFID,29/09/2017,Training - Course Fees ,West and Southern Africa ,Language Services Direct Ltd ,101610-101 ,555.30,
DFID,DFID,11/09/2017,Project delivery costs – supplier services ,West and Southern Africa ,The Centre For Employment Initiatives Ltd ,204242-103 ,"12,076.03",
DFID,DFID,14/09/2017,Project delivery costs – supplier services ,West and Southern Africa ,IMA World Health - ASSP ,202732-102 ,"5,273,742.00",
DFID,DFID,20/09/2017,Aid Programme - Poverty Reduction Budget Support ,West and Southern Africa ,Ministry of Gender  Children and Social Protection  Ghana ,201629-108 ,"3,200,000.00",
DFID,DFID,26/09/2017,Training - Course Fees ,Human Resources ,Beamans Limited ,100266-106 ,730.00,
DFID,DFID,01/09/2017,Project delivery costs – supplier services ,East and Central Africa ,ACE International Consultants S.L. ,203008-103 ,"67,725.00",
DFID,DFID,05/09/2017,Fund monies to be managed and dispersed by the supplier ,West and Southern Africa ,CARE Canada ,203551-102 ,"971,000.00",
DFID,DFID,11/09/2017,Training - Course Fees ,Business Solutions Division Level ,Power Seminars Ltd ,200001-101 ,"1,995.00",
DFID,DFID,04/09/2017,Aid Programme - Other Financial Aid to Government ,East and Central Africa ,MINISTRY OF HEALTH  RWANDA ,203639-101 ,"103,388.00",
DFID,DFID,05/09/2017,Project delivery costs – supplier services ,Internal Audit ,National Crime Agency ,100121-101 ,"6,892.67",
DFID,DFID,05/09/2017,Aid Programme - Other Financial Aid to Government ,Asia  Caribbean and Overseas Territories ,Ministry of Finance and Planning Jamaica  Financial Investigation Division ,204232-102 ,"20,000.00",
DFID,DFID,19/09/2017,Aid Programme - Other Financial Aid to Government ,Asia  Caribbean and Overseas Territories ,Ministry of Finance and Planning Jamaica  FID Task Force ,204232-102 ,"210,716.00",
DFID,DFID,11/09/2017,Project delivery costs – supplier services ,Business Solutions Division Level ,Info-Assure LTD ,200002-107 ,"4,320.00",
DFID,DFID,18/09/2017,Aid Programme - Other Financial Aid to Government ,East and Central Africa ,Ministry of Finance and Economic Development  Ethiopian Competitiveness Fund ,202596-107 ,"320,000.00",
DFID,DFID,04/09/2017,Aid Programme - Accountable Grant Payments ,Asia  Caribbean and Overseas Territories ,China Agricultural University ,203174-101 ,"106,266.23",
DFID,DFID,20/09/2017,Project delivery costs – supplier services ,Asia  Caribbean and Overseas Territories ,A.F. Ferguson & Co Islamabad ,202328-102 ,"18,214.04",
DFID,DFID,19/09/2017,Project delivery costs – supplier services ,Asia  Caribbean and Overseas Territories ,Center for Project Supervision and Management  Ministry of Health ,202708-103 ,"444,412.43",
DFID,DFID,11/09/2017,Aid Programme - Accountable Grant Payments ,Conflict  Humanitarian  Security & Stabilisation Division ,Catholic Relief Services - USCCB ,300264-104 ,"932,938.00",
DFID,DFID,06/09/2017,Aid Programme - Other Financial Aid to Government ,East and Central Africa ,Government of Rwanda  Climate Change and Environment-FONERWA ,203582-105 ,"1,900,000.00",
DFID,DFID,19/09/2017,Air fares ,Asia  Caribbean and Overseas Territories ,dnata International Private Ltd. ,204053-101 ,596.88,
DFID,DFID,20/09/2017,Air fares ,Asia  Caribbean and Overseas Territories ,dnata International Private Ltd. ,202403-101 ,"2,664.19",
DFID,DFID,19/09/2017,Air fares ,Finance and Corporate Performance Division ,dnata International Private Ltd. ,100201-101 ,714.13,
DFID,DFID,28/09/2017,Air fares ,Research and Evidence Division ,dnata International Private Ltd. ,202392-109 ,"1,633.51",
DFID,DFID,29/09/2017,Aid Programme - Voluntary contributions ,Asia  Caribbean and Overseas Territories ,Supplier Name withheld ,203904-102 ,"6,000,000.00",
DFID,DFID,22/09/2017,Aid Programme - Voluntary contributions ,East and Central Africa ,UNDP Multi-Partner Trust Fund Office ,205065-106 ,"1,500,000.00",
DFID,DFID,29/09/2017,Aid Programme - Voluntary contributions ,West and Southern Africa ,UNDP Multi-Partner Trust Fund Office ,204565-101 ,"5,000,000.00",
DFID,DFID,18/09/2017,Computer software maintenance ,Business Solutions Division Level ,CGI IT UK Limited ,200002-103 ,"15,250.00",
DFID,DFID,13/09/2017,Aid Programme - Poverty Reduction Budget Support ,West and Southern Africa ,Ministry of Finance  Ghana Health Sector Support Programme ,203536-113 ,"3,776,000.00",
DFID,DFID,14/09/2017,Aid Programme - Other Financial Aid to Government ,West and Southern Africa ,Ministry of Finance  Ghana Health Sector Support Programme ,203536-106 ,"148,518.00",
DFID,DFID,14/09/2017,Aid Programme - Other Financial Aid to Government ,West and Southern Africa ,Ministry of Finance  Ghana Health Sector Support Programme ,203536-106 ,"1,100,000.00",
DFID,DFID,18/09/2017,Project delivery costs – supplier services ,East and Central Africa ,CANADEM ,300270-103 ,"30,419.38",
DFID,DFID,18/09/2017,Project delivery costs – supplier services ,East and Central Africa ,CANADEM ,300270-103 ,"38,961.43",
DFID,DFID,20/09/2017,Aid Programme - Accountable Grant Payments ,East and Central Africa ,CANADEM ,204019-107 ,"22,697.44",
DFID,DFID,04/09/2017,Aid Programme - Accountable Grant Payments ,East and Central Africa ,SAGCOT CENTRE LIMITED ,202844-108 ,"424,304.29",
DFID,DFID,20/09/2017,Auditors Assurance Service ,West and Southern Africa ,Baker Tilly Business Services Limited ,205173-102 ,"88,710.00",
DFID,DFID,29/09/2017,Training - Course Fees ,Economic Development Division ,International Centre for Parliamentary Studies Ltd ,100086-101 ,"1,944.00",
DFID,DFID,26/09/2017,Project delivery costs – supplier services ,West and Southern Africa ,RENAN CONSULT LTD ,204918-101 ,"4,040.57",
DFID,DFID,21/09/2017,Data Network - land lines ,Business Solutions Division Level ,(Vodafone)Cable & Wireless Global Networks Ltd ,203329-103 ,"6,316.88",
DFID,DFID,21/09/2017,Data Network - land lines ,Business Solutions Division Level ,(Vodafone)Cable & Wireless Global Networks Ltd ,200002-185 ,"6,316.88",
DFID,DFID,05/09/2017,Data Network - land lines ,Business Solutions Division Level ,Keltec Ltd ,200002-124 ,"1,125.00",
DFID,DFID,04/09/2017,Aid Programme - Voluntary contributions ,Asia  Caribbean and Overseas Territories ,World Bank - IBRD ,204612-102 ,"150,000.00",
DFID,DFID,01/09/2017,Medical/Health Services ,East and Central Africa ,The Jubilee Insurance Company of (U) Ltd ,101635-101 ,"21,180.28",
DFID,DFID,29/09/2017,Aid Programme - Voluntary contributions ,Asia  Caribbean and Overseas Territories ,Nordic International Support Foundation (NIS) ,204661-102 ,"2,800,000.00",
DFID,DFID,06/09/2017,Project delivery costs – supplier services ,Asia  Caribbean and Overseas Territories ,Supplier Name withheld ,201000-102 ,"10,992.00",
DFID,DFID,18/09/2017,Aid Programme - Core contributions ,Research and Evidence Division ,PEP-Partnership for Economic Policy ,204153-110 ,"767,267.00",
DFID,DFID,15/09/2017,Aid Programme - Core contributions ,Research and Evidence Division ,PEP-Partnership for Economic Policy ,204153-111 ,"150,000.00",
DFID,DFID,01/09/2017,other information and communication technologies ,Business Solutions Division Level ,Leidos Innovations UK ,200002-173 ,"191,645.25",Managed Service cost for DFID's Cloud based Electronic Document & Record Management (EDRM) System Vault - Apr to Jun 2017  (1 of 2)
DFID,DFID,01/09/2017,other information and communication technologies ,Business Solutions Division Level ,Leidos Innovations UK ,200002-173 ,"159,091.27",Managed Service cost for DFID's Cloud based Electronic Document & Record Management (EDRM) System Vault - Apr to Jun 2017 (2of 2)
DFID,DFID,20/09/2017,Project delivery costs – supplier services ,Business Solutions Division Level ,Leidos Innovations UK ,200005-116 ,"21,007.50",
DFID,DFID,04/09/2017,Repairs  Maint  Alter - Property & Constrct. Services ,Business Solutions Division Level ,THISTLE STORAGE EQUIPMENT LTD ,200001-101 ,"2,045.84",
DFID,DFID,18/09/2017,Aid Programme - Pooled/Basket funding ,West and Southern Africa ,COMMISSION EUROPEENNE ,204211-104 ,"971,731.45",
DFID,DFID,18/09/2017,Aid Programme - Voluntary contributions ,Middle East and North Africa Division ,COMMISSION EUROPEENNE ,300287-101 ,"53,690,047.64",
DFID,DFID,27/09/2017,Training - Course Fees ,West and Southern Africa ,HEMA SONIASSY MARIE ,101610-101 ,"1,810.37",
DFID,DFID,19/09/2017,Aid Programme - Voluntary contributions ,West and Southern Africa ,UNOPS-HQ ,300303-101 ,"2,000,000.00",
DFID,DFID,27/09/2017,Aid Programme - Voluntary contributions ,Asia  Caribbean and Overseas Territories ,UNOPS-HQ ,205268-101 ,"5,000,000.00",
DFID,DFID,27/09/2017,Aid Programme - Voluntary contributions ,Asia  Caribbean and Overseas Territories ,UNOPS-HQ ,205268-107 ,"3,000,000.00",
DFID,DFID,18/09/2017,Aid Programme - Programme Contribution ,Research and Evidence Division ,Innovate UK - Technology Strategy Board ,204867-106 ,"265,931.23",
DFID,DFID,28/09/2017,Aid Programme - Programme Contribution ,Research and Evidence Division ,Innovate UK - Technology Strategy Board ,204867-106 ,"37,500.00",
DFID,DFID,18/09/2017,Aid Programme - Programme Contribution ,Research and Evidence Division ,Innovate UK - Technology Strategy Board ,204867-106 ,"425,666.98",
DFID,DFID,28/09/2017,DFID Purchased Relief Supplies ,Middle East and North Africa Division ,AECOM Professional Services ,204520-105 ,"225,257.42",
DFID,DFID,04/09/2017,DFID Purchased Relief Supplies ,West and Southern Africa ,AECOM Professional Services ,300036-109 ,"362,069.55",
DFID,DFID,26/09/2017,DFID Purchased Relief Supplies ,West and Southern Africa ,AECOM Professional Services ,300036-109 ,"408,696.06",
DFID,DFID,05/09/2017,Aid Programme - Accountable Grant Payments ,Asia  Caribbean and Overseas Territories ,Perkumpulan Dewan Bisnis Indonesia Untuk Pembangunan Berkelanjutan ,204623-107 ,"51,635.90",
DFID,DFID,19/09/2017,Air fares ,East and Central Africa ,HRG Kenya (USD) ,205065-106 ,571.77,
DFID,DFID,19/09/2017,Air fares ,East and Central Africa ,HRG Kenya (USD) ,101630-102 ,963.10,
DFID,DFID,19/09/2017,Air fares ,East and Central Africa ,HRG Kenya (USD) ,101630-101 ,"1,329.19",
DFID,DFID,19/09/2017,Air fares ,East and Central Africa ,HRG Kenya (USD) ,101616-101 ,"1,230.43",
DFID,DFID,15/09/2017,Air fares ,East and Central Africa ,HRG Kenya (USD) ,101616-101 ,689.07,
DFID,DFID,19/09/2017,Hotels - Accommodation only ,East and Central Africa ,HRG Kenya (USD) ,101616-102 ,594.05,
DFID,DFID,15/09/2017,Air fares ,East and Central Africa ,HRG Kenya (USD) ,202594-101 ,"1,630.05",
DFID,DFID,05/09/2017,Aid Programme - Voluntary contributions ,Asia  Caribbean and Overseas Territories ,United Nations Development Programme - Brazil ,204196-110 ,"99,184.09",
DFID,DFID,14/09/2017,Hotels - Accommodation only ,Business Solutions Division Level ,Ascott Palace Ltd ,200001-101 ,"1,294.23",
DFID,DFID,19/09/2017,Aid Programme - Joint programme contribution ,Policy Division ,Ministry of Climate and Environment ,202745-103 ,"375,000.00",
DFID,DFID,05/09/2017,Aid Programme - Accountable Grant Payments ,Asia  Caribbean and Overseas Territories ,Afghanaid UK ,203904-107 ,"1,438,377.00",
DFID,DFID,26/09/2017,Aid Programme - Other Financial Aid to Government ,Asia  Caribbean and Overseas Territories ,Ministry of Women Children and Social Welfare ,203274-105 ,"901,631.00",
DFID,DFID,26/09/2017,Aid Programme - Voluntary contributions ,Research and Evidence Division ,United Nations Economic and Social Commission for Asia and the Pacific ,204933-102 ,"470,864.00",
DFID,DFID,19/09/2017,Air fares ,West and Southern Africa ,MONUSCO ,101610-101 ,883.65,
DFID,DFID,08/09/2017,Aid Programme - Accountable Grant Payments ,Asia  Caribbean and Overseas Territories ,Samaj Pragati Sahayog ,204794-104 ,"17,411.88",
DFID,DFID,28/09/2017,Aid Programme - Joint programme contribution ,Asia  Caribbean and Overseas Territories ,Asian Development Bank - PECP ,204358-103 ,"24,380,000.00",
DFID,DFID,07/09/2017,Aid Programme - Partnership Programme Arrangements ,Asia  Caribbean and Overseas Territories ,Development Research Center of the State Council of China ,204737-101 ,"139,526.00",
DFID,DFID,26/09/2017,Hotels - Accommodation only ,West and Southern Africa ,UMODZI PARKS AND RESORTS ,202656-103 ,"1,004.68",
DFID,DFID,19/09/2017,Aid Programme - Accountable Grant Payments ,Research and Evidence Division ,Global Off-Grid Lighting Association (GOGLA) ,204343-108 ,"22,137.00",
DFID,DFID,13/09/2017,Project delivery costs – supplier services ,West and Southern Africa ,DAMIAO FORTUNATO LITSUR ,204837-105 ,685.75,
DFID,DFID,12/09/2017,Medical/Health Services ,Asia  Caribbean and Overseas Territories ,AMERICA LIFE INSURANCE COMPANY ,101621-101 ,"3,973.07",
DFID,DFID,28/09/2017,Project delivery costs – supplier services ,Business Solutions Division Level ,Concentra Consulting Limited ,200005-139 ,"21,517.55",
DFID,DFID,07/09/2017,Aid Programme - Accountable Grant Payments ,Asia  Caribbean and Overseas Territories ,Supplier Name withheld ,201000-105 ,"69,236.35",
DFID,DFID,15/09/2017,Fund monies to be managed and dispersed by the supplier ,Policy Division ,MannionDaniels UK AID Direct ,202035-101 ,"101,080.00",
DFID,DFID,15/09/2017,Fund monies to be managed and dispersed by the supplier ,Policy Division ,MannionDaniels UK AID Direct ,202035-101 ,"101,730.28",
DFID,DFID,26/09/2017,Fund monies to be managed and dispersed by the supplier ,Policy Division ,MannionDaniels UK AID Direct ,202035-101 ,"17,455.46",
DFID,DFID,15/09/2017,Fund monies to be managed and dispersed by the supplier ,Policy Division ,MannionDaniels UK AID Direct ,202035-101 ,"26,343.50",
DFID,DFID,15/09/2017,Fund monies to be managed and dispersed by the supplier ,Policy Division ,MannionDaniels UK AID Direct ,202035-102 ,"360,800.70",
DFID,DFID,15/09/2017,Fund monies to be managed and dispersed by the supplier ,Policy Division ,MannionDaniels UK AID Direct ,202035-102 ,"16,349.68",
DFID,DFID,15/09/2017,Fund monies to be managed and dispersed by the supplier ,Policy Division ,MannionDaniels UK AID Direct ,202035-102 ,"5,000.00",
DFID,DFID,21/09/2017,Project delivery costs – supplier services ,Middle East and North Africa Division ,ARK Group DMCC ,300054-101 ,"319,682.50",
DFID,DFID,21/09/2017,Project delivery costs – supplier services ,Middle East and North Africa Division ,ARK Group DMCC ,300054-101 ,"64,024.77",
DFID,DFID,11/09/2017,Further Education costs ,West and Southern Africa ,The School of Oriental & African Studies ,101629-101 ,"3,780.00",
DFID,DFID,13/09/2017,Project delivery costs – supplier services ,Asia  Caribbean and Overseas Territories ,Recipient name withheld ,205157-104 ,"9,987.97",
DFID,DFID,06/09/2017,Project delivery costs – supplier services ,Middle East and North Africa Division ,Management Plus ,300060-102 ,"4,784.22",
DFID,DFID,05/09/2017,Hotels - Accommodation only ,West and Southern Africa ,LA VILLA BOUTIQUE HOTEL (BCO LTD) ,101613-101 ,523.15,
DFID,DFID,22/09/2017,Bank Charges/Services ,Central Department Division ,HM REVENUE & CUSTOMS VAT ,100259-101 ,"10,630.11",
DFID,DFID,22/09/2017,Hotels - Accommodation only ,West and Southern Africa ,Recipient name withheld ,101610-101 ,720.00,
DFID,DFID,26/09/2017,Project delivery costs – supplier services ,East and Central Africa ,McKinsey and Company Inc East Africa Pty Ltd ,204635-102 ,"1,480,196.97",
DFID,DFID,26/09/2017,Project delivery costs – supplier services ,East and Central Africa ,McKinsey and Company Inc East Africa Pty Ltd ,204635-102 ,"365,452.36",
DFID,DFID,26/09/2017,Project delivery costs – supplier services ,East and Central Africa ,McKinsey and Company Inc East Africa Pty Ltd ,204635-102 ,"180,351.00",
DFID,DFID,22/09/2017,Training - Course Fees ,Policy Division ,CSL - KPMG LLP ,202396-101 ,"1,352.56",
DFID,DFID,11/09/2017,Training - Course Fees ,Research and Evidence Division ,CSL - KPMG LLP ,202392-105 ,"1,189.00",
DFID,DFID,22/09/2017,Training Providers/Facilitation Services ,Research and Evidence Division ,CSL - KPMG LLP ,202392-101 ,"13,402.00",
DFID,DFID,28/09/2017,Training Providers/Facilitation Services ,Economic Development Division ,CSL - KPMG LLP ,100276-101 ,"4,000.00",
DFID,DFID,21/09/2017,Training - Course Fees ,Economic Development Division ,CSL - KPMG LLP ,202373-101 ,"1,623.07",
DFID,DFID,15/09/2017,Training - Course Fees ,Economic Development Division ,CSL - KPMG LLP ,100086-101 ,"1,895.52",
DFID,DFID,11/09/2017,Training - Course Fees ,Human Resources ,CSL - KPMG LLP ,100269-155 ,"3,000.00",
DFID,DFID,29/09/2017,Training - Course Fees ,Human Resources ,CSL - KPMG LLP ,100269-155 ,"2,500.00",
DFID,DFID,29/09/2017,Training - Course Fees ,Human Resources ,CSL - KPMG LLP ,100269-155 ,"2,500.00",
DFID,DFID,18/09/2017,Computer hardware maintenance ,Business Solutions Division Level ,Quru Limited ,200001-101 ,"1,443.30",
DFID,DFID,12/09/2017,Aid Programme - Accountable Grant Payments ,East and Central Africa ,Centre for Humanitarian Change ,203462-101 ,"50,006.13",
DFID,DFID,26/09/2017,Hotels - Accommodation only ,West and Southern Africa ,BEST WESTERN PLUS ATLANTIC HOTEL ,101613-101 ,633.59,
DFID,DFID,05/09/2017,Project delivery costs – supplier services ,West and Southern Africa ,PAMODZI ,204856-106 ,"2,469.14",
DFID,DFID,19/09/2017,Air fares ,East and Central Africa ,AirTraffic Ltd ,101630-101 ,"1,602.30",
DFID,DFID,26/09/2017,Hotels - Accommodation only ,West and Southern Africa ,Supplier Name withheld ,101622-105 ,695.08,
DFID,DFID,06/09/2017,Project delivery costs – supplier services ,Business Solutions Division Level ,Teleperformance Ltd ,200002-169 ,948.30,
DFID,DFID,05/09/2017,Aid Programme - Other Financial Aid to Government ,Middle East and North Africa Division ,GOVERNMENT OF JORDAN - MINISTRY OF PLANNING ,205200-103 ,"9,780,000.00",
DFID,DFID,04/09/2017,Repairs  Maintenance and Alterations – Other Building Costs ,Group Operations ,Interserve Facilities Management Limited ,100106-101 ,"1,329.25",
DFID,DFID,04/09/2017,Repairs  Maintenance and Alterations – Other Building Costs ,Group Operations ,Interserve Facilities Management Limited ,100106-101 ,"2,414.48",
DFID,DFID,06/09/2017,Facilities Management payments ,Group Operations ,Interserve Facilities Management Limited ,203717-101 ,"8,433.50",
DFID,DFID,06/09/2017,Cleaning Costs ,Group Operations ,Interserve Facilities Management Limited ,203717-101 ,"14,602.68",
DFID,DFID,06/09/2017,Repairs  Maint  Alter - Property & Constrct. Services ,Group Operations ,Interserve Facilities Management Limited ,203717-101 ,"38,065.09",Monthly maintenance service costs for Whitehall  UK HQ�for September 2017
DFID,DFID,06/09/2017,Postage Costs ,Group Operations ,Interserve Facilities Management Limited ,203717-101 ,"5,686.32",
DFID,DFID,06/09/2017,Repairs  Maint  Alter - Removal & waste disposal services ,Group Operations ,Interserve Facilities Management Limited ,203717-101 ,"1,381.33",
DFID,DFID,06/09/2017,Facilities Management payments ,Group Operations ,Interserve Facilities Management Limited ,203717-101 ,"3,219.37",
DFID,DFID,06/09/2017,Facilities Management payments ,Group Operations ,Interserve Facilities Management Limited ,100106-101 ,980.88,
DFID,DFID,06/09/2017,Facilities Management payments ,Group Operations ,Interserve Facilities Management Limited ,100106-101 ,"6,785.86",
DFID,DFID,06/09/2017,Cleaning Costs ,Group Operations ,Interserve Facilities Management Limited ,100106-101 ,"13,768.67",
DFID,DFID,06/09/2017,Facilities Management payments ,Group Operations ,Interserve Facilities Management Limited ,100106-101 ,841.74,
DFID,DFID,06/09/2017,Repairs  Maint  Alter - Property & Constrct. Services ,Group Operations ,Interserve Facilities Management Limited ,100106-101 ,"29,498.63",Monthly maintenance service costs for East Kilbride  UK HQ�for August 2017
DFID,DFID,06/09/2017,Postage Costs ,Group Operations ,Interserve Facilities Management Limited ,100106-101 ,"6,340.14",
DFID,DFID,05/09/2017,Repairs  Maintenance and Alterations – Other Building Costs ,Group Operations ,Interserve Facilities Management Limited ,203717-101 ,"52,988.39",Refurbishment of DFIDs Ripley building property in order to meet our duty of care obligations and health and safety standards
DFID,DFID,06/09/2017,Postage Costs ,Group Operations ,Interserve Facilities Management Limited ,203717-101 ,"5,919.10",
DFID,DFID,27/09/2017,Training Providers/Facilitation Services ,West and Southern Africa ,COMUNICA MAIS LDA ,101620-101 ,556.25,
DFID,DFID,27/09/2017,Training Providers/Facilitation Services ,West and Southern Africa ,COMUNICA MAIS LDA ,101620-101 ,807.45,
DFID,DFID,13/09/2017,Bank Charges/Services ,Group Operations ,Crown Agents Bank Limited ,204664-101 ,"3,000.00",
DFID,DFID,15/09/2017,Fund monies to be managed and dispersed by the supplier ,East and Central Africa ,Crown Agents Bank Limited ,202946-107 ,"10,040.03",
DFID,DFID,05/09/2017,Fund monies to be managed and dispersed by the supplier ,East and Central Africa ,Crown Agents Bank Limited ,202946-107 ,"684,207.38",
DFID,DFID,26/09/2017,Fund monies to be managed and dispersed by the supplier ,East and Central Africa ,Crown Agents Bank Limited ,202946-107 ,"270,797.16",
DFID,DFID,02/09/2017,Fund monies to be managed and dispersed by the supplier ,East and Central Africa ,Crown Agents Bank Limited ,205068-102 ,"271,571.84",
DFID,DFID,02/09/2017,Fund monies to be managed and dispersed by the supplier ,East and Central Africa ,Crown Agents Bank Limited ,205068-103 ,"319,987.51",
DFID,DFID,26/09/2017,Fund monies to be managed and dispersed by the supplier ,East and Central Africa ,Crown Agents Bank Limited ,203109-112 ,"308,653.79",
DFID,DFID,05/09/2017,Fund monies to be managed and dispersed by the supplier ,Research and Evidence Division ,Crown Agents Bank Limited ,204571-106 ,"95,863.58",
DFID,DFID,15/09/2017,Fund monies to be managed and dispersed by the supplier ,West and Southern Africa ,Crown Agents Bank Limited ,203001-103 ,"534,083.25",
DFID,DFID,26/09/2017,Fund monies to be managed and dispersed by the supplier ,East and Central Africa ,Crown Agents Bank Limited ,203109-112 ,"416,136.17",
DFID,DFID,18/09/2017,Fund monies to be managed and dispersed by the supplier ,Research and Evidence Division ,Crown Agents Bank Limited ,204415-103 ,"19,700.00",
DFID,DFID,18/09/2017,Fund monies to be managed and dispersed by the supplier ,Research and Evidence Division ,Crown Agents Bank Limited ,204415-103 ,"1,687.56",
DFID,DFID,18/09/2017,Fund monies to be managed and dispersed by the supplier ,Research and Evidence Division ,Crown Agents Bank Limited ,204415-103 ,"95,654.40",
DFID,DFID,28/09/2017,Fund monies to be managed and dispersed by the supplier ,West and Southern Africa ,Crown Agents Bank Limited ,202349-103 ,"169,763.00",
DFID,DFID,04/09/2017,Project delivery costs – supplier services ,West and Southern Africa ,Crown Agents Bank Limited ,200469-110 ,"187,615.29",
DFID,DFID,20/09/2017,Fund monies to be managed and dispersed by the supplier ,East and Central Africa ,Crown Agents Bank Limited ,203109-111 ,"223,310.14",
DFID,DFID,21/09/2017,Project delivery costs – supplier services ,Economic Development Division ,Crown Agents Bank Limited ,203375-104 ,"139,520.09",
DFID,DFID,11/09/2017,Project delivery costs – supplier services ,Economic Development Division ,Crown Agents Bank Limited ,203375-104 ,"100,371.13",
DFID,DFID,04/09/2017,Project delivery costs – supplier services ,Economic Development Division ,Crown Agents Bank Limited ,203375-105 ,"7,910.80",
DFID,DFID,13/09/2017,Project delivery costs – supplier services ,Middle East and North Africa Division ,Crown Agents Bank Limited ,201828-101 ,"261,632.51",
DFID,DFID,26/09/2017,Project delivery costs – supplier services ,East and Central Africa ,Crown Agents Bank Limited ,204057-102 ,"115,323.00",
DFID,DFID,20/09/2017,Project delivery costs – supplier services ,Research and Evidence Division ,Crown Agents Bank Limited ,202531-108 ,"91,703.00",
DFID,DFID,27/09/2017,Aid Programme - Voluntary contributions ,Middle East and North Africa Division ,European Bank for Reconstruction and Development DFID ,205201-102 ,"5,250,000.00",
DFID,DFID,18/09/2017,Aid Programme - Joint programme contribution ,East and Central Africa ,Agence Française de Développement - Afrique ,203998-104 ,"200,000.00",
DFID,DFID,18/09/2017,Aid Programme - Joint programme contribution ,East and Central Africa ,Agence Française de Développement - Afrique ,203998-105 ,"1,600,000.00",
DFID,DFID,12/09/2017,Subscriptions ,Communications Division ,Kantar Media ,100197-101 ,"1,584.41",
DFID,DFID,06/09/2017,Aid Programme - Accountable Grant Payments ,Research and Evidence Division ,CLASP ,300111-102 ,"149,826.75",
DFID,DFID,18/09/2017,Aid Programme - Refugee Relief Payments ,East and Central Africa ,TEAM INITIATIVES LIMITED (TIL) ,300357-107 ,"7,577.48",
DFID,DFID,27/09/2017,Project delivery costs – supplier services ,West and Southern Africa ,HAI TELECOMMUNICATIONS LIMITED ,203627-102 ,809.53,
DFID,DFID,07/09/2017,Project delivery costs – supplier services ,Business Solutions Division Level ,Empiric Solutions Limited ,200002-239 ,"17,250.00",
DFID,DFID,11/09/2017,Project delivery costs – supplier services ,Business Solutions Division Level ,Empiric Solutions Limited ,200002-239 ,"16,100.00",
DFID,DFID,21/09/2017,Staff Travel - Air Fares ,East and Central Africa ,SEVEN FOUR EIGHT AIR SERVICES (K) LTD ,202586-101 ,"8,288.68",
DFID,DFID,18/09/2017,Hotels - Accommodation only ,Middle East and North Africa Division ,gefinor rotana hotel ,300080-101 ,944.63,
DFID,DFID,11/09/2017,Project delivery costs – supplier services ,Conflict  Humanitarian  Security & Stabilisation Division ,Strategic Expertise International ,300042-103 ,"23,885.47",
DFID,DFID,18/09/2017,Project delivery costs – supplier services ,Business Solutions Division Level ,Bramble  Hub Limited ,200005-143 ,"7,300.00",
DFID,DFID,18/09/2017,Project delivery costs – supplier services ,Business Solutions Division Level ,Bramble  Hub Limited ,200005-143 ,"103,515.00",
DFID,DFID,18/09/2017,Project delivery costs – supplier services ,Business Solutions Division Level ,Bramble  Hub Limited ,200001-101 ,"14,000.00",
DFID,DFID,27/09/2017,Aid Programme - Accountable Grant Payments ,East and Central Africa ,The AECF ,203574-104 ,"238,461.00",
DFID,DFID,27/09/2017,Aid Programme - Accountable Grant Payments ,East and Central Africa ,The AECF ,203574-107 ,"232,029.00",
DFID,DFID,07/09/2017,Project delivery costs – supplier services ,Asia  Caribbean and Overseas Territories ,Gallup BRB ,202491-104 ,"13,400.00",
DFID,DFID,07/09/2017,Project delivery costs – supplier services ,Asia  Caribbean and Overseas Territories ,Arete Advisors LLP ,202765-114 ,"29,302.00",
DFID,DFID,28/09/2017,Hotels - Accommodation only ,Middle East and North Africa Division ,Citea Apart-Hotel ,300080-101 ,910.59,
DFID,DFID,20/09/2017,Office Equipment - Purchases ,Group Operations ,Allbranded ,203717-101 ,"12,000.00",
DFID,DFID,06/09/2017,Project delivery costs – supplier services ,West and Southern Africa ,COGNISERVE LIMITED ,204918-101 ,"5,980.60",
DFID,DFID,06/09/2017,Training Providers/Facilitation Services ,East and Central Africa ,Thomson Foundation ,101634-101 ,"2,179.85",
DFID,DFID,18/09/2017,Aid Programme - Trust Funds contributions ,West and Southern Africa ,OBSERVATOIRE DE LA DEPENSE PUBLIQUE (ODEP) ,204889-106 ,"7,828.55",
DFID,DFID,04/09/2017,Recruitment costs ,Research and Evidence Division ,YANNICK MARTIN ,203874-104 ,968.53,
DFID,DFID,12/09/2017,Aid Programme - Accountable Grant Payments ,East and Central Africa ,Twaweza East Africa (Uganda) ,300357-105 ,"99,704.00",
DFID,DFID,27/09/2017,Project delivery costs – supplier services ,Asia  Caribbean and Overseas Territories ,KPMG (Regstd.) ,114293-103 ,"4,064.64",
DFID,DFID,27/09/2017,Hardware - desktop PCs ,Business Solutions Division Level ,HP Inc UK Ltd ,200004-103 ,"14,559.00",
DFID,DFID,04/09/2017,Interview expenses ,Research and Evidence Division ,Recipient name withheld ,203874-104 ,"1,056.83",
DFID,DFID,05/09/2017,Relocation costs ,West and Southern Africa ,Atupele Chilalire ,101620-101 ,786.73,
DFID,DFID,21/09/2017,Aid Programme - Accountable Grant Payments ,West and Southern Africa ,CCJP Lilongwe ,202559-103 ,"245,549.00",
DFID,DFID,29/09/2017,Aid Programme - Humanitarian Material Relief Assistance and Services ,Conflict  Humanitarian  Security & Stabilisation Division ,CDEMA ,300491-102 ,"440,000.00",
DFID,DFID,11/09/2017,Hotels - Accommodation only ,International Relations Division ,Recipient name withheld ,201723-103 ,550.89,
DFID,DFID,11/09/2017,Training - Travel & Subsistence ,International Relations Division ,Recipient name withheld ,201723-103 ,716.06,
DFID,DFID,20/09/2017,Hotels - Accommodation only ,Economic Development Division ,Recipient name withheld ,205081-101 ,"2,907.88",
DFID,DFID,20/09/2017,Hotels - Accommodation only ,Economic Development Division ,Recipient name withheld ,205081-101 ,"1,566.03",
DFID,DFID,20/09/2017,Hotels - Accommodation only ,Economic Development Division ,Recipient name withheld ,205081-101 ,"1,546.06",
DFID,DFID,29/09/2017,Air fares ,Asia  Caribbean and Overseas Territories ,Recipient name withheld ,101601-110 ,566.38,
DFID,DFID,19/09/2017,Air fares ,Asia  Caribbean and Overseas Territories ,Recipient name withheld ,101601-110 ,"1,166.10",
DFID,DFID,18/09/2017,Hotels - Accommodation only ,International Relations Division ,Recipient name withheld ,100240-101 ,"1,030.93",
DFID,DFID,11/09/2017,Travel - Subsistence ,Middle East and North Africa Division ,Recipient name withheld ,100146-101 ,537.38,
DFID,DFID,17/09/2017,Air fares ,Asia  Caribbean and Overseas Territories ,Recipient name withheld ,101603-101 ,550.42,
DFID,DFID,29/09/2017,Hotels - Accommodation only ,Research and Evidence Division ,Recipient name withheld ,100039-110 ,"1,245.58",
DFID,DFID,06/09/2017,Oil - Other Utilities ,Economic Development Division ,Recipient name withheld ,205081-101 ,"1,244.03",
DFID,DFID,12/09/2017,Hotels - Accommodation only ,Policy Division ,Recipient name withheld ,300033-101 ,640.00,
DFID,DFID,27/09/2017,Hotels - Accommodation only ,Asia  Caribbean and Overseas Territories ,Recipient name withheld ,204053-101 ,616.12,
DFID,DFID,28/09/2017,Conference Travel & Subsistence ,Asia  Caribbean and Overseas Territories ,Recipient name withheld ,101604-101 ,559.01,
DFID,DFID,18/09/2017,Electricity ,Economic Development Division ,Recipient name withheld ,205081-101 ,524.10,
DFID,DFID,23/09/2017,Hotels - Accommodation only ,Conflict  Humanitarian  Security & Stabilisation Division ,Recipient name withheld ,202410-108 ,584.21,
DFID,DFID,28/09/2017,Hotels - Accommodation only ,West and Southern Africa ,Recipient name withheld ,101620-101 ,657.00,
DFID,DFID,21/09/2017,Air fares ,Asia  Caribbean and Overseas Territories ,Recipient name withheld ,101603-101 ,907.34,
DFID,DFID,01/09/2017,Air fares ,Business Solutions Division Level ,Recipient name withheld ,203329-104 ,956.19,
DFID,DFID,13/09/2017,Air fares ,Business Solutions Division Level ,Recipient name withheld ,203329-104 ,"1,054.63",
DFID,DFID,12/09/2017,Air fares ,East and Central Africa ,Recipient name withheld ,101612-101 ,533.54,
DFID,DFID,18/09/2017,Air fares ,East and Central Africa ,Recipient name withheld ,202594-101 ,"1,105.39",
DFID,DFID,18/09/2017,Air fares ,Asia  Caribbean and Overseas Territories ,Recipient name withheld ,101601-110 ,"1,700.00",
DFID,DFID,08/09/2017,Vehicle Hire Charges ,East and Central Africa ,Recipient name withheld ,300230-108 ,637.50,
DFID,DFID,06/09/2017,Other passenger transport ,Research and Evidence Division ,Recipient name withheld ,100039-111 ,"1,895.00",
DFID,DFID,06/09/2017,Other passenger transport ,Research and Evidence Division ,Recipient name withheld ,100039-111 ,"1,418.00",
DFID,DFID,27/09/2017,Hotels - Accommodation only ,West and Southern Africa ,Recipient name withheld ,101613-101 ,829.56,
DFID,DFID,15/09/2017,Hotels - Accommodation only ,West and Southern Africa ,Recipient name withheld ,100096-101 ,630.00,
DFID,DFID,07/09/2017,Hotels - Accommodation only ,West and Southern Africa ,Recipient name withheld ,101610-101 ,813.32,
DFID,DFID,05/09/2017,Air fares ,Research and Evidence Division ,Recipient name withheld ,202392-107 ,614.00,
DFID,DFID,05/09/2017,Hotels - Accommodation only ,West and Southern Africa ,Recipient name withheld ,101629-101 ,690.53,
DFID,DFID,11/09/2017,Relocation costs ,Asia  Caribbean and Overseas Territories ,Recipient name withheld ,101621-101 ,"1,712.93",
DFID,DFID,15/09/2017,Air fares ,East and Central Africa ,Recipient name withheld ,101630-101 ,"1,465.63",
DFID,DFID,04/09/2017,Air fares ,East and Central Africa ,Recipient name withheld ,101634-101 ,"1,238.50",
DFID,DFID,20/09/2017,Training - Travel & Subsistence ,East and Central Africa ,Recipient name withheld ,101625-111 ,874.00,
DFID,DFID,14/09/2017,Air fares ,Asia  Caribbean and Overseas Territories ,Recipient name withheld ,101601-110 ,"1,357.90",
DFID,DFID,14/09/2017,Air fares ,Asia  Caribbean and Overseas Territories ,Recipient name withheld ,101601-110 ,"1,700.00",
DFID,DFID,05/09/2017,Hotels - Accommodation only ,East and Central Africa ,Recipient name withheld ,101625-112 ,"1,167.67",
DFID,DFID,18/09/2017,Rail Transport ,Top Management Group ,Recipient name withheld ,100232-104 ,666.90,
DFID,DFID,21/09/2017,Air fares ,East and Central Africa ,Recipient name withheld ,101612-101 ,720.16,
DFID,DFID,27/09/2017,Hotels - Accommodation only ,West and Southern Africa ,Recipient name withheld ,203981-110 ,"1,366.00",
DFID,DFID,18/09/2017,Air fares ,Economic Development Division ,Recipient name withheld ,100275-101 ,"1,033.60",
DFID,DFID,26/09/2017,Hotels - Accommodation only ,Middle East and North Africa Division ,Recipient name withheld ,204055-101 ,619.16,
DFID,DFID,24/09/2017,Air fares ,Asia  Caribbean and Overseas Territories ,Recipient name withheld ,101601-110 ,"1,700.00",
DFID,DFID,18/09/2017,Air fares ,Asia  Caribbean and Overseas Territories ,Recipient name withheld ,101601-110 ,"1,668.79",
DFID,DFID,12/09/2017,Relocation costs ,East and Central Africa ,Recipient name withheld ,101633-101 ,"3,403.03",
DFID,DFID,04/09/2017,Training - Travel & Subsistence ,Policy Division ,Recipient name withheld ,202419-101 ,867.86,
DFID,DFID,04/09/2017,Hotels - Accommodation only ,Policy Division ,Recipient name withheld ,202419-101 ,519.79,
DFID,DFID,11/09/2017,Air fares ,Asia  Caribbean and Overseas Territories ,Recipient name withheld ,101601-110 ,"1,203.53",
DFID,DFID,11/09/2017,Air fares ,Asia  Caribbean and Overseas Territories ,Recipient name withheld ,101601-110 ,"1,700.00",
DFID,DFID,26/09/2017,Hotels - Accommodation only ,Middle East and North Africa Division ,Recipient name withheld ,204055-101 ,547.97,
DFID,DFID,19/09/2017,Air fares ,East and Central Africa ,Recipient name withheld ,100016-110 ,643.20,
DFID,DFID,27/09/2017,Air fares ,Research and Evidence Division ,Recipient name withheld ,203874-103 ,644.00,
DFID,DFID,27/09/2017,Air fares ,Research and Evidence Division ,Recipient name withheld ,203874-103 ,628.06,
DFID,DFID,11/09/2017,Hotels - Accommodation only ,Middle East and North Africa Division ,Recipient name withheld ,300078-101 ,998.61,
DFID,DFID,20/09/2017,Hotels - Accommodation only ,Policy Division ,Recipient name withheld ,300033-101 ,514.81,
DFID,DFID,22/09/2017,Air fares ,Conflict  Humanitarian  Security & Stabilisation Division ,Recipient name withheld ,205279-102 ,"1,032.77",
DFID,DFID,21/09/2017,Hotels - Accommodation only ,Asia  Caribbean and Overseas Territories ,Recipient name withheld ,204053-101 ,919.66,
DFID,DFID,13/09/2017,Hotels - Accommodation only ,International Relations Division ,Recipient name withheld ,100240-101 ,569.88,
DFID,DFID,11/09/2017,Relocation costs ,East and Central Africa ,Recipient name withheld ,101633-101 ,"3,425.84",
DFID,DFID,26/09/2017,Hotels - Accommodation only ,Communications Division ,Recipient name withheld ,100197-101 ,"1,131.90",
DFID,DFID,11/09/2017,Travel - Subsistence ,Asia  Caribbean and Overseas Territories ,Recipient name withheld ,101605-101 ,"1,004.38",
DFID,DFID,11/09/2017,Travel - Subsistence ,Asia  Caribbean and Overseas Territories ,Recipient name withheld ,101605-101 ,591.22,
DFID,DFID,26/09/2017,Travel - Subsistence ,Asia  Caribbean and Overseas Territories ,Recipient name withheld ,101605-101 ,"1,063.83",
